Workbook

Sheet FICHA
B1: REGLAS FISCALES DE LOS GOBIERNOS REGIONALES Y GOBIERNOS LOCALES 2022 1/
B3: DEPARTAMENTO
B4: PROVINCIA
B5: ENTIDAD
B7: R1: Regla Fiscal de Saldo de Deuda Total | D7: =IFERROR( VLOOKUP($C$19,REGLAS!$A$1:$S$1920,14,FALSE)," ") ->  | E7: R2: Regla Fiscal de Ahorro en Cuenta Corriente | G7: =IFERROR(IF( VLOOKUP($C$19,REGLAS!$A$1:$S$1920,10,FALSE)="Exceptuado","Exceptuado",IFERROR( VLOOKUP($C$19,REGLAS!$A$1:$S$1920,19,FALSE)," "))," ") -> 
B8: Saldo de Deuda Total 2/ | C8: =IFERROR( VLOOKUP($C$19,REGLAS!$A$1:$S$1920,6,FALSE), " ") ->  | D8: Miles | E8: Ingreso Corriente Total - ICT | F8: =IFERROR( VLOOKUP($C$19,REGLAS!$A$1:$S$1920,16,FALSE), " " ) ->  | G8: Miles
B9: Prom. ICT | C9: =IFERROR( VLOOKUP($C$19,REGLAS!$A$1:$S$1920,8,FALSE), " ") ->  | D9: Miles | E9: Gasto Corriente Total - GCT | F9: =IFERROR( VLOOKUP($C$19,REGLAS!$A$1:$S$1920,17,FALSE), " " ) ->  | G9: Miles
B10: Límite Ley N° 29230 3/ | C10: =IFERROR( VLOOKUP($C$19,REGLAS!$A$1:$S$1920,9,FALSE), " ") ->  | D10: Miles | E10: Ahorro en Cuenta Corriente - ACC | F10: =IFERROR( VLOOKUP($C$19,REGLAS!$A$1:$S$1920,18,FALSE), " ") ->  | G10: Miles
B11: Espacio Total | C11: =IFERROR( VLOOKUP($C$19,REGLAS!$A$1:$S$1920,10,FALSE), " ") ->  | D11: Miles
B12: SDT/Prom. ICT | C12: =IFERROR( VLOOKUP($C$19,REGLAS!$A$1:$S$1920,12,FALSE), " ") ->  | D12: Porcentaje
B13: }
L20: Zona de riesgo
L21: limite1 | M21: limite2 | N21: valor | P21: ICT | Q21: =IFERROR( VLOOKUP($C$19,REGLAS!$A$1:$S$1920,15,FALSE), " " ) -> 
L22: 0.8 | M22: 0.8 | N22: 0.8 | P22: GCT | Q22: =IFERROR( VLOOKUP($C$19,REGLAS!$A$1:$S$1920,16,FALSE), " " ) -> 
L23: 1 | M23: 1 | N23: 1 | P23: ACC | Q23: =IFERROR( VLOOKUP($C$19,REGLAS!$A$1:$S$1920,17,FALSE), " ") -> 
M24: =C12/100 -> 
P25: ICT | Q25: GCT | R25: ACC
P26: 0 | Q26: 0 | R26: 0 | S26: 0
P27: 0 | Q27: 0 | R27: 0
P28: =IFERROR( VLOOKUP($C$19,REGLAS!$A$1:$S$1920,16,FALSE), " " ) ->  | Q28: =IFERROR( VLOOKUP($C$19,REGLAS!$A$1:$S$1920,17,FALSE), " " ) ->  | R28: =IFERROR( VLOOKUP($C$19,REGLAS!$A$1:$S$1920,18,FALSE), " ") -> 
B30: 1/ Las reglas fiscales de los Gobiernos Regionales y Gobiernos Locales son las dispuestas por el Decreto Legislativo N° 1275, que aprueba el Marco de Responsabilidad y Transparencia Fiscal de los Gobiernos Regionales y Gobiernos Locales. Al respecto, las leyes anuales de presupuesto, de endeudamiento y de equilibrio financiero, los créditos suplementarios y la ejecución presupuestal de los Gobiernos Regionales y Gobiernos Locales, en los aspectos que sean pertinentes, se sujetan al cumplimiento de las reglas fiscales.
B31: 2/ El Saldo de Deuda Total esta compuesta por el Saldo de Pasivos, la Deuda Exigible con entidades del Estado y la Deuda Real con el Sistema Privado de Pensiones a cierre del 2022. La definiciones de los componentes se encuentran descritas en el artículo 3 del Decreto Legislativo N° 1275, modificado por el Decreto de Urgencia N° 031-2019.
B32: 3/ Corresponde a la suma de los flujos transferidos por concepto de Recursos Determinados provenientes de Canon, Sobrecanon, Regalías, Renta de Aduanas y Participaciones de los años 2020 y 2021, más el tope presupuestal por el mismo concepto incluido en el Presupuesto Institucional de Apertura 2022, aprobado por la Ley N° 31365, Ley que aprueba el Presupuesto del Sector Público para el Año Fiscal 2022, infornado a través del Memorando N° 0342-2022-EF/50.03 por la Dirección General de Presupuesto Público del Ministerio de Economía y Finanzas.
B33: Fuente: MEF-DGCP, SUNAT, SBS y AFP.

Sheet REGLAS (hidden)
A1: BUSQUEDA | B1: NRO | C1: Ubigeo | D1: Departamento | E1: Entidad | F1: SDT | G1: B01 | H1: PROM_ICT | I1: LIMITE_LEY | J1: Espacio Total | K1: B02 | L1: STD_PROM_ICT | M1: B03 | N1: Cumple_R1 | O1: B04 | P1: ICT | Q1: GCT | R1: ACC | S1: Cumple_R2
A2: 010000 : GOBIERNO REGIONAL DE AMAZONAS | B2: 1 | C2: 010000 | D2: AMAZONAS | E2: GOBIERNO REGIONAL AMAZONAS | F2: =+VLOOKUP(C2,'Anexo_GR '!$C$8:$N$33,3,0) -> 357365.5144 | H2: =+VLOOKUP(C2,'Anexo_GR '!$C$8:$N$33,4,0) -> 880222.83 | I2: =+VLOOKUP(C2,'Anexo_GR '!$C$8:$N$33,5,0) -> 4.96304 | J2: =+VLOOKUP(C2,'Anexo_GR '!$C$8:$N$33,6,0) -> 522857.3155 | L2: =+VLOOKUP(C2,'Anexo_GR '!$C$8:$N$33,7,0) -> 40.59943713 | N2: =+VLOOKUP(C2,'Anexo_GR '!$C$8:$N$33,8,0) -> Cumple | P2: =+VLOOKUP(C2,'Anexo_GR '!$C$8:$N$33,10,0) -> 1039988.076 | Q2: =+VLOOKUP(C2,'Anexo_GR '!$C$8:$N$33,11,0) -> 854969.3989 | R2: =+VLOOKUP(C2,'Anexo_GR '!$C$8:$N$33,12,0) -> 185018.6774 | S2: =+VLOOKUP(C2,'Anexo_GR '!$C$8:$O$33,13,0) -> Cumple
A3: 020000 : GOBIERNO REGIONAL DE ANCASH | B3: 2 | C3: 020000 | D3: ÁNCASH | E3: GOBIERNO REGIONAL ANCASH | F3: =+VLOOKUP(C3,'Anexo_GR '!$C$8:$N$33,3,0) -> 942101.5065 | H3: =+VLOOKUP(C3,'Anexo_GR '!$C$8:$N$33,4,0) -> 2042473.608 | I3: =+VLOOKUP(C3,'Anexo_GR '!$C$8:$N$33,5,0) -> 629153.1886 | J3: =+VLOOKUP(C3,'Anexo_GR '!$C$8:$N$33,6,0) -> 1100372.102 | L3: =+VLOOKUP(C3,'Anexo_GR '!$C$8:$N$33,7,0) -> 46.12551676 | N3: =+VLOOKUP(C3,'Anexo_GR '!$C$8:$N$33,8,0) -> Cumple | P3: =+VLOOKUP(C3,'Anexo_GR '!$C$8:$N$33,10,0) -> 2539095.337 | Q3: =+VLOOKUP(C3,'Anexo_GR '!$C$8:$N$33,11,0) -> 1830895.822 | R3: =+VLOOKUP(C3,'Anexo_GR '!$C$8:$N$33,12,0) -> 708199.5155 | S3: =+VLOOKUP(C3,'Anexo_GR '!$C$8:$O$33,13,0) -> Cumple
A4: 030000 : GOBIERNO REGIONAL DE APURIMAC | B4: 3 | C4: 030000 | D4: APURÍMAC | E4: GOBIERNO REGIONAL APURIMAC | F4: =+VLOOKUP(C4,'Anexo_GR '!$C$8:$N$33,3,0) -> 756366.7951 | H4: =+VLOOKUP(C4,'Anexo_GR '!$C$8:$N$33,4,0) -> 1032768.336 | I4: =+VLOOKUP(C4,'Anexo_GR '!$C$8:$N$33,5,0) -> 130069.8625 | J4: =+VLOOKUP(C4,'Anexo_GR '!$C$8:$N$33,6,0) -> 276401.541 | L4: =+VLOOKUP(C4,'Anexo_GR '!$C$8:$N$33,7,0) -> 73.23683043 | N4: =+VLOOKUP(C4,'Anexo_GR '!$C$8:$N$33,8,0) -> Cumple | P4: =+VLOOKUP(C4,'Anexo_GR '!$C$8:$N$33,10,0) -> 1182461.228 | Q4: =+VLOOKUP(C4,'Anexo_GR '!$C$8:$N$33,11,0) -> 992329.0055 | R4: =+VLOOKUP(C4,'Anexo_GR '!$C$8:$N$33,12,0) -> 190132.2225 | S4: =+VLOOKUP(C4,'Anexo_GR '!$C$8:$O$33,13,0) -> Cumple
A5: 040000 : GOBIERNO REGIONAL DE AREQUIPA | B5: 4 | C5: 040000 | D5: AREQUIPA | E5: GOBIERNO REGIONAL AREQUIPA | F5: =+VLOOKUP(C5,'Anexo_GR '!$C$8:$N$33,3,0) -> 878677.5865 | H5: =+VLOOKUP(C5,'Anexo_GR '!$C$8:$N$33,4,0) -> 1873904.049 | I5: =+VLOOKUP(C5,'Anexo_GR '!$C$8:$N$33,5,0) -> 514380.8962 | J5: =+VLOOKUP(C5,'Anexo_GR '!$C$8:$N$33,6,0) -> 995226.4625 | L5: =+VLOOKUP(C5,'Anexo_GR '!$C$8:$N$33,7,0) -> 46.89021228 | N5: =+VLOOKUP(C5,'Anexo_GR '!$C$8:$N$33,8,0) -> Cumple | P5: =+VLOOKUP(C5,'Anexo_GR '!$C$8:$N$33,10,0) -> 2218758.527 | Q5: =+VLOOKUP(C5,'Anexo_GR '!$C$8:$N$33,11,0) -> 1688376.755 | R5: =+VLOOKUP(C5,'Anexo_GR '!$C$8:$N$33,12,0) -> 530381.7721 | S5: =+VLOOKUP(C5,'Anexo_GR '!$C$8:$O$33,13,0) -> Cumple
A6: 050000 : GOBIERNO REGIONAL DE AYACUCHO | B6: 5 | C6: 050000 | D6: AYACUCHO | E6: GOBIERNO REGIONAL AYACUCHO | F6: =+VLOOKUP(C6,'Anexo_GR '!$C$8:$N$33,3,0) -> 680619.593 | H6: =+VLOOKUP(C6,'Anexo_GR '!$C$8:$N$33,4,0) -> 1406551.421 | I6: =+VLOOKUP(C6,'Anexo_GR '!$C$8:$N$33,5,0) -> 118325.1852 | J6: =+VLOOKUP(C6,'Anexo_GR '!$C$8:$N$33,6,0) -> 725931.8277 | L6: =+VLOOKUP(C6,'Anexo_GR '!$C$8:$N$33,7,0) -> 48.38924358 | N6: =+VLOOKUP(C6,'Anexo_GR '!$C$8:$N$33,8,0) -> Cumple | P6: =+VLOOKUP(C6,'Anexo_GR '!$C$8:$N$33,10,0) -> 1643319.305 | Q6: =+VLOOKUP(C6,'Anexo_GR '!$C$8:$N$33,11,0) -> 1379414.19 | R6: =+VLOOKUP(C6,'Anexo_GR '!$C$8:$N$33,12,0) -> 263905.1144 | S6: Cumple
A7: 060000 : GOBIERNO REGIONAL DE CAJAMARCA | B7: 6 | C7: 060000 | D7: CAJAMARCA | E7: GOBIERNO REGIONAL CAJAMARCA | F7: =+VLOOKUP(C7,'Anexo_GR '!$C$8:$N$33,3,0) -> 1576433.088 | H7: =+VLOOKUP(C7,'Anexo_GR '!$C$8:$N$33,4,0) -> 2368996.529 | I7: =+VLOOKUP(C7,'Anexo_GR '!$C$8:$N$33,5,0) -> 135489.4475 | J7: =+VLOOKUP(C7,'Anexo_GR '!$C$8:$N$33,6,0) -> 792563.441 | L7: =+VLOOKUP(C7,'Anexo_GR '!$C$8:$N$33,7,0) -> 66.5443393 | N7: =+VLOOKUP(C7,'Anexo_GR '!$C$8:$N$33,8,0) -> Cumple | P7: =+VLOOKUP(C7,'Anexo_GR '!$C$8:$N$33,10,0) -> 2844792.147 | Q7: =+VLOOKUP(C7,'Anexo_GR '!$C$8:$N$33,11,0) -> 2351485.576 | R7: =+VLOOKUP(C7,'Anexo_GR '!$C$8:$N$33,12,0) -> 493306.5705 | S7: =+VLOOKUP(C7,'Anexo_GR '!$C$8:$O$33,13,0) -> Cumple
A8: 070000 : GOBIERNO REGIONAL DEL CALLAO | B8: 7 | C8: 070000 | D8: CALLAO | E8: GOBIERNO REGIONAL CALLAO | F8: =+VLOOKUP(C8,'Anexo_GR '!$C$8:$N$33,3,0) -> 529817.7254 | H8: =+VLOOKUP(C8,'Anexo_GR '!$C$8:$N$33,4,0) -> 1186108.92 | I8: =+VLOOKUP(C8,'Anexo_GR '!$C$8:$N$33,5,0) -> 901622.892 | J8: =+VLOOKUP(C8,'Anexo_GR '!$C$8:$N$33,6,0) -> 656291.1947 | L8: =+VLOOKUP(C8,'Anexo_GR '!$C$8:$N$33,7,0) -> 44.66855585 | N8: =+VLOOKUP(C8,'Anexo_GR '!$C$8:$N$33,8,0) -> Cumple | P8: =+VLOOKUP(C8,'Anexo_GR '!$C$8:$N$33,10,0) -> 1356626.445 | Q8: =+VLOOKUP(C8,'Anexo_GR '!$C$8:$N$33,11,0) -> 1171993.145 | R8: =+VLOOKUP(C8,'Anexo_GR '!$C$8:$N$33,12,0) -> 184633.3002 | S8: Cumple
A9: 080000 : GOBIERNO REGIONAL DE CUSCO | B9: 8 | C9: 080000 | D9: CUSCO | E9: GOBIERNO REGIONAL CUSCO | F9: =+VLOOKUP(C9,'Anexo_GR '!$C$8:$N$33,3,0) -> 676316.8517 | H9: =+VLOOKUP(C9,'Anexo_GR '!$C$8:$N$33,4,0) -> 2367821.445 | I9: =+VLOOKUP(C9,'Anexo_GR '!$C$8:$N$33,5,0) -> 1148288.692 | J9: =+VLOOKUP(C9,'Anexo_GR '!$C$8:$N$33,6,0) -> 1691504.594 | L9: =+VLOOKUP(C9,'Anexo_GR '!$C$8:$N$33,7,0) -> 28.56283159 | N9: =+VLOOKUP(C9,'Anexo_GR '!$C$8:$N$33,8,0) -> Cumple | P9: =+VLOOKUP(C9,'Anexo_GR '!$C$8:$N$33,10,0) -> 2852835.726 | Q9: =+VLOOKUP(C9,'Anexo_GR '!$C$8:$N$33,11,0) -> 1939272.743 | R9: =+VLOOKUP(C9,'Anexo_GR '!$C$8:$N$33,12,0) -> 913562.9835 | S9: =+VLOOKUP(C9,'Anexo_GR '!$C$8:$O$33,13,0) -> Cumple
A10: 090000 : GOBIERNO REGIONAL DE HUANCAVELICA | B10: 9 | C10: 090000 | D10: HUANCAVELICA | E10: GOBIERNO REGIONAL HUANCAVELICA | F10: =+VLOOKUP(C10,'Anexo_GR '!$C$8:$N$33,3,0) -> 304527.975 | H10: =+VLOOKUP(C10,'Anexo_GR '!$C$8:$N$33,4,0) -> 1001381.808 | I10: =+VLOOKUP(C10,'Anexo_GR '!$C$8:$N$33,5,0) -> 100787.776 | J10: =+VLOOKUP(C10,'Anexo_GR '!$C$8:$N$33,6,0) -> 696853.833 | L10: =+VLOOKUP(C10,'Anexo_GR '!$C$8:$N$33,7,0) -> 30.41077565 | N10: =+VLOOKUP(C10,'Anexo_GR '!$C$8:$N$33,8,0) -> Cumple | P10: =+VLOOKUP(C10,'Anexo_GR '!$C$8:$N$33,10,0) -> 1148598.93 | Q10: =+VLOOKUP(C10,'Anexo_GR '!$C$8:$N$33,11,0) -> 993799.9356 | R10: =+VLOOKUP(C10,'Anexo_GR '!$C$8:$N$33,12,0) -> 154798.9946 | S10: Cumple
A11: 100000 : GOBIERNO REGIONAL DE HUANUCO | B11: 10 | C11: 100000 | D11: HUÁNUCO | E11: GOBIERNO REGIONAL HUANUCO | F11: =+VLOOKUP(C11,'Anexo_GR '!$C$8:$N$33,3,0) -> 170828.0991 | H11: =+VLOOKUP(C11,'Anexo_GR '!$C$8:$N$33,4,0) -> 1273626.774 | I11: =+VLOOKUP(C11,'Anexo_GR '!$C$8:$N$33,5,0) -> 1009.8155 | J11: =+VLOOKUP(C11,'Anexo_GR '!$C$8:$N$33,6,0) -> 1102798.675 | L11: =+VLOOKUP(C11,'Anexo_GR '!$C$8:$N$33,7,0) -> 13.41272832 | N11: =+VLOOKUP(C11,'Anexo_GR '!$C$8:$N$33,8,0) -> Cumple | P11: =+VLOOKUP(C11,'Anexo_GR '!$C$8:$N$33,10,0) -> 1561158.506 | Q11: =+VLOOKUP(C11,'Anexo_GR '!$C$8:$N$33,11,0) -> 1289027.305 | R11: =+VLOOKUP(C11,'Anexo_GR '!$C$8:$N$33,12,0) -> 272131.2008 | S11: =+VLOOKUP(C11,'Anexo_GR '!$C$8:$O$33,13,0) -> Cumple
A12: 110000 : GOBIERNO REGIONAL DE ICA | B12: 11 | C12: 110000 | D12: ICA | E12: GOBIERNO REGIONAL ICA | F12: =+VLOOKUP(C12,'Anexo_GR '!$C$8:$N$33,3,0) -> 155939.8397 | H12: =+VLOOKUP(C12,'Anexo_GR '!$C$8:$N$33,4,0) -> 1252708.383 | I12: =+VLOOKUP(C12,'Anexo_GR '!$C$8:$N$33,5,0) -> 301653.3428 | J12: =+VLOOKUP(C12,'Anexo_GR '!$C$8:$N$33,6,0) -> 1096768.543 | L12: =+VLOOKUP(C12,'Anexo_GR '!$C$8:$N$33,7,0) -> 12.44821555 | N12: =+VLOOKUP(C12,'Anexo_GR '!$C$8:$N$33,8,0) -> Cumple | P12: =+VLOOKUP(C12,'Anexo_GR '!$C$8:$N$33,10,0) -> 1628613.5 | Q12: =+VLOOKUP(C12,'Anexo_GR '!$C$8:$N$33,11,0) -> 1144418.789 | R12: =+VLOOKUP(C12,'Anexo_GR '!$C$8:$N$33,12,0) -> 484194.7111 | S12: Cumple
A13: 120000 : GOBIERNO REGIONAL DE JUNIN | B13: 12 | C13: 120000 | D13: JUNÍN | E13: GOBIERNO REGIONAL JUNIN | F13: =+VLOOKUP(C13,'Anexo_GR '!$C$8:$N$33,3,0) -> 414001.1369 | H13: =+VLOOKUP(C13,'Anexo_GR '!$C$8:$N$33,4,0) -> 1972048.621 | I13: =+VLOOKUP(C13,'Anexo_GR '!$C$8:$N$33,5,0) -> 39814.10901 | J13: =+VLOOKUP(C13,'Anexo_GR '!$C$8:$N$33,6,0) -> 1558047.484 | L13: =+VLOOKUP(C13,'Anexo_GR '!$C$8:$N$33,7,0) -> 20.99345485 | N13: =+VLOOKUP(C13,'Anexo_GR '!$C$8:$N$33,8,0) -> Cumple | P13: =+VLOOKUP(C13,'Anexo_GR '!$C$8:$N$33,10,0) -> 2407562.231 | Q13: =+VLOOKUP(C13,'Anexo_GR '!$C$8:$N$33,11,0) -> 1920502.781 | R13: =+VLOOKUP(C13,'Anexo_GR '!$C$8:$N$33,12,0) -> 487059.4498 | S13: =+VLOOKUP(C13,'Anexo_GR '!$C$8:$O$33,13,0) -> Cumple
A14: 130000 : GOBIERNO REGIONAL DE LA LIBERTAD | B14: 13 | C14: 130000 | D14: LA LIBERTAD | E14: GOBIERNO REGIONAL LA LIBERTAD | F14: =+VLOOKUP(C14,'Anexo_GR '!$C$8:$N$33,3,0) -> 1216579.553 | H14: =+VLOOKUP(C14,'Anexo_GR '!$C$8:$N$33,4,0) -> 2265571.548 | I14: =+VLOOKUP(C14,'Anexo_GR '!$C$8:$N$33,5,0) -> 155766.2866 | J14: =+VLOOKUP(C14,'Anexo_GR '!$C$8:$N$33,6,0) -> 1048991.995 | L14: =+VLOOKUP(C14,'Anexo_GR '!$C$8:$N$33,7,0) -> 53.69857129 | N14: =+VLOOKUP(C14,'Anexo_GR '!$C$8:$N$33,8,0) -> Cumple | P14: =+VLOOKUP(C14,'Anexo_GR '!$C$8:$N$33,10,0) -> 2767039.321 | Q14: =+VLOOKUP(C14,'Anexo_GR '!$C$8:$N$33,11,0) -> 2246212.755 | R14: =+VLOOKUP(C14,'Anexo_GR '!$C$8:$N$33,12,0) -> 520826.5662 | S14: Cumple
A15: 140000 : GOBIERNO REGIONAL DE LAMBAYEQUE | B15: 14 | C15: 140000 | D15: LAMBAYEQUE | E15: GOBIERNO REGIONAL LAMBAYEQUE | F15: =+VLOOKUP(C15,'Anexo_GR '!$C$8:$N$33,3,0) -> 512828.7428 | H15: =+VLOOKUP(C15,'Anexo_GR '!$C$8:$N$33,4,0) -> 1316150.159 | I15: =+VLOOKUP(C15,'Anexo_GR '!$C$8:$N$33,5,0) -> 369.81925 | J15: =+VLOOKUP(C15,'Anexo_GR '!$C$8:$N$33,6,0) -> 803321.4163 | L15: =+VLOOKUP(C15,'Anexo_GR '!$C$8:$N$33,7,0) -> 38.96430352 | N15: =+VLOOKUP(C15,'Anexo_GR '!$C$8:$N$33,8,0) -> Cumple | P15: =+VLOOKUP(C15,'Anexo_GR '!$C$8:$N$33,10,0) -> 1622598.04 | Q15: =+VLOOKUP(C15,'Anexo_GR '!$C$8:$N$33,11,0) -> 1261843.278 | R15: =+VLOOKUP(C15,'Anexo_GR '!$C$8:$N$33,12,0) -> 360754.7613 | S15: =+VLOOKUP(C15,'Anexo_GR '!$C$8:$O$33,13,0) -> Cumple
A16: 150000 : GOBIERNO REGIONAL DE LIMA | B16: 15 | C16: 150000 | D16: LIMA | E16: GOBIERNO REGIONAL LIMA | F16: =+VLOOKUP(C16,'Anexo_GR '!$C$8:$N$33,3,0) -> 175129.4441 | H16: =+VLOOKUP(C16,'Anexo_GR '!$C$8:$N$33,4,0) -> 1401474.23 | I16: =+VLOOKUP(C16,'Anexo_GR '!$C$8:$N$33,5,0) -> 148907.6712 | J16: =+VLOOKUP(C16,'Anexo_GR '!$C$8:$N$33,6,0) -> 1226344.786 | L16: =+VLOOKUP(C16,'Anexo_GR '!$C$8:$N$33,7,0) -> 12.49608736 | N16: =+VLOOKUP(C16,'Anexo_GR '!$C$8:$N$33,8,0) -> Cumple | P16: =+VLOOKUP(C16,'Anexo_GR '!$C$8:$N$33,10,0) -> 1721786.767 | Q16: =+VLOOKUP(C16,'Anexo_GR '!$C$8:$N$33,11,0) -> 1394939.399 | R16: =+VLOOKUP(C16,'Anexo_GR '!$C$8:$N$33,12,0) -> 326847.3674 | S16: Cumple
A17: 160000 : GOBIERNO REGIONAL DE LORETO | B17: 16 | C17: 160000 | D17: LORETO | E17: GOBIERNO REGIONAL LORETO | F17: =+VLOOKUP(C17,'Anexo_GR '!$C$8:$N$33,3,0) -> 510104.254 | H17: =+VLOOKUP(C17,'Anexo_GR '!$C$8:$N$33,4,0) -> 2206773.433 | I17: =+VLOOKUP(C17,'Anexo_GR '!$C$8:$N$33,5,0) -> 112503.3347 | J17: =+VLOOKUP(C17,'Anexo_GR '!$C$8:$N$33,6,0) -> 1696669.179 | L17: =+VLOOKUP(C17,'Anexo_GR '!$C$8:$N$33,7,0) -> 23.11538857 | N17: =+VLOOKUP(C17,'Anexo_GR '!$C$8:$N$33,8,0) -> Cumple | P17: =+VLOOKUP(C17,'Anexo_GR '!$C$8:$N$33,10,0) -> 2687112.629 | Q17: =+VLOOKUP(C17,'Anexo_GR '!$C$8:$N$33,11,0) -> 2054303.226 | R17: =+VLOOKUP(C17,'Anexo_GR '!$C$8:$N$33,12,0) -> 632809.4022 | S17: =+VLOOKUP(C17,'Anexo_GR '!$C$8:$O$33,13,0) -> Cumple
A18: 170000 : GOBIERNO REGIONAL DE MADRE DE DIOS | B18: 17 | C18: 170000 | D18: MADRE DE DIOS | E18: GOBIERNO REGIONAL MADRE DE DIOS | F18: =+VLOOKUP(C18,'Anexo_GR '!$C$8:$N$33,3,0) -> 52324.77486 | H18: =+VLOOKUP(C18,'Anexo_GR '!$C$8:$N$33,4,0) -> 335434.8868 | I18: =+VLOOKUP(C18,'Anexo_GR '!$C$8:$N$33,5,0) -> 1264.93941 | J18: =+VLOOKUP(C18,'Anexo_GR '!$C$8:$N$33,6,0) -> 283110.112 | L18: =+VLOOKUP(C18,'Anexo_GR '!$C$8:$N$33,7,0) -> 15.59908552 | N18: =+VLOOKUP(C18,'Anexo_GR '!$C$8:$N$33,8,0) -> Cumple | P18: =+VLOOKUP(C18,'Anexo_GR '!$C$8:$N$33,10,0) -> 425325.688 | Q18: =+VLOOKUP(C18,'Anexo_GR '!$C$8:$N$33,11,0) -> 321069.3677 | R18: =+VLOOKUP(C18,'Anexo_GR '!$C$8:$N$33,12,0) -> 104256.3203 | S18: Cumple
A19: 180000 : GOBIERNO REGIONAL DE MOQUEGUA | B19: 18 | C19: 180000 | D19: MOQUEGUA | E19: GOBIERNO REGIONAL MOQUEGUA | F19: =+VLOOKUP(C19,'Anexo_GR '!$C$8:$N$33,3,0) -> 361909.5599 | H19: =+VLOOKUP(C19,'Anexo_GR '!$C$8:$N$33,4,0) -> 486749.5997 | I19: =+VLOOKUP(C19,'Anexo_GR '!$C$8:$N$33,5,0) -> 182049.9596 | J19: =+VLOOKUP(C19,'Anexo_GR '!$C$8:$N$33,6,0) -> 124840.0399 | L19: =+VLOOKUP(C19,'Anexo_GR '!$C$8:$N$33,7,0) -> 74.35230765 | N19: =+VLOOKUP(C19,'Anexo_GR '!$C$8:$N$33,8,0) -> Cumple | P19: =+VLOOKUP(C19,'Anexo_GR '!$C$8:$N$33,10,0) -> 589760.9422 | Q19: =+VLOOKUP(C19,'Anexo_GR '!$C$8:$N$33,11,0) -> 450986.3169 | R19: =+VLOOKUP(C19,'Anexo_GR '!$C$8:$N$33,12,0) -> 138774.6253 | S19: =+VLOOKUP(C19,'Anexo_GR '!$C$8:$O$33,13,0) -> Cumple
A20: 190000 : GOBIERNO REGIONAL DE PASCO | B20: 19 | C20: 190000 | D20: PASCO | E20: GOBIERNO REGIONAL PASCO | F20: =+VLOOKUP(C20,'Anexo_GR '!$C$8:$N$33,3,0) -> 241994.436 | H20: =+VLOOKUP(C20,'Anexo_GR '!$C$8:$N$33,4,0) -> 556963.518 | I20: =+VLOOKUP(C20,'Anexo_GR '!$C$8:$N$33,5,0) -> 24064.95148 | J20: =+VLOOKUP(C20,'Anexo_GR '!$C$8:$N$33,6,0) -> 314969.082 | L20: =+VLOOKUP(C20,'Anexo_GR '!$C$8:$N$33,7,0) -> 43.44888456 | N20: =+VLOOKUP(C20,'Anexo_GR '!$C$8:$N$33,8,0) -> Cumple | P20: =+VLOOKUP(C20,'Anexo_GR '!$C$8:$N$33,10,0) -> 664474.8019 | Q20: =+VLOOKUP(C20,'Anexo_GR '!$C$8:$N$33,11,0) -> 556916.2892 | R20: =+VLOOKUP(C20,'Anexo_GR '!$C$8:$N$33,12,0) -> 107558.5127 | S20: Cumple
A21: 200000 : GOBIERNO REGIONAL DE PIURA | B21: 20 | C21: 200000 | D21: PIURA | E21: GOBIERNO REGIONAL PIURA | F21: =+VLOOKUP(C21,'Anexo_GR '!$C$8:$N$33,3,0) -> 1868384.944 | H21: =+VLOOKUP(C21,'Anexo_GR '!$C$8:$N$33,4,0) -> 2298130.962 | I21: =+VLOOKUP(C21,'Anexo_GR '!$C$8:$N$33,5,0) -> 222372.1552 | J21: =+VLOOKUP(C21,'Anexo_GR '!$C$8:$N$33,6,0) -> 429746.0179 | L21: =+VLOOKUP(C21,'Anexo_GR '!$C$8:$N$33,7,0) -> 81.30019459 | N21: =+VLOOKUP(C21,'Anexo_GR '!$C$8:$N$33,8,0) -> Cumple | P21: =+VLOOKUP(C21,'Anexo_GR '!$C$8:$N$33,10,0) -> 2923363.162 | Q21: =+VLOOKUP(C21,'Anexo_GR '!$C$8:$N$33,11,0) -> 2248048.598 | R21: =+VLOOKUP(C21,'Anexo_GR '!$C$8:$N$33,12,0) -> 675314.5645 | S21: =+VLOOKUP(C21,'Anexo_GR '!$C$8:$O$33,13,0) -> Cumple
A22: 210000 : GOBIERNO REGIONAL DE PUNO | B22: 21 | C22: 210000 | D22: PUNO | E22: GOBIERNO REGIONAL PUNO | F22: =+VLOOKUP(C22,'Anexo_GR '!$C$8:$N$33,3,0) -> 1326809.938 | H22: =+VLOOKUP(C22,'Anexo_GR '!$C$8:$N$33,4,0) -> 2025739.528 | I22: =+VLOOKUP(C22,'Anexo_GR '!$C$8:$N$33,5,0) -> 66121.50021 | J22: =+VLOOKUP(C22,'Anexo_GR '!$C$8:$N$33,6,0) -> 698929.5903 | L22: =+VLOOKUP(C22,'Anexo_GR '!$C$8:$N$33,7,0) -> 65.49755876 | N22: =+VLOOKUP(C22,'Anexo_GR '!$C$8:$N$33,8,0) -> Cumple | P22: =+VLOOKUP(C22,'Anexo_GR '!$C$8:$N$33,10,0) -> 2454183.859 | Q22: =+VLOOKUP(C22,'Anexo_GR '!$C$8:$N$33,11,0) -> 1937349.423 | R22: =+VLOOKUP(C22,'Anexo_GR '!$C$8:$N$33,12,0) -> 516834.4359 | S22: Cumple
A23: 220000 : GOBIERNO REGIONAL DE SAN MARTIN | B23: 22 | C23: 220000 | D23: SAN MARTÍN | E23: GOBIERNO REGIONAL SAN MARTIN | F23: =+VLOOKUP(C23,'Anexo_GR '!$C$8:$N$33,3,0) -> 354346.9578 | H23: =+VLOOKUP(C23,'Anexo_GR '!$C$8:$N$33,4,0) -> 1497494.278 | I23: =+VLOOKUP(C23,'Anexo_GR '!$C$8:$N$33,5,0) -> 847.83174 | J23: =+VLOOKUP(C23,'Anexo_GR '!$C$8:$N$33,6,0) -> 1143147.32 | L23: =+VLOOKUP(C23,'Anexo_GR '!$C$8:$N$33,7,0) -> 23.66265854 | N23: =+VLOOKUP(C23,'Anexo_GR '!$C$8:$N$33,8,0) -> Cumple | P23: =+VLOOKUP(C23,'Anexo_GR '!$C$8:$N$33,10,0) -> 1855723.629 | Q23: =+VLOOKUP(C23,'Anexo_GR '!$C$8:$N$33,11,0) -> 1476499.688 | R23: =+VLOOKUP(C23,'Anexo_GR '!$C$8:$N$33,12,0) -> 379223.941 | S23: =+VLOOKUP(C23,'Anexo_GR '!$C$8:$O$33,13,0) -> Cumple
A24: 230000 : GOBIERNO REGIONAL DE TACNA | B24: 23 | C24: 230000 | D24: TACNA | E24: GOBIERNO REGIONAL TACNA | F24: =+VLOOKUP(C24,'Anexo_GR '!$C$8:$N$33,3,0) -> 110686.5956 | H24: =+VLOOKUP(C24,'Anexo_GR '!$C$8:$N$33,4,0) -> 689616.0857 | I24: =+VLOOKUP(C24,'Anexo_GR '!$C$8:$N$33,5,0) -> 306543.0544 | J24: =+VLOOKUP(C24,'Anexo_GR '!$C$8:$N$33,6,0) -> 578929.4901 | L24: =+VLOOKUP(C24,'Anexo_GR '!$C$8:$N$33,7,0) -> 16.05046604 | N24: =+VLOOKUP(C24,'Anexo_GR '!$C$8:$N$33,8,0) -> Cumple | P24: =+VLOOKUP(C24,'Anexo_GR '!$C$8:$N$33,10,0) -> 861063.1807 | Q24: =+VLOOKUP(C24,'Anexo_GR '!$C$8:$N$33,11,0) -> 585380.9821 | R24: =+VLOOKUP(C24,'Anexo_GR '!$C$8:$N$33,12,0) -> 275682.1985 | S24: Cumple
A25: 240000 : GOBIERNO REGIONAL DE TUMBES | B25: 24 | C25: 240000 | D25: TUMBES | E25: GOBIERNO REGIONAL TUMBES | F25: =+VLOOKUP(C25,'Anexo_GR '!$C$8:$N$33,3,0) -> 242970.0518 | H25: =+VLOOKUP(C25,'Anexo_GR '!$C$8:$N$33,4,0) -> 472471.2486 | I25: =+VLOOKUP(C25,'Anexo_GR '!$C$8:$N$33,5,0) -> 56465.12801 | J25: =+VLOOKUP(C25,'Anexo_GR '!$C$8:$N$33,6,0) -> 229501.1967 | L25: =+VLOOKUP(C25,'Anexo_GR '!$C$8:$N$33,7,0) -> 51.42536241 | N25: =+VLOOKUP(C25,'Anexo_GR '!$C$8:$N$33,8,0) -> Cumple | P25: =+VLOOKUP(C25,'Anexo_GR '!$C$8:$N$33,10,0) -> 555482.4097 | Q25: =+VLOOKUP(C25,'Anexo_GR '!$C$8:$N$33,11,0) -> 458906.7784 | R25: =+VLOOKUP(C25,'Anexo_GR '!$C$8:$N$33,12,0) -> 96575.63138 | S25: =+VLOOKUP(C25,'Anexo_GR '!$C$8:$O$33,13,0) -> Cumple
A26: 250000 : GOBIERNO REGIONAL DE UCAYALI | B26: 25 | C26: 250000 | D26: UCAYALI | E26: GOBIERNO REGIONAL UCAYALI | F26: =+VLOOKUP(C26,'Anexo_GR '!$C$8:$N$33,3,0) -> 360529.7535 | H26: =+VLOOKUP(C26,'Anexo_GR '!$C$8:$N$33,4,0) -> 949282.8054 | I26: =+VLOOKUP(C26,'Anexo_GR '!$C$8:$N$33,5,0) -> 62826.93137 | J26: =+VLOOKUP(C26,'Anexo_GR '!$C$8:$N$33,6,0) -> 588753.0518 | L26: =+VLOOKUP(C26,'Anexo_GR '!$C$8:$N$33,7,0) -> 37.97917243 | N26: =+VLOOKUP(C26,'Anexo_GR '!$C$8:$N$33,8,0) -> Cumple | P26: =+VLOOKUP(C26,'Anexo_GR '!$C$8:$N$33,10,0) -> 1244823.826 | Q26: =+VLOOKUP(C26,'Anexo_GR '!$C$8:$N$33,11,0) -> 906469.5981 | R26: =+VLOOKUP(C26,'Anexo_GR '!$C$8:$N$33,12,0) -> 338354.2284 | S26: Cumple
A27: 260000 : REGION LIMA METROPOLITANA | B27: 26 | C27: 260000 | D27: MM LIMA | E27: REGION LIMA METROPOLITANA | F27: =+VLOOKUP(C27,'Anexo_GR '!$C$8:$N$33,3,0) -> 8599.80067 | H27: =+VLOOKUP(C27,'Anexo_GR '!$C$8:$N$33,4,0) -> 25624.59146 | I27: =+VLOOKUP(C27,'Anexo_GR '!$C$8:$N$33,5,0) -> 19789.40042 | J27: =+VLOOKUP(C27,'Anexo_GR '!$C$8:$N$33,6,0) -> 17024.79079 | L27: =+VLOOKUP(C27,'Anexo_GR '!$C$8:$N$33,7,0) -> 33.5607328 | N27: =+VLOOKUP(C27,'Anexo_GR '!$C$8:$N$33,8,0) -> Cumple | P27: =+VLOOKUP(C27,'Anexo_GR '!$C$8:$N$33,10,0) -> 30781.74576 | Q27: =+VLOOKUP(C27,'Anexo_GR '!$C$8:$N$33,11,0) -> 15977.8837 | R27: =+VLOOKUP(C27,'Anexo_GR '!$C$8:$N$33,12,0) -> 14803.86206 | S27: =+VLOOKUP(C27,'Anexo_GR '!$C$8:$O$33,13,0) -> Cumple
A28: 010101 : MP DE CHACHAPOYAS | B28: 1 | C28: 010101 | D28: AMAZONAS | E28: MP DE CHACHAPOYAS | F28: =+VLOOKUP(C28,'Anexo_GL '!$B$9:$O$1898,4,0) -> 10509.90021 | H28: =+VLOOKUP(C28,'Anexo_GL '!$B$9:$O$1898,5,0) -> 26562.86018 | I28: =+VLOOKUP(C28,'Anexo_GL '!$B$9:$O$1898,6,0) -> 0.9426 | J28: =+VLOOKUP(C28,'Anexo_GL '!$B$9:$O$1898,7,0) -> 16052.95997 | L28: =+VLOOKUP(C28,'Anexo_GL '!$B$9:$O$1898,8,0) -> 39.56614663 | N28: =+VLOOKUP(C28,'Anexo_GL '!$B$9:$O$1898,9,0) -> Cumple | P28: =+VLOOKUP(C28,'Anexo_GL '!$B$9:$O$1898,11,0) -> 24066.69907 | Q28: =+VLOOKUP(C28,'Anexo_GL '!$B$9:$O$1898,12,0) -> 21576.77981 | R28: =+VLOOKUP(C28,'Anexo_GL '!$B$9:$O$1898,13,0) -> 2489.91926 | S28: =+VLOOKUP(C28,'Anexo_GL '!$B$9:$O$1898,14,0) -> Cumple
A29: 010102 : MD DE ASUNCION | B29: 2 | C29: 010102 | D29: AMAZONAS | E29: MD DE ASUNCION | F29: =+VLOOKUP(C29,'Anexo_GL '!$B$9:$O$1898,4,0) -> 41.51621 | H29: =+VLOOKUP(C29,'Anexo_GL '!$B$9:$O$1898,5,0) -> 823.7814325 | I29: =+VLOOKUP(C29,'Anexo_GL '!$B$9:$O$1898,6,0) -> 0.00108 | J29: =+VLOOKUP(C29,'Anexo_GL '!$B$9:$O$1898,7,0) -> 782.2652225 | L29: =+VLOOKUP(C29,'Anexo_GL '!$B$9:$O$1898,8,0) -> 5.039711793 | N29: =+VLOOKUP(C29,'Anexo_GL '!$B$9:$O$1898,9,0) -> Cumple | P29: =+VLOOKUP(C29,'Anexo_GL '!$B$9:$O$1898,11,0) -> 950.5172 | Q29: =+VLOOKUP(C29,'Anexo_GL '!$B$9:$O$1898,12,0) -> 792.43257 | R29: =+VLOOKUP(C29,'Anexo_GL '!$B$9:$O$1898,13,0) -> 158.08463 | S29: =+VLOOKUP(C29,'Anexo_GL '!$B$9:$O$1898,14,0) -> Cumple
A30: 010103 : MD DE BALSAS | B30: 3 | C30: 010103 | D30: AMAZONAS | E30: MD DE BALSAS | F30: =+VLOOKUP(C30,'Anexo_GL '!$B$9:$O$1898,4,0) -> 12.15143 | H30: =+VLOOKUP(C30,'Anexo_GL '!$B$9:$O$1898,5,0) -> 946.9366875 | I30: =+VLOOKUP(C30,'Anexo_GL '!$B$9:$O$1898,6,0) -> 0.00212 | J30: =+VLOOKUP(C30,'Anexo_GL '!$B$9:$O$1898,7,0) -> 934.7852575 | L30: =+VLOOKUP(C30,'Anexo_GL '!$B$9:$O$1898,8,0) -> 1.283235739 | N30: =+VLOOKUP(C30,'Anexo_GL '!$B$9:$O$1898,9,0) -> Cumple | P30: =+VLOOKUP(C30,'Anexo_GL '!$B$9:$O$1898,11,0) -> 1433.80976 | Q30: =+VLOOKUP(C30,'Anexo_GL '!$B$9:$O$1898,12,0) -> 1428.45246 | R30: =+VLOOKUP(C30,'Anexo_GL '!$B$9:$O$1898,13,0) -> 5.3573 | S30: =+VLOOKUP(C30,'Anexo_GL '!$B$9:$O$1898,14,0) -> Cumple
A31: 010104 : MD DE CHETO | B31: 4 | C31: 010104 | D31: AMAZONAS | E31: MD DE CHETO | F31: =+VLOOKUP(C31,'Anexo_GL '!$B$9:$O$1898,4,0) -> 8.2896 | H31: =+VLOOKUP(C31,'Anexo_GL '!$B$9:$O$1898,5,0) -> 891.7533175 | I31: =+VLOOKUP(C31,'Anexo_GL '!$B$9:$O$1898,6,0) -> 0.00079 | J31: =+VLOOKUP(C31,'Anexo_GL '!$B$9:$O$1898,7,0) -> 883.4637175 | L31: =+VLOOKUP(C31,'Anexo_GL '!$B$9:$O$1898,8,0) -> 0.9295844307 | N31: =+VLOOKUP(C31,'Anexo_GL '!$B$9:$O$1898,9,0) -> Cumple | P31: =+VLOOKUP(C31,'Anexo_GL '!$B$9:$O$1898,11,0) -> 1017.01906 | Q31: =+VLOOKUP(C31,'Anexo_GL '!$B$9:$O$1898,12,0) -> 835.08722 | R31: =+VLOOKUP(C31,'Anexo_GL '!$B$9:$O$1898,13,0) -> 181.93184 | S31: =+VLOOKUP(C31,'Anexo_GL '!$B$9:$O$1898,14,0) -> Cumple
A32: 010105 : MD DE CHILIQUIN | B32: 5 | C32: 010105 | D32: AMAZONAS | E32: MD DE CHILIQUIN | F32: =+VLOOKUP(C32,'Anexo_GL '!$B$9:$O$1898,4,0) -> 59.25767 | H32: =+VLOOKUP(C32,'Anexo_GL '!$B$9:$O$1898,5,0) -> 1050.223867 | I32: =+VLOOKUP(C32,'Anexo_GL '!$B$9:$O$1898,6,0) -> 0.00186 | J32: =+VLOOKUP(C32,'Anexo_GL '!$B$9:$O$1898,7,0) -> 990.9661975 | L32: =+VLOOKUP(C32,'Anexo_GL '!$B$9:$O$1898,8,0) -> 5.642384622 | N32: =+VLOOKUP(C32,'Anexo_GL '!$B$9:$O$1898,9,0) -> Cumple | P32: =+VLOOKUP(C32,'Anexo_GL '!$B$9:$O$1898,11,0) -> 890.43042 | Q32: =+VLOOKUP(C32,'Anexo_GL '!$B$9:$O$1898,12,0) -> 702.95644 | R32: =+VLOOKUP(C32,'Anexo_GL '!$B$9:$O$1898,13,0) -> 187.47398 | S32: =+VLOOKUP(C32,'Anexo_GL '!$B$9:$O$1898,14,0) -> Cumple
A33: 010106 : MD DE CHUQUIBAMBA | B33: 6 | C33: 010106 | D33: AMAZONAS | E33: MD DE CHUQUIBAMBA | F33: =+VLOOKUP(C33,'Anexo_GL '!$B$9:$O$1898,4,0) -> 135.27337 | H33: =+VLOOKUP(C33,'Anexo_GL '!$B$9:$O$1898,5,0) -> 1588.484448 | I33: =+VLOOKUP(C33,'Anexo_GL '!$B$9:$O$1898,6,0) -> 0.00347 | J33: =+VLOOKUP(C33,'Anexo_GL '!$B$9:$O$1898,7,0) -> 1453.211078 | L33: =+VLOOKUP(C33,'Anexo_GL '!$B$9:$O$1898,8,0) -> 8.515876263 | N33: =+VLOOKUP(C33,'Anexo_GL '!$B$9:$O$1898,9,0) -> Cumple | P33: =+VLOOKUP(C33,'Anexo_GL '!$B$9:$O$1898,11,0) -> 1257.71191 | Q33: =+VLOOKUP(C33,'Anexo_GL '!$B$9:$O$1898,12,0) -> 1089.22865 | R33: =+VLOOKUP(C33,'Anexo_GL '!$B$9:$O$1898,13,0) -> 168.48326 | S33: =+VLOOKUP(C33,'Anexo_GL '!$B$9:$O$1898,14,0) -> Cumple
A34: 010107 : MD DE GRANADA | B34: 7 | C34: 010107 | D34: AMAZONAS | E34: MD DE GRANADA | F34: =+VLOOKUP(C34,'Anexo_GL '!$B$9:$O$1898,4,0) -> 205.1586 | H34: =+VLOOKUP(C34,'Anexo_GL '!$B$9:$O$1898,5,0) -> 894.903875 | I34: =+VLOOKUP(C34,'Anexo_GL '!$B$9:$O$1898,6,0) -> 0.00079 | J34: =+VLOOKUP(C34,'Anexo_GL '!$B$9:$O$1898,7,0) -> 689.745275 | L34: =+VLOOKUP(C34,'Anexo_GL '!$B$9:$O$1898,8,0) -> 22.92521082 | N34: =+VLOOKUP(C34,'Anexo_GL '!$B$9:$O$1898,9,0) -> Cumple | P34: =+VLOOKUP(C34,'Anexo_GL '!$B$9:$O$1898,11,0) -> 944.00212 | Q34: =+VLOOKUP(C34,'Anexo_GL '!$B$9:$O$1898,12,0) -> 750.4117 | R34: =+VLOOKUP(C34,'Anexo_GL '!$B$9:$O$1898,13,0) -> 193.59042 | S34: =+VLOOKUP(C34,'Anexo_GL '!$B$9:$O$1898,14,0) -> Cumple
A35: 010108 : MD DE HUANCAS | B35: 8 | C35: 010108 | D35: AMAZONAS | E35: MD DE HUANCAS | F35: =+VLOOKUP(C35,'Anexo_GL '!$B$9:$O$1898,4,0) -> 93.08578 | H35: =+VLOOKUP(C35,'Anexo_GL '!$B$9:$O$1898,5,0) -> 967.0004925 | I35: =+VLOOKUP(C35,'Anexo_GL '!$B$9:$O$1898,6,0) -> 0.00134 | J35: =+VLOOKUP(C35,'Anexo_GL '!$B$9:$O$1898,7,0) -> 873.9147125 | L35: =+VLOOKUP(C35,'Anexo_GL '!$B$9:$O$1898,8,0) -> 9.626239151 | N35: =+VLOOKUP(C35,'Anexo_GL '!$B$9:$O$1898,9,0) -> Cumple | P35: =+VLOOKUP(C35,'Anexo_GL '!$B$9:$O$1898,11,0) -> 1245.0558 | Q35: =+VLOOKUP(C35,'Anexo_GL '!$B$9:$O$1898,12,0) -> 874.96129 | R35: =+VLOOKUP(C35,'Anexo_GL '!$B$9:$O$1898,13,0) -> 370.09451 | S35: =+VLOOKUP(C35,'Anexo_GL '!$B$9:$O$1898,14,0) -> Cumple
A36: 010109 : MD DE JALCA GRANDE | B36: 9 | C36: 010109 | D36: AMAZONAS | E36: MD DE JALCA GRANDE | F36: =+VLOOKUP(C36,'Anexo_GL '!$B$9:$O$1898,4,0) -> 170.01306 | H36: =+VLOOKUP(C36,'Anexo_GL '!$B$9:$O$1898,5,0) -> 1869.238635 | I36: =+VLOOKUP(C36,'Anexo_GL '!$B$9:$O$1898,6,0) -> 0.97945 | J36: =+VLOOKUP(C36,'Anexo_GL '!$B$9:$O$1898,7,0) -> 1699.225575 | L36: =+VLOOKUP(C36,'Anexo_GL '!$B$9:$O$1898,8,0) -> 9.095310616 | N36: =+VLOOKUP(C36,'Anexo_GL '!$B$9:$O$1898,9,0) -> Cumple | P36: =+VLOOKUP(C36,'Anexo_GL '!$B$9:$O$1898,11,0) -> 1993.43755 | Q36: =+VLOOKUP(C36,'Anexo_GL '!$B$9:$O$1898,12,0) -> 1410.52781 | R36: =+VLOOKUP(C36,'Anexo_GL '!$B$9:$O$1898,13,0) -> 582.90974 | S36: =+VLOOKUP(C36,'Anexo_GL '!$B$9:$O$1898,14,0) -> Cumple
A37: 010110 : MD DE LEIMEBAMBA | B37: 10 | C37: 010110 | D37: AMAZONAS | E37: MD DE LEIMEBAMBA | F37: =+VLOOKUP(C37,'Anexo_GL '!$B$9:$O$1898,4,0) -> 56.93235 | H37: =+VLOOKUP(C37,'Anexo_GL '!$B$9:$O$1898,5,0) -> 2551.598402 | I37: =+VLOOKUP(C37,'Anexo_GL '!$B$9:$O$1898,6,0) -> 0.00559 | J37: =+VLOOKUP(C37,'Anexo_GL '!$B$9:$O$1898,7,0) -> 2494.666052 | L37: =+VLOOKUP(C37,'Anexo_GL '!$B$9:$O$1898,8,0) -> 2.231242579 | N37: =+VLOOKUP(C37,'Anexo_GL '!$B$9:$O$1898,9,0) -> Cumple | P37: =+VLOOKUP(C37,'Anexo_GL '!$B$9:$O$1898,11,0) -> 1390.9511 | Q37: =+VLOOKUP(C37,'Anexo_GL '!$B$9:$O$1898,12,0) -> 1151.91537 | R37: =+VLOOKUP(C37,'Anexo_GL '!$B$9:$O$1898,13,0) -> 239.03573 | S37: =+VLOOKUP(C37,'Anexo_GL '!$B$9:$O$1898,14,0) -> Cumple
A38: 010111 : MD DE LEVANTO | B38: 11 | C38: 010111 | D38: AMAZONAS | E38: MD DE LEVANTO | F38: =+VLOOKUP(C38,'Anexo_GL '!$B$9:$O$1898,4,0) -> 470.4075 | H38: =+VLOOKUP(C38,'Anexo_GL '!$B$9:$O$1898,5,0) -> 964.943725 | I38: =+VLOOKUP(C38,'Anexo_GL '!$B$9:$O$1898,6,0) -> 0.00134 | J38: =+VLOOKUP(C38,'Anexo_GL '!$B$9:$O$1898,7,0) -> 494.536225 | L38: =+VLOOKUP(C38,'Anexo_GL '!$B$9:$O$1898,8,0) -> 48.74973408 | N38: =+VLOOKUP(C38,'Anexo_GL '!$B$9:$O$1898,9,0) -> Cumple | P38: =+VLOOKUP(C38,'Anexo_GL '!$B$9:$O$1898,11,0) -> 1088.01972 | Q38: =+VLOOKUP(C38,'Anexo_GL '!$B$9:$O$1898,12,0) -> 1026.20382 | R38: =+VLOOKUP(C38,'Anexo_GL '!$B$9:$O$1898,13,0) -> 61.8159 | S38: =+VLOOKUP(C38,'Anexo_GL '!$B$9:$O$1898,14,0) -> Cumple
A39: 010112 : MD DE MAGDALENA | B39: 12 | C39: 010112 | D39: AMAZONAS | E39: MD DE MAGDALENA | F39: =+VLOOKUP(C39,'Anexo_GL '!$B$9:$O$1898,4,0) -> 392.39478 | H39: =+VLOOKUP(C39,'Anexo_GL '!$B$9:$O$1898,5,0) -> 844.1176825 | I39: =+VLOOKUP(C39,'Anexo_GL '!$B$9:$O$1898,6,0) -> 0.00079 | J39: =+VLOOKUP(C39,'Anexo_GL '!$B$9:$O$1898,7,0) -> 451.7229025 | L39: =+VLOOKUP(C39,'Anexo_GL '!$B$9:$O$1898,8,0) -> 46.4857908 | N39: =+VLOOKUP(C39,'Anexo_GL '!$B$9:$O$1898,9,0) -> Cumple | P39: =+VLOOKUP(C39,'Anexo_GL '!$B$9:$O$1898,11,0) -> 1221.26404 | Q39: =+VLOOKUP(C39,'Anexo_GL '!$B$9:$O$1898,12,0) -> 990.17194 | R39: =+VLOOKUP(C39,'Anexo_GL '!$B$9:$O$1898,13,0) -> 231.0921 | S39: =+VLOOKUP(C39,'Anexo_GL '!$B$9:$O$1898,14,0) -> Cumple
A40: 010113 : MD DE MARISCAL CASTILLA | B40: 13 | C40: 010113 | D40: AMAZONAS | E40: MD DE MARISCAL CASTILLA | F40: =+VLOOKUP(C40,'Anexo_GL '!$B$9:$O$1898,4,0) -> 23.31776 | H40: =+VLOOKUP(C40,'Anexo_GL '!$B$9:$O$1898,5,0) -> 943.842025 | I40: =+VLOOKUP(C40,'Anexo_GL '!$B$9:$O$1898,6,0) -> 0.00186 | J40: =+VLOOKUP(C40,'Anexo_GL '!$B$9:$O$1898,7,0) -> 920.524265 | L40: =+VLOOKUP(C40,'Anexo_GL '!$B$9:$O$1898,8,0) -> 2.470515127 | N40: =+VLOOKUP(C40,'Anexo_GL '!$B$9:$O$1898,9,0) -> Cumple | P40: =+VLOOKUP(C40,'Anexo_GL '!$B$9:$O$1898,11,0) -> 1018.03107 | Q40: =+VLOOKUP(C40,'Anexo_GL '!$B$9:$O$1898,12,0) -> 778.26014 | R40: =+VLOOKUP(C40,'Anexo_GL '!$B$9:$O$1898,13,0) -> 239.77093 | S40: =+VLOOKUP(C40,'Anexo_GL '!$B$9:$O$1898,14,0) -> Cumple
A41: 010114 : MD DE MOLINOPAMPA | B41: 14 | C41: 010114 | D41: AMAZONAS | E41: MD DE MOLINOPAMPA | F41: =+VLOOKUP(C41,'Anexo_GL '!$B$9:$O$1898,4,0) -> 183.12924 | H41: =+VLOOKUP(C41,'Anexo_GL '!$B$9:$O$1898,5,0) -> 1037.899678 | I41: =+VLOOKUP(C41,'Anexo_GL '!$B$9:$O$1898,6,0) -> 0.00571 | J41: =+VLOOKUP(C41,'Anexo_GL '!$B$9:$O$1898,7,0) -> 854.7704375 | L41: =+VLOOKUP(C41,'Anexo_GL '!$B$9:$O$1898,8,0) -> 17.64421398 | N41: =+VLOOKUP(C41,'Anexo_GL '!$B$9:$O$1898,9,0) -> Cumple | P41: =+VLOOKUP(C41,'Anexo_GL '!$B$9:$O$1898,11,0) -> 1294.31102 | Q41: =+VLOOKUP(C41,'Anexo_GL '!$B$9:$O$1898,12,0) -> 1096.33471 | R41: =+VLOOKUP(C41,'Anexo_GL '!$B$9:$O$1898,13,0) -> 197.97631 | S41: =+VLOOKUP(C41,'Anexo_GL '!$B$9:$O$1898,14,0) -> Cumple
A42: 010115 : MD DE MONTEVIDEO | B42: 15 | C42: 010115 | D42: AMAZONAS | E42: MD DE MONTEVIDEO | F42: =+VLOOKUP(C42,'Anexo_GL '!$B$9:$O$1898,4,0) -> 133.98071 | H42: =+VLOOKUP(C42,'Anexo_GL '!$B$9:$O$1898,5,0) -> 866.41888 | I42: =+VLOOKUP(C42,'Anexo_GL '!$B$9:$O$1898,6,0) -> 0.00052 | J42: =+VLOOKUP(C42,'Anexo_GL '!$B$9:$O$1898,7,0) -> 732.43817 | L42: =+VLOOKUP(C42,'Anexo_GL '!$B$9:$O$1898,8,0) -> 15.46373389 | N42: =+VLOOKUP(C42,'Anexo_GL '!$B$9:$O$1898,9,0) -> Cumple | P42: =+VLOOKUP(C42,'Anexo_GL '!$B$9:$O$1898,11,0) -> 746.84111 | Q42: =+VLOOKUP(C42,'Anexo_GL '!$B$9:$O$1898,12,0) -> 555.57813 | R42: =+VLOOKUP(C42,'Anexo_GL '!$B$9:$O$1898,13,0) -> 191.26298 | S42: =+VLOOKUP(C42,'Anexo_GL '!$B$9:$O$1898,14,0) -> Cumple
A43: 010116 : MD DE OLLEROS | B43: 16 | C43: 010116 | D43: AMAZONAS | E43: MD DE OLLEROS | F43: =+VLOOKUP(C43,'Anexo_GL '!$B$9:$O$1898,4,0) -> 73.17216 | H43: =+VLOOKUP(C43,'Anexo_GL '!$B$9:$O$1898,5,0) -> 748.4849675 | I43: =+VLOOKUP(C43,'Anexo_GL '!$B$9:$O$1898,6,0) -> 0.00186 | J43: =+VLOOKUP(C43,'Anexo_GL '!$B$9:$O$1898,7,0) -> 675.3128075 | L43: =+VLOOKUP(C43,'Anexo_GL '!$B$9:$O$1898,8,0) -> 9.776036016 | N43: =+VLOOKUP(C43,'Anexo_GL '!$B$9:$O$1898,9,0) -> Cumple | P43: =+VLOOKUP(C43,'Anexo_GL '!$B$9:$O$1898,11,0) -> 1015.36897 | Q43: =+VLOOKUP(C43,'Anexo_GL '!$B$9:$O$1898,12,0) -> 780.32888 | R43: =+VLOOKUP(C43,'Anexo_GL '!$B$9:$O$1898,13,0) -> 235.04009 | S43: =+VLOOKUP(C43,'Anexo_GL '!$B$9:$O$1898,14,0) -> Cumple
A44: 010117 : MD DE QUINJALCA | B44: 17 | C44: 010117 | D44: AMAZONAS | E44: MD DE QUINJALCA | F44: =+VLOOKUP(C44,'Anexo_GL '!$B$9:$O$1898,4,0) -> 25.85365 | H44: =+VLOOKUP(C44,'Anexo_GL '!$B$9:$O$1898,5,0) -> 717.67503 | I44: =+VLOOKUP(C44,'Anexo_GL '!$B$9:$O$1898,6,0) -> 0.00347 | J44: =+VLOOKUP(C44,'Anexo_GL '!$B$9:$O$1898,7,0) -> 691.82138 | L44: =+VLOOKUP(C44,'Anexo_GL '!$B$9:$O$1898,8,0) -> 3.602417378 | N44: =+VLOOKUP(C44,'Anexo_GL '!$B$9:$O$1898,9,0) -> Cumple | P44: =+VLOOKUP(C44,'Anexo_GL '!$B$9:$O$1898,11,0) -> 850.30715 | Q44: =+VLOOKUP(C44,'Anexo_GL '!$B$9:$O$1898,12,0) -> 756.96946 | R44: =+VLOOKUP(C44,'Anexo_GL '!$B$9:$O$1898,13,0) -> 93.33769 | S44: =+VLOOKUP(C44,'Anexo_GL '!$B$9:$O$1898,14,0) -> Cumple
A45: 010118 : MD DE SAN FRANCISCO DE DAGUAS | B45: 18 | C45: 010118 | D45: AMAZONAS | E45: MD DE SAN FRANCISCO DE DAGUAS | F45: =+VLOOKUP(C45,'Anexo_GL '!$B$9:$O$1898,4,0) -> 48.1432 | H45: =+VLOOKUP(C45,'Anexo_GL '!$B$9:$O$1898,5,0) -> 759.1483425 | I45: =+VLOOKUP(C45,'Anexo_GL '!$B$9:$O$1898,6,0) -> 0.00055 | J45: =+VLOOKUP(C45,'Anexo_GL '!$B$9:$O$1898,7,0) -> 711.0051425 | L45: =+VLOOKUP(C45,'Anexo_GL '!$B$9:$O$1898,8,0) -> 6.341738143 | N45: =+VLOOKUP(C45,'Anexo_GL '!$B$9:$O$1898,9,0) -> Cumple | P45: =+VLOOKUP(C45,'Anexo_GL '!$B$9:$O$1898,11,0) -> 1003.64406 | Q45: =+VLOOKUP(C45,'Anexo_GL '!$B$9:$O$1898,12,0) -> 739.56856 | R45: =+VLOOKUP(C45,'Anexo_GL '!$B$9:$O$1898,13,0) -> 264.0755 | S45: =+VLOOKUP(C45,'Anexo_GL '!$B$9:$O$1898,14,0) -> Cumple
A46: 010119 : MD DE SAN ISIDRO DE MAYNO | B46: 19 | C46: 010119 | D46: AMAZONAS | E46: MD DE SAN ISIDRO DE MAYNO | F46: =+VLOOKUP(C46,'Anexo_GL '!$B$9:$O$1898,4,0) -> 268.62569 | H46: =+VLOOKUP(C46,'Anexo_GL '!$B$9:$O$1898,5,0) -> 790.6554775 | I46: =+VLOOKUP(C46,'Anexo_GL '!$B$9:$O$1898,6,0) -> 0.00079 | J46: =+VLOOKUP(C46,'Anexo_GL '!$B$9:$O$1898,7,0) -> 522.0297875 | L46: =+VLOOKUP(C46,'Anexo_GL '!$B$9:$O$1898,8,0) -> 33.97506217 | N46: =+VLOOKUP(C46,'Anexo_GL '!$B$9:$O$1898,9,0) -> Cumple | P46: =+VLOOKUP(C46,'Anexo_GL '!$B$9:$O$1898,11,0) -> 1044.10196 | Q46: =+VLOOKUP(C46,'Anexo_GL '!$B$9:$O$1898,12,0) -> 849.5617 | R46: =+VLOOKUP(C46,'Anexo_GL '!$B$9:$O$1898,13,0) -> 194.54026 | S46: =+VLOOKUP(C46,'Anexo_GL '!$B$9:$O$1898,14,0) -> Cumple
A47: 010120 : MD DE SOLOCO | B47: 20 | C47: 010120 | D47: AMAZONAS | E47: MD DE SOLOCO | F47: =+VLOOKUP(C47,'Anexo_GL '!$B$9:$O$1898,4,0) -> 947.67434 | H47: =+VLOOKUP(C47,'Anexo_GL '!$B$9:$O$1898,5,0) -> 1012.20184 | I47: =+VLOOKUP(C47,'Anexo_GL '!$B$9:$O$1898,6,0) -> 0.00212 | J47: =+VLOOKUP(C47,'Anexo_GL '!$B$9:$O$1898,7,0) -> 64.5275 | L47: =+VLOOKUP(C47,'Anexo_GL '!$B$9:$O$1898,8,0) -> 93.62503629 | N47: =+VLOOKUP(C47,'Anexo_GL '!$B$9:$O$1898,9,0) -> Cumple | P47: =+VLOOKUP(C47,'Anexo_GL '!$B$9:$O$1898,11,0) -> 1085.05212 | Q47: =+VLOOKUP(C47,'Anexo_GL '!$B$9:$O$1898,12,0) -> 826.1916 | R47: =+VLOOKUP(C47,'Anexo_GL '!$B$9:$O$1898,13,0) -> 258.86052 | S47: =+VLOOKUP(C47,'Anexo_GL '!$B$9:$O$1898,14,0) -> Cumple
A48: 010121 : MD DE SONCHE | B48: 21 | C48: 010121 | D48: AMAZONAS | E48: MD DE SONCHE | F48: =+VLOOKUP(C48,'Anexo_GL '!$B$9:$O$1898,4,0) -> 163.69177 | H48: =+VLOOKUP(C48,'Anexo_GL '!$B$9:$O$1898,5,0) -> 945.828275 | I48: =+VLOOKUP(C48,'Anexo_GL '!$B$9:$O$1898,6,0) -> 0.00226 | J48: =+VLOOKUP(C48,'Anexo_GL '!$B$9:$O$1898,7,0) -> 782.136505 | L48: =+VLOOKUP(C48,'Anexo_GL '!$B$9:$O$1898,8,0) -> 17.30671141 | N48: =+VLOOKUP(C48,'Anexo_GL '!$B$9:$O$1898,9,0) -> Cumple | P48: =+VLOOKUP(C48,'Anexo_GL '!$B$9:$O$1898,11,0) -> 1082.02559 | Q48: =+VLOOKUP(C48,'Anexo_GL '!$B$9:$O$1898,12,0) -> 1126.92956 | R48: =+VLOOKUP(C48,'Anexo_GL '!$B$9:$O$1898,13,0) -> -44.90397 | S48: =+VLOOKUP(C48,'Anexo_GL '!$B$9:$O$1898,14,0) -> No Cumple
A49: 010201 : MP DE BAGUA - LA PECA | B49: 22 | C49: 010201 | D49: AMAZONAS | E49: MP DE BAGUA - LA PECA | F49: =+VLOOKUP(C49,'Anexo_GL '!$B$9:$O$1898,4,0) -> 1320.04818 | H49: =+VLOOKUP(C49,'Anexo_GL '!$B$9:$O$1898,5,0) -> 24135.53534 | I49: =+VLOOKUP(C49,'Anexo_GL '!$B$9:$O$1898,6,0) -> 0.82984 | J49: =+VLOOKUP(C49,'Anexo_GL '!$B$9:$O$1898,7,0) -> 22815.48716 | L49: =+VLOOKUP(C49,'Anexo_GL '!$B$9:$O$1898,8,0) -> 5.469313861 | N49: =+VLOOKUP(C49,'Anexo_GL '!$B$9:$O$1898,9,0) -> Cumple | P49: =+VLOOKUP(C49,'Anexo_GL '!$B$9:$O$1898,11,0) -> 21654.96537 | Q49: =+VLOOKUP(C49,'Anexo_GL '!$B$9:$O$1898,12,0) -> 19349.8236 | R49: =+VLOOKUP(C49,'Anexo_GL '!$B$9:$O$1898,13,0) -> 2305.14177 | S49: =+VLOOKUP(C49,'Anexo_GL '!$B$9:$O$1898,14,0) -> Cumple
A50: 010202 : MD DE ARAMANGO | B50: 23 | C50: 010202 | D50: AMAZONAS | E50: MD DE ARAMANGO | F50: =+VLOOKUP(C50,'Anexo_GL '!$B$9:$O$1898,4,0) -> 3091.8163 | H50: =+VLOOKUP(C50,'Anexo_GL '!$B$9:$O$1898,5,0) -> 5215.798967 | I50: =+VLOOKUP(C50,'Anexo_GL '!$B$9:$O$1898,6,0) -> 1.13132 | J50: =+VLOOKUP(C50,'Anexo_GL '!$B$9:$O$1898,7,0) -> 2123.982668 | L50: =+VLOOKUP(C50,'Anexo_GL '!$B$9:$O$1898,8,0) -> 59.27790391 | N50: =+VLOOKUP(C50,'Anexo_GL '!$B$9:$O$1898,9,0) -> Cumple | P50: =+VLOOKUP(C50,'Anexo_GL '!$B$9:$O$1898,11,0) -> 5888.64561 | Q50: =+VLOOKUP(C50,'Anexo_GL '!$B$9:$O$1898,12,0) -> 3695.9657 | R50: =+VLOOKUP(C50,'Anexo_GL '!$B$9:$O$1898,13,0) -> 2192.67991 | S50: =+VLOOKUP(C50,'Anexo_GL '!$B$9:$O$1898,14,0) -> Cumple
A51: 010203 : MD DE COPALLIN | B51: 24 | C51: 010203 | D51: AMAZONAS | E51: MD DE COPALLIN | F51: =+VLOOKUP(C51,'Anexo_GL '!$B$9:$O$1898,4,0) -> 647.9362 | H51: =+VLOOKUP(C51,'Anexo_GL '!$B$9:$O$1898,5,0) -> 2526.098985 | I51: =+VLOOKUP(C51,'Anexo_GL '!$B$9:$O$1898,6,0) -> 0.00919 | J51: =+VLOOKUP(C51,'Anexo_GL '!$B$9:$O$1898,7,0) -> 1878.162785 | L51: =+VLOOKUP(C51,'Anexo_GL '!$B$9:$O$1898,8,0) -> 25.6496758 | N51: =+VLOOKUP(C51,'Anexo_GL '!$B$9:$O$1898,9,0) -> Cumple | P51: =+VLOOKUP(C51,'Anexo_GL '!$B$9:$O$1898,11,0) -> 3207.78271 | Q51: =+VLOOKUP(C51,'Anexo_GL '!$B$9:$O$1898,12,0) -> 2666.37312 | R51: =+VLOOKUP(C51,'Anexo_GL '!$B$9:$O$1898,13,0) -> 541.40959 | S51: =+VLOOKUP(C51,'Anexo_GL '!$B$9:$O$1898,14,0) -> Cumple
A52: 010204 : MD DE EL PARCO | B52: 25 | C52: 010204 | D52: AMAZONAS | E52: MD DE EL PARCO | F52: =+VLOOKUP(C52,'Anexo_GL '!$B$9:$O$1898,4,0) -> 413.24048 | H52: =+VLOOKUP(C52,'Anexo_GL '!$B$9:$O$1898,5,0) -> 4221.043397 | I52: =+VLOOKUP(C52,'Anexo_GL '!$B$9:$O$1898,6,0) -> 0.00314 | J52: =+VLOOKUP(C52,'Anexo_GL '!$B$9:$O$1898,7,0) -> 3807.802918 | L52: =+VLOOKUP(C52,'Anexo_GL '!$B$9:$O$1898,8,0) -> 9.790007851 | N52: =+VLOOKUP(C52,'Anexo_GL '!$B$9:$O$1898,9,0) -> Cumple | P52: =+VLOOKUP(C52,'Anexo_GL '!$B$9:$O$1898,11,0) -> 1010.90429 | Q52: =+VLOOKUP(C52,'Anexo_GL '!$B$9:$O$1898,12,0) -> 972.4032 | R52: =+VLOOKUP(C52,'Anexo_GL '!$B$9:$O$1898,13,0) -> 38.50109 | S52: =+VLOOKUP(C52,'Anexo_GL '!$B$9:$O$1898,14,0) -> Cumple
A53: 010205 : MD DE IMAZA | B53: 26 | C53: 010205 | D53: AMAZONAS | E53: MD DE IMAZA | F53: =+VLOOKUP(C53,'Anexo_GL '!$B$9:$O$1898,4,0) -> 7890.49627 | H53: =+VLOOKUP(C53,'Anexo_GL '!$B$9:$O$1898,5,0) -> 11658.76625 | I53: =+VLOOKUP(C53,'Anexo_GL '!$B$9:$O$1898,6,0) -> 2.3106 | J53: =+VLOOKUP(C53,'Anexo_GL '!$B$9:$O$1898,7,0) -> 3768.269983 | L53: =+VLOOKUP(C53,'Anexo_GL '!$B$9:$O$1898,8,0) -> 67.67865569 | N53: =+VLOOKUP(C53,'Anexo_GL '!$B$9:$O$1898,9,0) -> Cumple | P53: =+VLOOKUP(C53,'Anexo_GL '!$B$9:$O$1898,11,0) -> 15538.43182 | Q53: =+VLOOKUP(C53,'Anexo_GL '!$B$9:$O$1898,12,0) -> 9796.71378 | R53: =+VLOOKUP(C53,'Anexo_GL '!$B$9:$O$1898,13,0) -> 5741.71804 | S53: =+VLOOKUP(C53,'Anexo_GL '!$B$9:$O$1898,14,0) -> Cumple
A54: 010206 : MD DE LA PECA | B54: 27 | C54: 010206 | D54: AMAZONAS | E54: MD DE LA PECA | F54: =+VLOOKUP(C54,'Anexo_GL '!$B$9:$O$1898,4,0) -> 232.57715 | H54: =+VLOOKUP(C54,'Anexo_GL '!$B$9:$O$1898,5,0) -> 3435.20034 | I54: =+VLOOKUP(C54,'Anexo_GL '!$B$9:$O$1898,6,0) -> 0.01181 | J54: =+VLOOKUP(C54,'Anexo_GL '!$B$9:$O$1898,7,0) -> 3202.62319 | L54: =+VLOOKUP(C54,'Anexo_GL '!$B$9:$O$1898,8,0) -> 6.770410077 | N54: =+VLOOKUP(C54,'Anexo_GL '!$B$9:$O$1898,9,0) -> Cumple | P54: =+VLOOKUP(C54,'Anexo_GL '!$B$9:$O$1898,11,0) -> 3745.25577 | Q54: =+VLOOKUP(C54,'Anexo_GL '!$B$9:$O$1898,12,0) -> 3219.03786 | R54: =+VLOOKUP(C54,'Anexo_GL '!$B$9:$O$1898,13,0) -> 526.21791 | S54: =+VLOOKUP(C54,'Anexo_GL '!$B$9:$O$1898,14,0) -> Cumple
A55: 010301 : MP DE BONGARA - JUMBILLA | B55: 28 | C55: 010301 | D55: AMAZONAS | E55: MP DE BONGARA - JUMBILLA | F55: =+VLOOKUP(C55,'Anexo_GL '!$B$9:$O$1898,4,0) -> 2042.05427 | H55: =+VLOOKUP(C55,'Anexo_GL '!$B$9:$O$1898,5,0) -> 6744.756765 | I55: =+VLOOKUP(C55,'Anexo_GL '!$B$9:$O$1898,6,0) -> 0.0016 | J55: =+VLOOKUP(C55,'Anexo_GL '!$B$9:$O$1898,7,0) -> 4702.702495 | L55: =+VLOOKUP(C55,'Anexo_GL '!$B$9:$O$1898,8,0) -> 30.27617364 | N55: =+VLOOKUP(C55,'Anexo_GL '!$B$9:$O$1898,9,0) -> Cumple | P55: =+VLOOKUP(C55,'Anexo_GL '!$B$9:$O$1898,11,0) -> 5074.57222 | Q55: =+VLOOKUP(C55,'Anexo_GL '!$B$9:$O$1898,12,0) -> 3569.10361 | R55: =+VLOOKUP(C55,'Anexo_GL '!$B$9:$O$1898,13,0) -> 1505.46861 | S55: =+VLOOKUP(C55,'Anexo_GL '!$B$9:$O$1898,14,0) -> Cumple
A56: 010302 : MD DE CHISQUILLA | B56: 29 | C56: 010302 | D56: AMAZONAS | E56: MD DE CHISQUILLA | F56: =+VLOOKUP(C56,'Anexo_GL '!$B$9:$O$1898,4,0) -> 54.51828 | H56: =+VLOOKUP(C56,'Anexo_GL '!$B$9:$O$1898,5,0) -> 829.271575 | I56: =+VLOOKUP(C56,'Anexo_GL '!$B$9:$O$1898,6,0) -> 0.00108 | J56: =+VLOOKUP(C56,'Anexo_GL '!$B$9:$O$1898,7,0) -> 774.753295 | L56: =+VLOOKUP(C56,'Anexo_GL '!$B$9:$O$1898,8,0) -> 6.574237155 | N56: =+VLOOKUP(C56,'Anexo_GL '!$B$9:$O$1898,9,0) -> Cumple | P56: =+VLOOKUP(C56,'Anexo_GL '!$B$9:$O$1898,11,0) -> 960.81709 | Q56: =+VLOOKUP(C56,'Anexo_GL '!$B$9:$O$1898,12,0) -> 700.15038 | R56: =+VLOOKUP(C56,'Anexo_GL '!$B$9:$O$1898,13,0) -> 260.66671 | S56: =+VLOOKUP(C56,'Anexo_GL '!$B$9:$O$1898,14,0) -> Cumple
A57: 010303 : MD DE CHURUJA | B57: 30 | C57: 010303 | D57: AMAZONAS | E57: MD DE CHURUJA | F57: =+VLOOKUP(C57,'Anexo_GL '!$B$9:$O$1898,4,0) -> 34.72453 | H57: =+VLOOKUP(C57,'Anexo_GL '!$B$9:$O$1898,5,0) -> 723.671665 | I57: =+VLOOKUP(C57,'Anexo_GL '!$B$9:$O$1898,6,0) -> 0.00052 | J57: =+VLOOKUP(C57,'Anexo_GL '!$B$9:$O$1898,7,0) -> 688.947135 | L57: =+VLOOKUP(C57,'Anexo_GL '!$B$9:$O$1898,8,0) -> 4.798381874 | N57: =+VLOOKUP(C57,'Anexo_GL '!$B$9:$O$1898,9,0) -> Cumple | P57: =+VLOOKUP(C57,'Anexo_GL '!$B$9:$O$1898,11,0) -> 1066.62217 | Q57: =+VLOOKUP(C57,'Anexo_GL '!$B$9:$O$1898,12,0) -> 840.17737 | R57: =+VLOOKUP(C57,'Anexo_GL '!$B$9:$O$1898,13,0) -> 226.4448 | S57: =+VLOOKUP(C57,'Anexo_GL '!$B$9:$O$1898,14,0) -> Cumple
A58: 010304 : MD DE COROSHA | B58: 31 | C58: 010304 | D58: AMAZONAS | E58: MD DE COROSHA | F58: =+VLOOKUP(C58,'Anexo_GL '!$B$9:$O$1898,4,0) -> 52.9584 | H58: =+VLOOKUP(C58,'Anexo_GL '!$B$9:$O$1898,5,0) -> 1055.946917 | I58: =+VLOOKUP(C58,'Anexo_GL '!$B$9:$O$1898,6,0) -> 0.00347 | J58: =+VLOOKUP(C58,'Anexo_GL '!$B$9:$O$1898,7,0) -> 1002.988517 | L58: =+VLOOKUP(C58,'Anexo_GL '!$B$9:$O$1898,8,0) -> 5.015252104 | N58: =+VLOOKUP(C58,'Anexo_GL '!$B$9:$O$1898,9,0) -> Cumple | P58: =+VLOOKUP(C58,'Anexo_GL '!$B$9:$O$1898,11,0) -> 1023.48523 | Q58: =+VLOOKUP(C58,'Anexo_GL '!$B$9:$O$1898,12,0) -> 908.28299 | R58: =+VLOOKUP(C58,'Anexo_GL '!$B$9:$O$1898,13,0) -> 115.20224 | S58: =+VLOOKUP(C58,'Anexo_GL '!$B$9:$O$1898,14,0) -> Cumple
A59: 010305 : MD DE CUISPES | B59: 32 | C59: 010305 | D59: AMAZONAS | E59: MD DE CUISPES | F59: =+VLOOKUP(C59,'Anexo_GL '!$B$9:$O$1898,4,0) -> 28.71933 | H59: =+VLOOKUP(C59,'Anexo_GL '!$B$9:$O$1898,5,0) -> 783.271465 | I59: =+VLOOKUP(C59,'Anexo_GL '!$B$9:$O$1898,6,0) -> 0.0016 | J59: =+VLOOKUP(C59,'Anexo_GL '!$B$9:$O$1898,7,0) -> 754.552135 | L59: =+VLOOKUP(C59,'Anexo_GL '!$B$9:$O$1898,8,0) -> 3.666587037 | N59: =+VLOOKUP(C59,'Anexo_GL '!$B$9:$O$1898,9,0) -> Cumple | P59: =+VLOOKUP(C59,'Anexo_GL '!$B$9:$O$1898,11,0) -> 1024.25657 | Q59: =+VLOOKUP(C59,'Anexo_GL '!$B$9:$O$1898,12,0) -> 846.26442 | R59: =+VLOOKUP(C59,'Anexo_GL '!$B$9:$O$1898,13,0) -> 177.99215 | S59: =+VLOOKUP(C59,'Anexo_GL '!$B$9:$O$1898,14,0) -> Cumple
A60: 010306 : MD DE FLORIDA | B60: 33 | C60: 010306 | D60: AMAZONAS | E60: MD DE FLORIDA | F60: =+VLOOKUP(C60,'Anexo_GL '!$B$9:$O$1898,4,0) -> 115.5522 | H60: =+VLOOKUP(C60,'Anexo_GL '!$B$9:$O$1898,5,0) -> 3532.6473 | I60: =+VLOOKUP(C60,'Anexo_GL '!$B$9:$O$1898,6,0) -> 0.01801 | J60: =+VLOOKUP(C60,'Anexo_GL '!$B$9:$O$1898,7,0) -> 3417.0951 | L60: =+VLOOKUP(C60,'Anexo_GL '!$B$9:$O$1898,8,0) -> 3.270980378 | N60: =+VLOOKUP(C60,'Anexo_GL '!$B$9:$O$1898,9,0) -> Cumple | P60: =+VLOOKUP(C60,'Anexo_GL '!$B$9:$O$1898,11,0) -> 3351.36834 | Q60: =+VLOOKUP(C60,'Anexo_GL '!$B$9:$O$1898,12,0) -> 2452.4062 | R60: =+VLOOKUP(C60,'Anexo_GL '!$B$9:$O$1898,13,0) -> 898.96214 | S60: =+VLOOKUP(C60,'Anexo_GL '!$B$9:$O$1898,14,0) -> Cumple
A61: 010307 : MD DE JAZAN | B61: 34 | C61: 010307 | D61: AMAZONAS | E61: MD DE JAZAN | F61: =+VLOOKUP(C61,'Anexo_GL '!$B$9:$O$1898,4,0) -> 1641.14431 | H61: =+VLOOKUP(C61,'Anexo_GL '!$B$9:$O$1898,5,0) -> 3854.22982 | I61: =+VLOOKUP(C61,'Anexo_GL '!$B$9:$O$1898,6,0) -> 0.01014 | J61: =+VLOOKUP(C61,'Anexo_GL '!$B$9:$O$1898,7,0) -> 2213.08551 | L61: =+VLOOKUP(C61,'Anexo_GL '!$B$9:$O$1898,8,0) -> 42.58034385 | N61: =+VLOOKUP(C61,'Anexo_GL '!$B$9:$O$1898,9,0) -> Cumple | P61: =+VLOOKUP(C61,'Anexo_GL '!$B$9:$O$1898,11,0) -> 3578.16901 | Q61: =+VLOOKUP(C61,'Anexo_GL '!$B$9:$O$1898,12,0) -> 2770.55283 | R61: =+VLOOKUP(C61,'Anexo_GL '!$B$9:$O$1898,13,0) -> 807.61618 | S61: =+VLOOKUP(C61,'Anexo_GL '!$B$9:$O$1898,14,0) -> Cumple
A62: 010308 : MD DE RECTA | B62: 35 | C62: 010308 | D62: AMAZONAS | E62: MD DE RECTA | F62: =+VLOOKUP(C62,'Anexo_GL '!$B$9:$O$1898,4,0) -> 110.78375 | H62: =+VLOOKUP(C62,'Anexo_GL '!$B$9:$O$1898,5,0) -> 913.67103 | I62: =+VLOOKUP(C62,'Anexo_GL '!$B$9:$O$1898,6,0) -> 0.00052 | J62: =+VLOOKUP(C62,'Anexo_GL '!$B$9:$O$1898,7,0) -> 802.88728 | L62: =+VLOOKUP(C62,'Anexo_GL '!$B$9:$O$1898,8,0) -> 12.12512451 | N62: =+VLOOKUP(C62,'Anexo_GL '!$B$9:$O$1898,9,0) -> Cumple | P62: =+VLOOKUP(C62,'Anexo_GL '!$B$9:$O$1898,11,0) -> 1099.86962 | Q62: =+VLOOKUP(C62,'Anexo_GL '!$B$9:$O$1898,12,0) -> 824.08509 | R62: =+VLOOKUP(C62,'Anexo_GL '!$B$9:$O$1898,13,0) -> 275.78453 | S62: =+VLOOKUP(C62,'Anexo_GL '!$B$9:$O$1898,14,0) -> Cumple
A63: 010309 : MD DE SAN CARLOS | B63: 36 | C63: 010309 | D63: AMAZONAS | E63: MD DE SAN CARLOS | F63: =+VLOOKUP(C63,'Anexo_GL '!$B$9:$O$1898,4,0) -> 69.12694 | H63: =+VLOOKUP(C63,'Anexo_GL '!$B$9:$O$1898,5,0) -> 717.010445 | I63: =+VLOOKUP(C63,'Anexo_GL '!$B$9:$O$1898,6,0) -> 0.00134 | J63: =+VLOOKUP(C63,'Anexo_GL '!$B$9:$O$1898,7,0) -> 647.883505 | L63: =+VLOOKUP(C63,'Anexo_GL '!$B$9:$O$1898,8,0) -> 9.640994839 | N63: =+VLOOKUP(C63,'Anexo_GL '!$B$9:$O$1898,9,0) -> Cumple | P63: =+VLOOKUP(C63,'Anexo_GL '!$B$9:$O$1898,11,0) -> 865.09452 | Q63: =+VLOOKUP(C63,'Anexo_GL '!$B$9:$O$1898,12,0) -> 730.86329 | R63: =+VLOOKUP(C63,'Anexo_GL '!$B$9:$O$1898,13,0) -> 134.23123 | S63: =+VLOOKUP(C63,'Anexo_GL '!$B$9:$O$1898,14,0) -> Cumple
A64: 010310 : MD DE SHIPASBAMBA | B64: 37 | C64: 010310 | D64: AMAZONAS | E64: MD DE SHIPASBAMBA | F64: =+VLOOKUP(C64,'Anexo_GL '!$B$9:$O$1898,4,0) -> 23.76196 | H64: =+VLOOKUP(C64,'Anexo_GL '!$B$9:$O$1898,5,0) -> 1232.164465 | I64: =+VLOOKUP(C64,'Anexo_GL '!$B$9:$O$1898,6,0) -> 0.00399 | J64: =+VLOOKUP(C64,'Anexo_GL '!$B$9:$O$1898,7,0) -> 1208.402505 | L64: =+VLOOKUP(C64,'Anexo_GL '!$B$9:$O$1898,8,0) -> 1.928473079 | N64: =+VLOOKUP(C64,'Anexo_GL '!$B$9:$O$1898,9,0) -> Cumple | P64: =+VLOOKUP(C64,'Anexo_GL '!$B$9:$O$1898,11,0) -> 1493.91262 | Q64: =+VLOOKUP(C64,'Anexo_GL '!$B$9:$O$1898,12,0) -> 1138.31934 | R64: =+VLOOKUP(C64,'Anexo_GL '!$B$9:$O$1898,13,0) -> 355.59328 | S64: =+VLOOKUP(C64,'Anexo_GL '!$B$9:$O$1898,14,0) -> Cumple
A65: 010311 : MD DE VALERA | B65: 38 | C65: 010311 | D65: AMAZONAS | E65: MD DE VALERA | F65: =+VLOOKUP(C65,'Anexo_GL '!$B$9:$O$1898,4,0) -> 50.4334 | H65: =+VLOOKUP(C65,'Anexo_GL '!$B$9:$O$1898,5,0) -> 819.1473975 | I65: =+VLOOKUP(C65,'Anexo_GL '!$B$9:$O$1898,6,0) -> 0.00134 | J65: =+VLOOKUP(C65,'Anexo_GL '!$B$9:$O$1898,7,0) -> 768.7139975 | L65: =+VLOOKUP(C65,'Anexo_GL '!$B$9:$O$1898,8,0) -> 6.15681624 | N65: =+VLOOKUP(C65,'Anexo_GL '!$B$9:$O$1898,9,0) -> Cumple | P65: =+VLOOKUP(C65,'Anexo_GL '!$B$9:$O$1898,11,0) -> 1166.46776 | Q65: =+VLOOKUP(C65,'Anexo_GL '!$B$9:$O$1898,12,0) -> 945.74135 | R65: =+VLOOKUP(C65,'Anexo_GL '!$B$9:$O$1898,13,0) -> 220.72641 | S65: =+VLOOKUP(C65,'Anexo_GL '!$B$9:$O$1898,14,0) -> Cumple
A66: 010312 : MD DE YAMBRASBAMBA | B66: 39 | C66: 010312 | D66: AMAZONAS | E66: MD DE YAMBRASBAMBA | F66: =+VLOOKUP(C66,'Anexo_GL '!$B$9:$O$1898,4,0) -> 1211.71791 | H66: =+VLOOKUP(C66,'Anexo_GL '!$B$9:$O$1898,5,0) -> 3575.98003 | I66: =+VLOOKUP(C66,'Anexo_GL '!$B$9:$O$1898,6,0) -> 0.02066 | J66: =+VLOOKUP(C66,'Anexo_GL '!$B$9:$O$1898,7,0) -> 2364.26212 | L66: =+VLOOKUP(C66,'Anexo_GL '!$B$9:$O$1898,8,0) -> 33.88491826 | N66: =+VLOOKUP(C66,'Anexo_GL '!$B$9:$O$1898,9,0) -> Cumple | P66: =+VLOOKUP(C66,'Anexo_GL '!$B$9:$O$1898,11,0) -> 3701.70486 | Q66: =+VLOOKUP(C66,'Anexo_GL '!$B$9:$O$1898,12,0) -> 2573.38214 | R66: =+VLOOKUP(C66,'Anexo_GL '!$B$9:$O$1898,13,0) -> 1128.32272 | S66: =+VLOOKUP(C66,'Anexo_GL '!$B$9:$O$1898,14,0) -> Cumple
A67: 010401 : MP DE CONDORCANQUI - NIEVA | B67: 40 | C67: 010401 | D67: AMAZONAS | E67: MP DE CONDORCANQUI - NIEVA | F67: =+VLOOKUP(C67,'Anexo_GL '!$B$9:$O$1898,4,0) -> 1724.05047 | H67: =+VLOOKUP(C67,'Anexo_GL '!$B$9:$O$1898,5,0) -> 24387.37733 | I67: =+VLOOKUP(C67,'Anexo_GL '!$B$9:$O$1898,6,0) -> 2.45769 | J67: =+VLOOKUP(C67,'Anexo_GL '!$B$9:$O$1898,7,0) -> 22663.32686 | L67: =+VLOOKUP(C67,'Anexo_GL '!$B$9:$O$1898,8,0) -> 7.069437794 | N67: =+VLOOKUP(C67,'Anexo_GL '!$B$9:$O$1898,9,0) -> Cumple | P67: =+VLOOKUP(C67,'Anexo_GL '!$B$9:$O$1898,11,0) -> 26762.99211 | Q67: =+VLOOKUP(C67,'Anexo_GL '!$B$9:$O$1898,12,0) -> 17264.78838 | R67: =+VLOOKUP(C67,'Anexo_GL '!$B$9:$O$1898,13,0) -> 9498.20373 | S67: =+VLOOKUP(C67,'Anexo_GL '!$B$9:$O$1898,14,0) -> Cumple
A68: 010402 : MD DE EL CENEPA | B68: 41 | C68: 010402 | D68: AMAZONAS | E68: MD DE EL CENEPA | F68: =+VLOOKUP(C68,'Anexo_GL '!$B$9:$O$1898,4,0) -> 80.42937 | H68: =+VLOOKUP(C68,'Anexo_GL '!$B$9:$O$1898,5,0) -> 7116.89033 | I68: =+VLOOKUP(C68,'Anexo_GL '!$B$9:$O$1898,6,0) -> 0.65185 | J68: =+VLOOKUP(C68,'Anexo_GL '!$B$9:$O$1898,7,0) -> 7036.46096 | L68: =+VLOOKUP(C68,'Anexo_GL '!$B$9:$O$1898,8,0) -> 1.130119564 | N68: =+VLOOKUP(C68,'Anexo_GL '!$B$9:$O$1898,9,0) -> Cumple | P68: =+VLOOKUP(C68,'Anexo_GL '!$B$9:$O$1898,11,0) -> 9361.28016 | Q68: =+VLOOKUP(C68,'Anexo_GL '!$B$9:$O$1898,12,0) -> 6227.27487 | R68: =+VLOOKUP(C68,'Anexo_GL '!$B$9:$O$1898,13,0) -> 3134.00529 | S68: =+VLOOKUP(C68,'Anexo_GL '!$B$9:$O$1898,14,0) -> Cumple
A69: 010403 : MD DE RIO SANTIAGO | B69: 42 | C69: 010403 | D69: AMAZONAS | E69: MD DE RIO SANTIAGO | F69: =+VLOOKUP(C69,'Anexo_GL '!$B$9:$O$1898,4,0) -> 2237.06825 | H69: =+VLOOKUP(C69,'Anexo_GL '!$B$9:$O$1898,5,0) -> 10402.12412 | I69: =+VLOOKUP(C69,'Anexo_GL '!$B$9:$O$1898,6,0) -> 1.1045 | J69: =+VLOOKUP(C69,'Anexo_GL '!$B$9:$O$1898,7,0) -> 8165.055872 | L69: =+VLOOKUP(C69,'Anexo_GL '!$B$9:$O$1898,8,0) -> 21.50587922 | N69: =+VLOOKUP(C69,'Anexo_GL '!$B$9:$O$1898,9,0) -> Cumple | P69: =+VLOOKUP(C69,'Anexo_GL '!$B$9:$O$1898,11,0) -> 13661.89139 | Q69: =+VLOOKUP(C69,'Anexo_GL '!$B$9:$O$1898,12,0) -> 9165.09769 | R69: =+VLOOKUP(C69,'Anexo_GL '!$B$9:$O$1898,13,0) -> 4496.7937 | S69: =+VLOOKUP(C69,'Anexo_GL '!$B$9:$O$1898,14,0) -> Cumple
A70: 010501 : MP DE LUYA - LAMUD | B70: 43 | C70: 010501 | D70: AMAZONAS | E70: MP DE LUYA - LAMUD | F70: =+VLOOKUP(C70,'Anexo_GL '!$B$9:$O$1898,4,0) -> 2868.48682 | H70: =+VLOOKUP(C70,'Anexo_GL '!$B$9:$O$1898,5,0) -> 22935.97288 | I70: =+VLOOKUP(C70,'Anexo_GL '!$B$9:$O$1898,6,0) -> 0.00131 | J70: =+VLOOKUP(C70,'Anexo_GL '!$B$9:$O$1898,7,0) -> 20067.48606 | L70: =+VLOOKUP(C70,'Anexo_GL '!$B$9:$O$1898,8,0) -> 12.50649726 | N70: =+VLOOKUP(C70,'Anexo_GL '!$B$9:$O$1898,9,0) -> Cumple | P70: =+VLOOKUP(C70,'Anexo_GL '!$B$9:$O$1898,11,0) -> 9635.34645 | Q70: =+VLOOKUP(C70,'Anexo_GL '!$B$9:$O$1898,12,0) -> 7220.13192 | R70: =+VLOOKUP(C70,'Anexo_GL '!$B$9:$O$1898,13,0) -> 2415.21453 | S70: =+VLOOKUP(C70,'Anexo_GL '!$B$9:$O$1898,14,0) -> Cumple
A71: 010502 : MD DE CAMPORREDONDO | B71: 44 | C71: 010502 | D71: AMAZONAS | E71: MD DE CAMPORREDONDO | F71: =+VLOOKUP(C71,'Anexo_GL '!$B$9:$O$1898,4,0) -> 22.12388 | H71: =+VLOOKUP(C71,'Anexo_GL '!$B$9:$O$1898,5,0) -> 4575.105698 | I71: =+VLOOKUP(C71,'Anexo_GL '!$B$9:$O$1898,6,0) -> 0.00867 | J71: =+VLOOKUP(C71,'Anexo_GL '!$B$9:$O$1898,7,0) -> 4552.981818 | L71: =+VLOOKUP(C71,'Anexo_GL '!$B$9:$O$1898,8,0) -> 0.4835709044 | N71: =+VLOOKUP(C71,'Anexo_GL '!$B$9:$O$1898,9,0) -> Cumple | P71: =+VLOOKUP(C71,'Anexo_GL '!$B$9:$O$1898,11,0) -> 2583.52176 | Q71: =+VLOOKUP(C71,'Anexo_GL '!$B$9:$O$1898,12,0) -> 1684.42595 | R71: =+VLOOKUP(C71,'Anexo_GL '!$B$9:$O$1898,13,0) -> 899.09581 | S71: =+VLOOKUP(C71,'Anexo_GL '!$B$9:$O$1898,14,0) -> Cumple
A72: 010503 : MD DE COCABAMBA | B72: 45 | C72: 010503 | D72: AMAZONAS | E72: MD DE COCABAMBA | F72: =+VLOOKUP(C72,'Anexo_GL '!$B$9:$O$1898,4,0) -> 1547.97704 | H72: =+VLOOKUP(C72,'Anexo_GL '!$B$9:$O$1898,5,0) -> 1211.611782 | I72: =+VLOOKUP(C72,'Anexo_GL '!$B$9:$O$1898,6,0) -> 0.00236 | J72: =+VLOOKUP(C72,'Anexo_GL '!$B$9:$O$1898,7,0) -> 0 | L72: =+VLOOKUP(C72,'Anexo_GL '!$B$9:$O$1898,8,0) -> 127.7618015 | N72: =+VLOOKUP(C72,'Anexo_GL '!$B$9:$O$1898,9,0) -> No Cumple | P72: =+VLOOKUP(C72,'Anexo_GL '!$B$9:$O$1898,11,0) -> 1585.96288 | Q72: =+VLOOKUP(C72,'Anexo_GL '!$B$9:$O$1898,12,0) -> 1165.81118 | R72: =+VLOOKUP(C72,'Anexo_GL '!$B$9:$O$1898,13,0) -> 420.1517 | S72: =+VLOOKUP(C72,'Anexo_GL '!$B$9:$O$1898,14,0) -> Cumple
A73: 010504 : MD DE COLCAMAR | B73: 46 | C73: 010504 | D73: AMAZONAS | E73: MD DE COLCAMAR | F73: =+VLOOKUP(C73,'Anexo_GL '!$B$9:$O$1898,4,0) -> 12.79307 | H73: =+VLOOKUP(C73,'Anexo_GL '!$B$9:$O$1898,5,0) -> 1132.905282 | I73: =+VLOOKUP(C73,'Anexo_GL '!$B$9:$O$1898,6,0) -> 0.00131 | J73: =+VLOOKUP(C73,'Anexo_GL '!$B$9:$O$1898,7,0) -> 1120.112212 | L73: =+VLOOKUP(C73,'Anexo_GL '!$B$9:$O$1898,8,0) -> 1.129226794 | N73: =+VLOOKUP(C73,'Anexo_GL '!$B$9:$O$1898,9,0) -> Cumple | P73: =+VLOOKUP(C73,'Anexo_GL '!$B$9:$O$1898,11,0) -> 1457.61995 | Q73: =+VLOOKUP(C73,'Anexo_GL '!$B$9:$O$1898,12,0) -> 1377.3878 | R73: =+VLOOKUP(C73,'Anexo_GL '!$B$9:$O$1898,13,0) -> 80.23215 | S73: =+VLOOKUP(C73,'Anexo_GL '!$B$9:$O$1898,14,0) -> Cumple
A74: 010505 : MD DE CONILA | B74: 47 | C74: 010505 | D74: AMAZONAS | E74: MD DE CONILA | F74: =+VLOOKUP(C74,'Anexo_GL '!$B$9:$O$1898,4,0) -> 380.76758 | H74: =+VLOOKUP(C74,'Anexo_GL '!$B$9:$O$1898,5,0) -> 835.776855 | I74: =+VLOOKUP(C74,'Anexo_GL '!$B$9:$O$1898,6,0) -> 0.00131 | J74: =+VLOOKUP(C74,'Anexo_GL '!$B$9:$O$1898,7,0) -> 455.009275 | L74: =+VLOOKUP(C74,'Anexo_GL '!$B$9:$O$1898,8,0) -> 45.55852172 | N74: =+VLOOKUP(C74,'Anexo_GL '!$B$9:$O$1898,9,0) -> Cumple | P74: =+VLOOKUP(C74,'Anexo_GL '!$B$9:$O$1898,11,0) -> 935.80039 | Q74: =+VLOOKUP(C74,'Anexo_GL '!$B$9:$O$1898,12,0) -> 626.00342 | R74: =+VLOOKUP(C74,'Anexo_GL '!$B$9:$O$1898,13,0) -> 309.79697 | S74: =+VLOOKUP(C74,'Anexo_GL '!$B$9:$O$1898,14,0) -> Cumple
A75: 010506 : MD DE INGUILPATA | B75: 48 | C75: 010506 | D75: AMAZONAS | E75: MD DE INGUILPATA | F75: =+VLOOKUP(C75,'Anexo_GL '!$B$9:$O$1898,4,0) -> 143.81082 | H75: =+VLOOKUP(C75,'Anexo_GL '!$B$9:$O$1898,5,0) -> 983.9252075 | I75: =+VLOOKUP(C75,'Anexo_GL '!$B$9:$O$1898,6,0) -> 0.00052 | J75: =+VLOOKUP(C75,'Anexo_GL '!$B$9:$O$1898,7,0) -> 840.1143875 | L75: =+VLOOKUP(C75,'Anexo_GL '!$B$9:$O$1898,8,0) -> 14.61603168 | N75: =+VLOOKUP(C75,'Anexo_GL '!$B$9:$O$1898,9,0) -> Cumple | P75: =+VLOOKUP(C75,'Anexo_GL '!$B$9:$O$1898,11,0) -> 1179.89224 | Q75: =+VLOOKUP(C75,'Anexo_GL '!$B$9:$O$1898,12,0) -> 1042.44667 | R75: =+VLOOKUP(C75,'Anexo_GL '!$B$9:$O$1898,13,0) -> 137.44557 | S75: =+VLOOKUP(C75,'Anexo_GL '!$B$9:$O$1898,14,0) -> Cumple
A76: 010507 : MD DE LONGUITA | B76: 49 | C76: 010507 | D76: AMAZONAS | E76: MD DE LONGUITA | F76: =+VLOOKUP(C76,'Anexo_GL '!$B$9:$O$1898,4,0) -> 14.21302 | H76: =+VLOOKUP(C76,'Anexo_GL '!$B$9:$O$1898,5,0) -> 1898.354978 | I76: =+VLOOKUP(C76,'Anexo_GL '!$B$9:$O$1898,6,0) -> 0.00079 | J76: =+VLOOKUP(C76,'Anexo_GL '!$B$9:$O$1898,7,0) -> 1884.141957 | L76: =+VLOOKUP(C76,'Anexo_GL '!$B$9:$O$1898,8,0) -> 0.7487019113 | N76: =+VLOOKUP(C76,'Anexo_GL '!$B$9:$O$1898,9,0) -> Cumple | P76: =+VLOOKUP(C76,'Anexo_GL '!$B$9:$O$1898,11,0) -> 1127.33078 | Q76: =+VLOOKUP(C76,'Anexo_GL '!$B$9:$O$1898,12,0) -> 998.17231 | R76: =+VLOOKUP(C76,'Anexo_GL '!$B$9:$O$1898,13,0) -> 129.15847 | S76: =+VLOOKUP(C76,'Anexo_GL '!$B$9:$O$1898,14,0) -> Cumple
A77: 010508 : MD DE LONYA CHICO | B77: 50 | C77: 010508 | D77: AMAZONAS | E77: MD DE LONYA CHICO | F77: =+VLOOKUP(C77,'Anexo_GL '!$B$9:$O$1898,4,0) -> 19.87504 | H77: =+VLOOKUP(C77,'Anexo_GL '!$B$9:$O$1898,5,0) -> 1122.218533 | I77: =+VLOOKUP(C77,'Anexo_GL '!$B$9:$O$1898,6,0) -> 0.00131 | J77: =+VLOOKUP(C77,'Anexo_GL '!$B$9:$O$1898,7,0) -> 1102.343493 | L77: =+VLOOKUP(C77,'Anexo_GL '!$B$9:$O$1898,8,0) -> 1.771048991 | N77: =+VLOOKUP(C77,'Anexo_GL '!$B$9:$O$1898,9,0) -> Cumple | P77: =+VLOOKUP(C77,'Anexo_GL '!$B$9:$O$1898,11,0) -> 1190.05306 | Q77: =+VLOOKUP(C77,'Anexo_GL '!$B$9:$O$1898,12,0) -> 929.96929 | R77: =+VLOOKUP(C77,'Anexo_GL '!$B$9:$O$1898,13,0) -> 260.08377 | S77: =+VLOOKUP(C77,'Anexo_GL '!$B$9:$O$1898,14,0) -> Cumple
A78: 010509 : MD DE LUYA | B78: 51 | C78: 010509 | D78: AMAZONAS | E78: MD DE LUYA | F78: =+VLOOKUP(C78,'Anexo_GL '!$B$9:$O$1898,4,0) -> 42.24941 | H78: =+VLOOKUP(C78,'Anexo_GL '!$B$9:$O$1898,5,0) -> 2255.87904 | I78: =+VLOOKUP(C78,'Anexo_GL '!$B$9:$O$1898,6,0) -> 0.00262 | J78: =+VLOOKUP(C78,'Anexo_GL '!$B$9:$O$1898,7,0) -> 2213.62963 | L78: =+VLOOKUP(C78,'Anexo_GL '!$B$9:$O$1898,8,0) -> 1.872857953 | N78: =+VLOOKUP(C78,'Anexo_GL '!$B$9:$O$1898,9,0) -> Cumple | P78: =+VLOOKUP(C78,'Anexo_GL '!$B$9:$O$1898,11,0) -> 2068.71532 | Q78: =+VLOOKUP(C78,'Anexo_GL '!$B$9:$O$1898,12,0) -> 1536.41397 | R78: =+VLOOKUP(C78,'Anexo_GL '!$B$9:$O$1898,13,0) -> 532.30135 | S78: =+VLOOKUP(C78,'Anexo_GL '!$B$9:$O$1898,14,0) -> Cumple
A79: 010510 : MD DE LUYA VIEJO | B79: 52 | C79: 010510 | D79: AMAZONAS | E79: MD DE LUYA VIEJO | F79: =+VLOOKUP(C79,'Anexo_GL '!$B$9:$O$1898,4,0) -> 92.68269 | H79: =+VLOOKUP(C79,'Anexo_GL '!$B$9:$O$1898,5,0) -> 896.0765675 | I79: =+VLOOKUP(C79,'Anexo_GL '!$B$9:$O$1898,6,0) -> 0.00026 | J79: =+VLOOKUP(C79,'Anexo_GL '!$B$9:$O$1898,7,0) -> 803.3938775 | L79: =+VLOOKUP(C79,'Anexo_GL '!$B$9:$O$1898,8,0) -> 10.34316635 | N79: =+VLOOKUP(C79,'Anexo_GL '!$B$9:$O$1898,9,0) -> Cumple | P79: =+VLOOKUP(C79,'Anexo_GL '!$B$9:$O$1898,11,0) -> 1051.71775 | Q79: =+VLOOKUP(C79,'Anexo_GL '!$B$9:$O$1898,12,0) -> 831.6839 | R79: =+VLOOKUP(C79,'Anexo_GL '!$B$9:$O$1898,13,0) -> 220.03385 | S79: =+VLOOKUP(C79,'Anexo_GL '!$B$9:$O$1898,14,0) -> Cumple
A80: 010511 : MD DE MARIA | B80: 53 | C80: 010511 | D80: AMAZONAS | E80: MD DE MARIA | F80: =+VLOOKUP(C80,'Anexo_GL '!$B$9:$O$1898,4,0) -> 28.70141 | H80: =+VLOOKUP(C80,'Anexo_GL '!$B$9:$O$1898,5,0) -> 1150.5679 | I80: =+VLOOKUP(C80,'Anexo_GL '!$B$9:$O$1898,6,0) -> 0.00079 | J80: =+VLOOKUP(C80,'Anexo_GL '!$B$9:$O$1898,7,0) -> 1121.86649 | L80: =+VLOOKUP(C80,'Anexo_GL '!$B$9:$O$1898,8,0) -> 2.494542912 | N80: =+VLOOKUP(C80,'Anexo_GL '!$B$9:$O$1898,9,0) -> Cumple | P80: =+VLOOKUP(C80,'Anexo_GL '!$B$9:$O$1898,11,0) -> 1087.60549 | Q80: =+VLOOKUP(C80,'Anexo_GL '!$B$9:$O$1898,12,0) -> 862.5453 | R80: =+VLOOKUP(C80,'Anexo_GL '!$B$9:$O$1898,13,0) -> 225.06019 | S80: =+VLOOKUP(C80,'Anexo_GL '!$B$9:$O$1898,14,0) -> Cumple
A81: 010512 : MD DE OCALLI | B81: 54 | C81: 010512 | D81: AMAZONAS | E81: MD DE OCALLI | F81: =+VLOOKUP(C81,'Anexo_GL '!$B$9:$O$1898,4,0) -> 71.80127 | H81: =+VLOOKUP(C81,'Anexo_GL '!$B$9:$O$1898,5,0) -> 2129.089527 | I81: =+VLOOKUP(C81,'Anexo_GL '!$B$9:$O$1898,6,0) -> 0.00314 | J81: =+VLOOKUP(C81,'Anexo_GL '!$B$9:$O$1898,7,0) -> 2057.288257 | L81: =+VLOOKUP(C81,'Anexo_GL '!$B$9:$O$1898,8,0) -> 3.372393179 | N81: =+VLOOKUP(C81,'Anexo_GL '!$B$9:$O$1898,9,0) -> Cumple | P81: =+VLOOKUP(C81,'Anexo_GL '!$B$9:$O$1898,11,0) -> 1864.08146 | Q81: =+VLOOKUP(C81,'Anexo_GL '!$B$9:$O$1898,12,0) -> 1514.05931 | R81: =+VLOOKUP(C81,'Anexo_GL '!$B$9:$O$1898,13,0) -> 350.02215 | S81: =+VLOOKUP(C81,'Anexo_GL '!$B$9:$O$1898,14,0) -> Cumple
A82: 010513 : MD DE OCUMAL | B82: 55 | C82: 010513 | D82: AMAZONAS | E82: MD DE OCUMAL | F82: =+VLOOKUP(C82,'Anexo_GL '!$B$9:$O$1898,4,0) -> 35.36174 | H82: =+VLOOKUP(C82,'Anexo_GL '!$B$9:$O$1898,5,0) -> 1985.046883 | I82: =+VLOOKUP(C82,'Anexo_GL '!$B$9:$O$1898,6,0) -> 0.00419 | J82: =+VLOOKUP(C82,'Anexo_GL '!$B$9:$O$1898,7,0) -> 1949.685143 | L82: =+VLOOKUP(C82,'Anexo_GL '!$B$9:$O$1898,8,0) -> 1.781405785 | N82: =+VLOOKUP(C82,'Anexo_GL '!$B$9:$O$1898,9,0) -> Cumple | P82: =+VLOOKUP(C82,'Anexo_GL '!$B$9:$O$1898,11,0) -> 2209.11264 | Q82: =+VLOOKUP(C82,'Anexo_GL '!$B$9:$O$1898,12,0) -> 1454.08096 | R82: =+VLOOKUP(C82,'Anexo_GL '!$B$9:$O$1898,13,0) -> 755.03168 | S82: =+VLOOKUP(C82,'Anexo_GL '!$B$9:$O$1898,14,0) -> Cumple
A83: 010514 : MD DE PIZUQUIA | B83: 56 | C83: 010514 | D83: AMAZONAS | E83: MD DE PIZUQUIA | F83: =+VLOOKUP(C83,'Anexo_GL '!$B$9:$O$1898,4,0) -> 183.41426 | H83: =+VLOOKUP(C83,'Anexo_GL '!$B$9:$O$1898,5,0) -> 3207.284555 | I83: =+VLOOKUP(C83,'Anexo_GL '!$B$9:$O$1898,6,0) -> 0.00526 | J83: =+VLOOKUP(C83,'Anexo_GL '!$B$9:$O$1898,7,0) -> 3023.870295 | L83: =+VLOOKUP(C83,'Anexo_GL '!$B$9:$O$1898,8,0) -> 5.718677494 | N83: =+VLOOKUP(C83,'Anexo_GL '!$B$9:$O$1898,9,0) -> Cumple | P83: =+VLOOKUP(C83,'Anexo_GL '!$B$9:$O$1898,11,0) -> 2612.65299 | Q83: =+VLOOKUP(C83,'Anexo_GL '!$B$9:$O$1898,12,0) -> 1932.09478 | R83: =+VLOOKUP(C83,'Anexo_GL '!$B$9:$O$1898,13,0) -> 680.55821 | S83: =+VLOOKUP(C83,'Anexo_GL '!$B$9:$O$1898,14,0) -> Cumple
A84: 010515 : MD DE PROVIDENCIA | B84: 57 | C84: 010515 | D84: AMAZONAS | E84: MD DE PROVIDENCIA | F84: =+VLOOKUP(C84,'Anexo_GL '!$B$9:$O$1898,4,0) -> 68.761 | H84: =+VLOOKUP(C84,'Anexo_GL '!$B$9:$O$1898,5,0) -> 1134.459783 | I84: =+VLOOKUP(C84,'Anexo_GL '!$B$9:$O$1898,6,0) -> 0.00157 | J84: =+VLOOKUP(C84,'Anexo_GL '!$B$9:$O$1898,7,0) -> 1065.698782 | L84: =+VLOOKUP(C84,'Anexo_GL '!$B$9:$O$1898,8,0) -> 6.061122753 | N84: =+VLOOKUP(C84,'Anexo_GL '!$B$9:$O$1898,9,0) -> Cumple | P84: =+VLOOKUP(C84,'Anexo_GL '!$B$9:$O$1898,11,0) -> 1180.99186 | Q84: =+VLOOKUP(C84,'Anexo_GL '!$B$9:$O$1898,12,0) -> 812.36694 | R84: =+VLOOKUP(C84,'Anexo_GL '!$B$9:$O$1898,13,0) -> 368.62492 | S84: =+VLOOKUP(C84,'Anexo_GL '!$B$9:$O$1898,14,0) -> Cumple
A85: 010516 : MD DE SAN CRISTOBAL DE OLTO | B85: 58 | C85: 010516 | D85: AMAZONAS | E85: MD DE SAN CRISTOBAL DE OLTO | F85: =+VLOOKUP(C85,'Anexo_GL '!$B$9:$O$1898,4,0) -> 20.32522 | H85: =+VLOOKUP(C85,'Anexo_GL '!$B$9:$O$1898,5,0) -> 995.3614675 | I85: =+VLOOKUP(C85,'Anexo_GL '!$B$9:$O$1898,6,0) -> 0.00052 | J85: =+VLOOKUP(C85,'Anexo_GL '!$B$9:$O$1898,7,0) -> 975.0362475 | L85: =+VLOOKUP(C85,'Anexo_GL '!$B$9:$O$1898,8,0) -> 2.041993855 | N85: =+VLOOKUP(C85,'Anexo_GL '!$B$9:$O$1898,9,0) -> Cumple | P85: =+VLOOKUP(C85,'Anexo_GL '!$B$9:$O$1898,11,0) -> 1103.48703 | Q85: =+VLOOKUP(C85,'Anexo_GL '!$B$9:$O$1898,12,0) -> 882.3551 | R85: =+VLOOKUP(C85,'Anexo_GL '!$B$9:$O$1898,13,0) -> 221.13193 | S85: =+VLOOKUP(C85,'Anexo_GL '!$B$9:$O$1898,14,0) -> Cumple
A86: 010517 : MD DE SAN FRANCISCO DE YESO | B86: 59 | C86: 010517 | D86: AMAZONAS | E86: MD DE SAN FRANCISCO DE YESO | F86: =+VLOOKUP(C86,'Anexo_GL '!$B$9:$O$1898,4,0) -> 30.89905 | H86: =+VLOOKUP(C86,'Anexo_GL '!$B$9:$O$1898,5,0) -> 717.7482625 | I86: =+VLOOKUP(C86,'Anexo_GL '!$B$9:$O$1898,6,0) -> 0.00105 | J86: =+VLOOKUP(C86,'Anexo_GL '!$B$9:$O$1898,7,0) -> 686.8492125 | L86: =+VLOOKUP(C86,'Anexo_GL '!$B$9:$O$1898,8,0) -> 4.30499823 | N86: =+VLOOKUP(C86,'Anexo_GL '!$B$9:$O$1898,9,0) -> Cumple | P86: =+VLOOKUP(C86,'Anexo_GL '!$B$9:$O$1898,11,0) -> 860.36877 | Q86: =+VLOOKUP(C86,'Anexo_GL '!$B$9:$O$1898,12,0) -> 609.27693 | R86: =+VLOOKUP(C86,'Anexo_GL '!$B$9:$O$1898,13,0) -> 251.09184 | S86: =+VLOOKUP(C86,'Anexo_GL '!$B$9:$O$1898,14,0) -> Cumple
A87: 010518 : MD DE SAN JERONIMO DE PACLAS | B87: 60 | C87: 010518 | D87: AMAZONAS | E87: MD DE SAN JERONIMO DE PACLAS | F87: =+VLOOKUP(C87,'Anexo_GL '!$B$9:$O$1898,4,0) -> 27.76252 | H87: =+VLOOKUP(C87,'Anexo_GL '!$B$9:$O$1898,5,0) -> 1074.499797 | I87: =+VLOOKUP(C87,'Anexo_GL '!$B$9:$O$1898,6,0) -> 0.00079 | J87: =+VLOOKUP(C87,'Anexo_GL '!$B$9:$O$1898,7,0) -> 1046.737277 | L87: =+VLOOKUP(C87,'Anexo_GL '!$B$9:$O$1898,8,0) -> 2.583762237 | N87: =+VLOOKUP(C87,'Anexo_GL '!$B$9:$O$1898,9,0) -> Cumple | P87: =+VLOOKUP(C87,'Anexo_GL '!$B$9:$O$1898,11,0) -> 1068.99796 | Q87: =+VLOOKUP(C87,'Anexo_GL '!$B$9:$O$1898,12,0) -> 813.51923 | R87: =+VLOOKUP(C87,'Anexo_GL '!$B$9:$O$1898,13,0) -> 255.47873 | S87: =+VLOOKUP(C87,'Anexo_GL '!$B$9:$O$1898,14,0) -> Cumple
A88: 010519 : MD DE SAN JUAN DE LOPECANCHA | B88: 61 | C88: 010519 | D88: AMAZONAS | E88: MD DE SAN JUAN DE LOPECANCHA | F88: =+VLOOKUP(C88,'Anexo_GL '!$B$9:$O$1898,4,0) -> 86.79148 | H88: =+VLOOKUP(C88,'Anexo_GL '!$B$9:$O$1898,5,0) -> 1098.888467 | I88: =+VLOOKUP(C88,'Anexo_GL '!$B$9:$O$1898,6,0) -> 0.00131 | J88: =+VLOOKUP(C88,'Anexo_GL '!$B$9:$O$1898,7,0) -> 1012.096988 | L88: =+VLOOKUP(C88,'Anexo_GL '!$B$9:$O$1898,8,0) -> 7.898115465 | N88: =+VLOOKUP(C88,'Anexo_GL '!$B$9:$O$1898,9,0) -> Cumple | P88: =+VLOOKUP(C88,'Anexo_GL '!$B$9:$O$1898,11,0) -> 1033.83582 | Q88: =+VLOOKUP(C88,'Anexo_GL '!$B$9:$O$1898,12,0) -> 703.57156 | R88: =+VLOOKUP(C88,'Anexo_GL '!$B$9:$O$1898,13,0) -> 330.26426 | S88: =+VLOOKUP(C88,'Anexo_GL '!$B$9:$O$1898,14,0) -> Cumple
A89: 010520 : MD DE SANTA CATALINA | B89: 62 | C89: 010520 | D89: AMAZONAS | E89: MD DE SANTA CATALINA | F89: =+VLOOKUP(C89,'Anexo_GL '!$B$9:$O$1898,4,0) -> 79.29475 | H89: =+VLOOKUP(C89,'Anexo_GL '!$B$9:$O$1898,5,0) -> 1181.718645 | I89: =+VLOOKUP(C89,'Anexo_GL '!$B$9:$O$1898,6,0) -> 0.00393 | J89: =+VLOOKUP(C89,'Anexo_GL '!$B$9:$O$1898,7,0) -> 1102.423895 | L89: =+VLOOKUP(C89,'Anexo_GL '!$B$9:$O$1898,8,0) -> 6.710120919 | N89: =+VLOOKUP(C89,'Anexo_GL '!$B$9:$O$1898,9,0) -> Cumple | P89: =+VLOOKUP(C89,'Anexo_GL '!$B$9:$O$1898,11,0) -> 1365.53317 | Q89: =+VLOOKUP(C89,'Anexo_GL '!$B$9:$O$1898,12,0) -> 996.34477 | R89: =+VLOOKUP(C89,'Anexo_GL '!$B$9:$O$1898,13,0) -> 369.1884 | S89: =+VLOOKUP(C89,'Anexo_GL '!$B$9:$O$1898,14,0) -> Cumple
A90: 010521 : MD DE SANTO TOMAS | B90: 63 | C90: 010521 | D90: AMAZONAS | E90: MD DE SANTO TOMAS | F90: =+VLOOKUP(C90,'Anexo_GL '!$B$9:$O$1898,4,0) -> 87.55291 | H90: =+VLOOKUP(C90,'Anexo_GL '!$B$9:$O$1898,5,0) -> 1519.356805 | I90: =+VLOOKUP(C90,'Anexo_GL '!$B$9:$O$1898,6,0) -> 0.00736 | J90: =+VLOOKUP(C90,'Anexo_GL '!$B$9:$O$1898,7,0) -> 1431.803895 | L90: =+VLOOKUP(C90,'Anexo_GL '!$B$9:$O$1898,8,0) -> 5.762498296 | N90: =+VLOOKUP(C90,'Anexo_GL '!$B$9:$O$1898,9,0) -> Cumple | P90: =+VLOOKUP(C90,'Anexo_GL '!$B$9:$O$1898,11,0) -> 1584.55636 | Q90: =+VLOOKUP(C90,'Anexo_GL '!$B$9:$O$1898,12,0) -> 1123.81405 | R90: =+VLOOKUP(C90,'Anexo_GL '!$B$9:$O$1898,13,0) -> 460.74231 | S90: =+VLOOKUP(C90,'Anexo_GL '!$B$9:$O$1898,14,0) -> Cumple
A91: 010522 : MD DE TINGO | B91: 64 | C91: 010522 | D91: AMAZONAS | E91: MD DE TINGO | F91: =+VLOOKUP(C91,'Anexo_GL '!$B$9:$O$1898,4,0) -> 86.69008 | H91: =+VLOOKUP(C91,'Anexo_GL '!$B$9:$O$1898,5,0) -> 788.16559 | I91: =+VLOOKUP(C91,'Anexo_GL '!$B$9:$O$1898,6,0) -> 0.00157 | J91: =+VLOOKUP(C91,'Anexo_GL '!$B$9:$O$1898,7,0) -> 701.47551 | L91: =+VLOOKUP(C91,'Anexo_GL '!$B$9:$O$1898,8,0) -> 10.99896787 | N91: =+VLOOKUP(C91,'Anexo_GL '!$B$9:$O$1898,9,0) -> Cumple | P91: =+VLOOKUP(C91,'Anexo_GL '!$B$9:$O$1898,11,0) -> 1124.99534 | Q91: =+VLOOKUP(C91,'Anexo_GL '!$B$9:$O$1898,12,0) -> 845.26255 | R91: =+VLOOKUP(C91,'Anexo_GL '!$B$9:$O$1898,13,0) -> 279.73279 | S91: =+VLOOKUP(C91,'Anexo_GL '!$B$9:$O$1898,14,0) -> Cumple
A92: 010523 : MD DE TRITA | B92: 65 | C92: 010523 | D92: AMAZONAS | E92: MD DE TRITA | F92: =+VLOOKUP(C92,'Anexo_GL '!$B$9:$O$1898,4,0) -> 4.12996 | H92: =+VLOOKUP(C92,'Anexo_GL '!$B$9:$O$1898,5,0) -> 974.261175 | I92: =+VLOOKUP(C92,'Anexo_GL '!$B$9:$O$1898,6,0) -> 0.00105 | J92: =+VLOOKUP(C92,'Anexo_GL '!$B$9:$O$1898,7,0) -> 970.131215 | L92: =+VLOOKUP(C92,'Anexo_GL '!$B$9:$O$1898,8,0) -> 0.4239068646 | N92: =+VLOOKUP(C92,'Anexo_GL '!$B$9:$O$1898,9,0) -> Cumple | P92: =+VLOOKUP(C92,'Anexo_GL '!$B$9:$O$1898,11,0) -> 1117.19843 | Q92: =+VLOOKUP(C92,'Anexo_GL '!$B$9:$O$1898,12,0) -> 919.3881 | R92: =+VLOOKUP(C92,'Anexo_GL '!$B$9:$O$1898,13,0) -> 197.81033 | S92: =+VLOOKUP(C92,'Anexo_GL '!$B$9:$O$1898,14,0) -> Cumple
A93: 010601 : MP DE RODRIGUEZ DE MENDOZA - SAN NICOLAS | B93: 66 | C93: 010601 | D93: AMAZONAS | E93: MP DE RODRIGUEZ DE MENDOZA - SAN NICOLAS | F93: =+VLOOKUP(C93,'Anexo_GL '!$B$9:$O$1898,4,0) -> 5888.97566 | H93: =+VLOOKUP(C93,'Anexo_GL '!$B$9:$O$1898,5,0) -> 9613.684203 | I93: =+VLOOKUP(C93,'Anexo_GL '!$B$9:$O$1898,6,0) -> 0.00736 | J93: =+VLOOKUP(C93,'Anexo_GL '!$B$9:$O$1898,7,0) -> 3724.708543 | L93: =+VLOOKUP(C93,'Anexo_GL '!$B$9:$O$1898,8,0) -> 61.25617959 | N93: =+VLOOKUP(C93,'Anexo_GL '!$B$9:$O$1898,9,0) -> Cumple | P93: =+VLOOKUP(C93,'Anexo_GL '!$B$9:$O$1898,11,0) -> 6672.03349 | Q93: =+VLOOKUP(C93,'Anexo_GL '!$B$9:$O$1898,12,0) -> 6103.18366 | R93: =+VLOOKUP(C93,'Anexo_GL '!$B$9:$O$1898,13,0) -> 568.84983 | S93: =+VLOOKUP(C93,'Anexo_GL '!$B$9:$O$1898,14,0) -> Cumple
A94: 010602 : MD DE CHIRIMOTO | B94: 67 | C94: 010602 | D94: AMAZONAS | E94: MD DE CHIRIMOTO | F94: =+VLOOKUP(C94,'Anexo_GL '!$B$9:$O$1898,4,0) -> 30.839 | H94: =+VLOOKUP(C94,'Anexo_GL '!$B$9:$O$1898,5,0) -> 1220.124775 | I94: =+VLOOKUP(C94,'Anexo_GL '!$B$9:$O$1898,6,0) -> 0.01285 | J94: =+VLOOKUP(C94,'Anexo_GL '!$B$9:$O$1898,7,0) -> 1189.285775 | L94: =+VLOOKUP(C94,'Anexo_GL '!$B$9:$O$1898,8,0) -> 2.527528383 | N94: =+VLOOKUP(C94,'Anexo_GL '!$B$9:$O$1898,9,0) -> Cumple | P94: =+VLOOKUP(C94,'Anexo_GL '!$B$9:$O$1898,11,0) -> 1255.99752 | Q94: =+VLOOKUP(C94,'Anexo_GL '!$B$9:$O$1898,12,0) -> 966.9175 | R94: =+VLOOKUP(C94,'Anexo_GL '!$B$9:$O$1898,13,0) -> 289.08002 | S94: =+VLOOKUP(C94,'Anexo_GL '!$B$9:$O$1898,14,0) -> Cumple
A95: 010603 : MD DE COCHAMAL | B95: 68 | C95: 010603 | D95: AMAZONAS | E95: MD DE COCHAMAL | F95: =+VLOOKUP(C95,'Anexo_GL '!$B$9:$O$1898,4,0) -> 302.16377 | H95: =+VLOOKUP(C95,'Anexo_GL '!$B$9:$O$1898,5,0) -> 723.5666725 | I95: =+VLOOKUP(C95,'Anexo_GL '!$B$9:$O$1898,6,0) -> 0.00157 | J95: =+VLOOKUP(C95,'Anexo_GL '!$B$9:$O$1898,7,0) -> 421.4029025 | L95: =+VLOOKUP(C95,'Anexo_GL '!$B$9:$O$1898,8,0) -> 41.76032168 | N95: =+VLOOKUP(C95,'Anexo_GL '!$B$9:$O$1898,9,0) -> Cumple | P95: =+VLOOKUP(C95,'Anexo_GL '!$B$9:$O$1898,11,0) -> 1060.7504 | Q95: =+VLOOKUP(C95,'Anexo_GL '!$B$9:$O$1898,12,0) -> 880.17163 | R95: =+VLOOKUP(C95,'Anexo_GL '!$B$9:$O$1898,13,0) -> 180.57877 | S95: =+VLOOKUP(C95,'Anexo_GL '!$B$9:$O$1898,14,0) -> Cumple
A96: 010604 : MD DE HUAMBO | B96: 69 | C96: 010604 | D96: AMAZONAS | E96: MD DE HUAMBO | F96: =+VLOOKUP(C96,'Anexo_GL '!$B$9:$O$1898,4,0) -> 141.41792 | H96: =+VLOOKUP(C96,'Anexo_GL '!$B$9:$O$1898,5,0) -> 2077.478443 | I96: =+VLOOKUP(C96,'Anexo_GL '!$B$9:$O$1898,6,0) -> 0.00945 | J96: =+VLOOKUP(C96,'Anexo_GL '!$B$9:$O$1898,7,0) -> 1936.060523 | L96: =+VLOOKUP(C96,'Anexo_GL '!$B$9:$O$1898,8,0) -> 6.807190732 | N96: =+VLOOKUP(C96,'Anexo_GL '!$B$9:$O$1898,9,0) -> Cumple | P96: =+VLOOKUP(C96,'Anexo_GL '!$B$9:$O$1898,11,0) -> 1276.47087 | Q96: =+VLOOKUP(C96,'Anexo_GL '!$B$9:$O$1898,12,0) -> 1065.99968 | R96: =+VLOOKUP(C96,'Anexo_GL '!$B$9:$O$1898,13,0) -> 210.47119 | S96: =+VLOOKUP(C96,'Anexo_GL '!$B$9:$O$1898,14,0) -> Cumple
A97: 010605 : MD DE LIMABAMBA | B97: 70 | C97: 010605 | D97: AMAZONAS | E97: MD DE LIMABAMBA | F97: =+VLOOKUP(C97,'Anexo_GL '!$B$9:$O$1898,4,0) -> 2319.73057 | H97: =+VLOOKUP(C97,'Anexo_GL '!$B$9:$O$1898,5,0) -> 1261.023438 | I97: =+VLOOKUP(C97,'Anexo_GL '!$B$9:$O$1898,6,0) -> 0.00919 | J97: =+VLOOKUP(C97,'Anexo_GL '!$B$9:$O$1898,7,0) -> 0 | L97: =+VLOOKUP(C97,'Anexo_GL '!$B$9:$O$1898,8,0) -> 183.956182 | N97: =+VLOOKUP(C97,'Anexo_GL '!$B$9:$O$1898,9,0) -> No Cumple | P97: =+VLOOKUP(C97,'Anexo_GL '!$B$9:$O$1898,11,0) -> 1542.81568 | Q97: =+VLOOKUP(C97,'Anexo_GL '!$B$9:$O$1898,12,0) -> 1289.73345 | R97: =+VLOOKUP(C97,'Anexo_GL '!$B$9:$O$1898,13,0) -> 253.08223 | S97: =+VLOOKUP(C97,'Anexo_GL '!$B$9:$O$1898,14,0) -> Cumple
A98: 010606 : MD DE LONGAR | B98: 71 | C98: 010606 | D98: AMAZONAS | E98: MD DE LONGAR | F98: =+VLOOKUP(C98,'Anexo_GL '!$B$9:$O$1898,4,0) -> 81.88987 | H98: =+VLOOKUP(C98,'Anexo_GL '!$B$9:$O$1898,5,0) -> 783.8734575 | I98: =+VLOOKUP(C98,'Anexo_GL '!$B$9:$O$1898,6,0) -> 0.00448 | J98: =+VLOOKUP(C98,'Anexo_GL '!$B$9:$O$1898,7,0) -> 701.9835875 | L98: =+VLOOKUP(C98,'Anexo_GL '!$B$9:$O$1898,8,0) -> 10.44682266 | N98: =+VLOOKUP(C98,'Anexo_GL '!$B$9:$O$1898,9,0) -> Cumple | P98: =+VLOOKUP(C98,'Anexo_GL '!$B$9:$O$1898,11,0) -> 1055.07057 | Q98: =+VLOOKUP(C98,'Anexo_GL '!$B$9:$O$1898,12,0) -> 942.68839 | R98: =+VLOOKUP(C98,'Anexo_GL '!$B$9:$O$1898,13,0) -> 112.38218 | S98: =+VLOOKUP(C98,'Anexo_GL '!$B$9:$O$1898,14,0) -> Cumple
A99: 010607 : MD DE MARISCAL BENAVIDES | B99: 72 | C99: 010607 | D99: AMAZONAS | E99: MD DE MARISCAL BENAVIDES | F99: =+VLOOKUP(C99,'Anexo_GL '!$B$9:$O$1898,4,0) -> 858.41053 | H99: =+VLOOKUP(C99,'Anexo_GL '!$B$9:$O$1898,5,0) -> 1073.58785 | I99: =+VLOOKUP(C99,'Anexo_GL '!$B$9:$O$1898,6,0) -> 0.00209 | J99: =+VLOOKUP(C99,'Anexo_GL '!$B$9:$O$1898,7,0) -> 215.17732 | L99: =+VLOOKUP(C99,'Anexo_GL '!$B$9:$O$1898,8,0) -> 79.9571763 | N99: =+VLOOKUP(C99,'Anexo_GL '!$B$9:$O$1898,9,0) -> Cumple | P99: =+VLOOKUP(C99,'Anexo_GL '!$B$9:$O$1898,11,0) -> 1247.07679 | Q99: =+VLOOKUP(C99,'Anexo_GL '!$B$9:$O$1898,12,0) -> 1151.6694 | R99: =+VLOOKUP(C99,'Anexo_GL '!$B$9:$O$1898,13,0) -> 95.40739 | S99: =+VLOOKUP(C99,'Anexo_GL '!$B$9:$O$1898,14,0) -> Cumple
A100: 010608 : MD DE MILPUC | B100: 73 | C100: 010608 | D100: AMAZONAS | E100: MD DE MILPUC | F100: =+VLOOKUP(C100,'Anexo_GL '!$B$9:$O$1898,4,0) -> 89.93559 | H100: =+VLOOKUP(C100,'Anexo_GL '!$B$9:$O$1898,5,0) -> 736.0194325 | I100: =+VLOOKUP(C100,'Anexo_GL '!$B$9:$O$1898,6,0) -> 0.01571 | J100: =+VLOOKUP(C100,'Anexo_GL '!$B$9:$O$1898,7,0) -> 646.0838425 | L100: =+VLOOKUP(C100,'Anexo_GL '!$B$9:$O$1898,8,0) -> 12.21918689 | N100: =+VLOOKUP(C100,'Anexo_GL '!$B$9:$O$1898,9,0) -> Cumple | P100: =+VLOOKUP(C100,'Anexo_GL '!$B$9:$O$1898,11,0) -> 836.24395 | Q100: =+VLOOKUP(C100,'Anexo_GL '!$B$9:$O$1898,12,0) -> 699.5253 | R100: =+VLOOKUP(C100,'Anexo_GL '!$B$9:$O$1898,13,0) -> 136.71865 | S100: =+VLOOKUP(C100,'Anexo_GL '!$B$9:$O$1898,14,0) -> Cumple
A101: 010609 : MD DE OMIA | B101: 74 | C101: 010609 | D101: AMAZONAS | E101: MD DE OMIA | F101: =+VLOOKUP(C101,'Anexo_GL '!$B$9:$O$1898,4,0) -> 207.84622 | H101: =+VLOOKUP(C101,'Anexo_GL '!$B$9:$O$1898,5,0) -> 3555.411935 | I101: =+VLOOKUP(C101,'Anexo_GL '!$B$9:$O$1898,6,0) -> 0.04462 | J101: =+VLOOKUP(C101,'Anexo_GL '!$B$9:$O$1898,7,0) -> 3347.565715 | L101: =+VLOOKUP(C101,'Anexo_GL '!$B$9:$O$1898,8,0) -> 5.845911073 | N101: =+VLOOKUP(C101,'Anexo_GL '!$B$9:$O$1898,9,0) -> Cumple | P101: =+VLOOKUP(C101,'Anexo_GL '!$B$9:$O$1898,11,0) -> 4327.45732 | Q101: =+VLOOKUP(C101,'Anexo_GL '!$B$9:$O$1898,12,0) -> 2998.71579 | R101: =+VLOOKUP(C101,'Anexo_GL '!$B$9:$O$1898,13,0) -> 1328.74153 | S101: =+VLOOKUP(C101,'Anexo_GL '!$B$9:$O$1898,14,0) -> Cumple
A102: 010610 : MD DE SANTA ROSA | B102: 75 | C102: 010610 | D102: AMAZONAS | E102: MD DE SANTA ROSA | F102: =+VLOOKUP(C102,'Anexo_GL '!$B$9:$O$1898,4,0) -> 95.21676 | H102: =+VLOOKUP(C102,'Anexo_GL '!$B$9:$O$1898,5,0) -> 1083.99024 | I102: =+VLOOKUP(C102,'Anexo_GL '!$B$9:$O$1898,6,0) -> 0.00183 | J102: =+VLOOKUP(C102,'Anexo_GL '!$B$9:$O$1898,7,0) -> 988.77348 | L102: =+VLOOKUP(C102,'Anexo_GL '!$B$9:$O$1898,8,0) -> 8.783913036 | N102: =+VLOOKUP(C102,'Anexo_GL '!$B$9:$O$1898,9,0) -> Cumple | P102: =+VLOOKUP(C102,'Anexo_GL '!$B$9:$O$1898,11,0) -> 1082.95158 | Q102: =+VLOOKUP(C102,'Anexo_GL '!$B$9:$O$1898,12,0) -> 953.6928 | R102: =+VLOOKUP(C102,'Anexo_GL '!$B$9:$O$1898,13,0) -> 129.25878 | S102: =+VLOOKUP(C102,'Anexo_GL '!$B$9:$O$1898,14,0) -> Cumple
A103: 010611 : MD DE TOTORA | B103: 76 | C103: 010611 | D103: AMAZONAS | E103: MD DE TOTORA | F103: =+VLOOKUP(C103,'Anexo_GL '!$B$9:$O$1898,4,0) -> 758.25336 | H103: =+VLOOKUP(C103,'Anexo_GL '!$B$9:$O$1898,5,0) -> 681.4585175 | I103: =+VLOOKUP(C103,'Anexo_GL '!$B$9:$O$1898,6,0) -> 0.00052 | J103: =+VLOOKUP(C103,'Anexo_GL '!$B$9:$O$1898,7,0) -> 0 | L103: =+VLOOKUP(C103,'Anexo_GL '!$B$9:$O$1898,8,0) -> 111.2691881 | N103: =+VLOOKUP(C103,'Anexo_GL '!$B$9:$O$1898,9,0) -> No Cumple | P103: =+VLOOKUP(C103,'Anexo_GL '!$B$9:$O$1898,11,0) -> 683.88114 | Q103: =+VLOOKUP(C103,'Anexo_GL '!$B$9:$O$1898,12,0) -> 542.54844 | R103: =+VLOOKUP(C103,'Anexo_GL '!$B$9:$O$1898,13,0) -> 141.3327 | S103: =+VLOOKUP(C103,'Anexo_GL '!$B$9:$O$1898,14,0) -> Cumple
A104: 010612 : MD DE VISTA ALEGRE | B104: 77 | C104: 010612 | D104: AMAZONAS | E104: MD DE VISTA ALEGRE | F104: =+VLOOKUP(C104,'Anexo_GL '!$B$9:$O$1898,4,0) -> 146.44923 | H104: =+VLOOKUP(C104,'Anexo_GL '!$B$9:$O$1898,5,0) -> 1687.64515 | I104: =+VLOOKUP(C104,'Anexo_GL '!$B$9:$O$1898,6,0) -> 0.02258 | J104: =+VLOOKUP(C104,'Anexo_GL '!$B$9:$O$1898,7,0) -> 1541.19592 | L104: =+VLOOKUP(C104,'Anexo_GL '!$B$9:$O$1898,8,0) -> 8.677726476 | N104: =+VLOOKUP(C104,'Anexo_GL '!$B$9:$O$1898,9,0) -> Cumple | P104: =+VLOOKUP(C104,'Anexo_GL '!$B$9:$O$1898,11,0) -> 1987.60579 | Q104: =+VLOOKUP(C104,'Anexo_GL '!$B$9:$O$1898,12,0) -> 1441.80324 | R104: =+VLOOKUP(C104,'Anexo_GL '!$B$9:$O$1898,13,0) -> 545.80255 | S104: =+VLOOKUP(C104,'Anexo_GL '!$B$9:$O$1898,14,0) -> Cumple
A105: 010701 : MUNICIPALIDAD PROVINCIA DE UTCUBAMBA - BAGUA GRANDE | B105: 78 | C105: 010701 | D105: AMAZONAS | E105: MUNICIPALIDAD PROVINCIA DE UTCUBAMBA - BAGUA GRANDE | F105: =+VLOOKUP(C105,'Anexo_GL '!$B$9:$O$1898,4,0) -> 8153.80633 | H105: =+VLOOKUP(C105,'Anexo_GL '!$B$9:$O$1898,5,0) -> 43053.95237 | I105: =+VLOOKUP(C105,'Anexo_GL '!$B$9:$O$1898,6,0) -> 1.44364 | J105: =+VLOOKUP(C105,'Anexo_GL '!$B$9:$O$1898,7,0) -> 34900.14604 | L105: =+VLOOKUP(C105,'Anexo_GL '!$B$9:$O$1898,8,0) -> 18.93857795 | N105: =+VLOOKUP(C105,'Anexo_GL '!$B$9:$O$1898,9,0) -> Cumple | P105: =+VLOOKUP(C105,'Anexo_GL '!$B$9:$O$1898,11,0) -> 41554.41597 | Q105: =+VLOOKUP(C105,'Anexo_GL '!$B$9:$O$1898,12,0) -> 31252.75194 | R105: =+VLOOKUP(C105,'Anexo_GL '!$B$9:$O$1898,13,0) -> 10301.66403 | S105: =+VLOOKUP(C105,'Anexo_GL '!$B$9:$O$1898,14,0) -> Cumple
A106: 010702 : MD DE CAJARURO | B106: 79 | C106: 010702 | D106: AMAZONAS | E106: MD DE CAJARURO | F106: =+VLOOKUP(C106,'Anexo_GL '!$B$9:$O$1898,4,0) -> 3561.14137 | H106: =+VLOOKUP(C106,'Anexo_GL '!$B$9:$O$1898,5,0) -> 13603.71477 | I106: =+VLOOKUP(C106,'Anexo_GL '!$B$9:$O$1898,6,0) -> 0.96138 | J106: =+VLOOKUP(C106,'Anexo_GL '!$B$9:$O$1898,7,0) -> 10042.5734 | L106: =+VLOOKUP(C106,'Anexo_GL '!$B$9:$O$1898,8,0) -> 26.17771271 | N106: =+VLOOKUP(C106,'Anexo_GL '!$B$9:$O$1898,9,0) -> Cumple | P106: =+VLOOKUP(C106,'Anexo_GL '!$B$9:$O$1898,11,0) -> 14445.33972 | Q106: =+VLOOKUP(C106,'Anexo_GL '!$B$9:$O$1898,12,0) -> 10851.78118 | R106: =+VLOOKUP(C106,'Anexo_GL '!$B$9:$O$1898,13,0) -> 3593.55854 | S106: =+VLOOKUP(C106,'Anexo_GL '!$B$9:$O$1898,14,0) -> Cumple
A107: 010703 : MD DE CUMBA | B107: 80 | C107: 010703 | D107: AMAZONAS | E107: MD DE CUMBA | F107: =+VLOOKUP(C107,'Anexo_GL '!$B$9:$O$1898,4,0) -> 402.58431 | H107: =+VLOOKUP(C107,'Anexo_GL '!$B$9:$O$1898,5,0) -> 4525.882795 | I107: =+VLOOKUP(C107,'Anexo_GL '!$B$9:$O$1898,6,0) -> 0.06969 | J107: =+VLOOKUP(C107,'Anexo_GL '!$B$9:$O$1898,7,0) -> 4123.298485 | L107: =+VLOOKUP(C107,'Anexo_GL '!$B$9:$O$1898,8,0) -> 8.895155448 | N107: =+VLOOKUP(C107,'Anexo_GL '!$B$9:$O$1898,9,0) -> Cumple | P107: =+VLOOKUP(C107,'Anexo_GL '!$B$9:$O$1898,11,0) -> 5399.59707 | Q107: =+VLOOKUP(C107,'Anexo_GL '!$B$9:$O$1898,12,0) -> 3558.65277 | R107: =+VLOOKUP(C107,'Anexo_GL '!$B$9:$O$1898,13,0) -> 1840.9443 | S107: =+VLOOKUP(C107,'Anexo_GL '!$B$9:$O$1898,14,0) -> Cumple
A108: 010704 : MD DE EL MILAGRO | B108: 81 | C108: 010704 | D108: AMAZONAS | E108: MD DE EL MILAGRO | F108: =+VLOOKUP(C108,'Anexo_GL '!$B$9:$O$1898,4,0) -> 460.1607 | H108: =+VLOOKUP(C108,'Anexo_GL '!$B$9:$O$1898,5,0) -> 3607.592062 | I108: =+VLOOKUP(C108,'Anexo_GL '!$B$9:$O$1898,6,0) -> 0.03694 | J108: =+VLOOKUP(C108,'Anexo_GL '!$B$9:$O$1898,7,0) -> 3147.431362 | L108: =+VLOOKUP(C108,'Anexo_GL '!$B$9:$O$1898,8,0) -> 12.75534185 | N108: =+VLOOKUP(C108,'Anexo_GL '!$B$9:$O$1898,9,0) -> Cumple | P108: =+VLOOKUP(C108,'Anexo_GL '!$B$9:$O$1898,11,0) -> 4456.00463 | Q108: =+VLOOKUP(C108,'Anexo_GL '!$B$9:$O$1898,12,0) -> 3957.5224 | R108: =+VLOOKUP(C108,'Anexo_GL '!$B$9:$O$1898,13,0) -> 498.48223 | S108: =+VLOOKUP(C108,'Anexo_GL '!$B$9:$O$1898,14,0) -> Cumple
A109: 010705 : MD DE JAMALCA | B109: 82 | C109: 010705 | D109: AMAZONAS | E109: MD DE JAMALCA | F109: =+VLOOKUP(C109,'Anexo_GL '!$B$9:$O$1898,4,0) -> 207.54307 | H109: =+VLOOKUP(C109,'Anexo_GL '!$B$9:$O$1898,5,0) -> 4763.642145 | I109: =+VLOOKUP(C109,'Anexo_GL '!$B$9:$O$1898,6,0) -> 0.05085 | J109: =+VLOOKUP(C109,'Anexo_GL '!$B$9:$O$1898,7,0) -> 4556.099075 | L109: =+VLOOKUP(C109,'Anexo_GL '!$B$9:$O$1898,8,0) -> 4.356814884 | N109: =+VLOOKUP(C109,'Anexo_GL '!$B$9:$O$1898,9,0) -> Cumple | P109: =+VLOOKUP(C109,'Anexo_GL '!$B$9:$O$1898,11,0) -> 4751.77028 | Q109: =+VLOOKUP(C109,'Anexo_GL '!$B$9:$O$1898,12,0) -> 3938.95102 | R109: =+VLOOKUP(C109,'Anexo_GL '!$B$9:$O$1898,13,0) -> 812.81926 | S109: =+VLOOKUP(C109,'Anexo_GL '!$B$9:$O$1898,14,0) -> Cumple
A110: 010706 : MD DE LONYA GRANDE | B110: 83 | C110: 010706 | D110: AMAZONAS | E110: MD DE LONYA GRANDE | F110: =+VLOOKUP(C110,'Anexo_GL '!$B$9:$O$1898,4,0) -> 98.54891 | H110: =+VLOOKUP(C110,'Anexo_GL '!$B$9:$O$1898,5,0) -> 4631.39582 | I110: =+VLOOKUP(C110,'Anexo_GL '!$B$9:$O$1898,6,0) -> 0.05085 | J110: =+VLOOKUP(C110,'Anexo_GL '!$B$9:$O$1898,7,0) -> 4532.84691 | L110: =+VLOOKUP(C110,'Anexo_GL '!$B$9:$O$1898,8,0) -> 2.127844689 | N110: =+VLOOKUP(C110,'Anexo_GL '!$B$9:$O$1898,9,0) -> Cumple | P110: =+VLOOKUP(C110,'Anexo_GL '!$B$9:$O$1898,11,0) -> 4924.53601 | Q110: =+VLOOKUP(C110,'Anexo_GL '!$B$9:$O$1898,12,0) -> 3076.22127 | R110: =+VLOOKUP(C110,'Anexo_GL '!$B$9:$O$1898,13,0) -> 1848.31474 | S110: =+VLOOKUP(C110,'Anexo_GL '!$B$9:$O$1898,14,0) -> Cumple
A111: 010707 : MD DE YAMON | B111: 84 | C111: 010707 | D111: AMAZONAS | E111: MD DE YAMON | F111: =+VLOOKUP(C111,'Anexo_GL '!$B$9:$O$1898,4,0) -> 82.45009 | H111: =+VLOOKUP(C111,'Anexo_GL '!$B$9:$O$1898,5,0) -> 2333.191932 | I111: =+VLOOKUP(C111,'Anexo_GL '!$B$9:$O$1898,6,0) -> 0.02882 | J111: =+VLOOKUP(C111,'Anexo_GL '!$B$9:$O$1898,7,0) -> 2250.741843 | L111: =+VLOOKUP(C111,'Anexo_GL '!$B$9:$O$1898,8,0) -> 3.533789435 | N111: =+VLOOKUP(C111,'Anexo_GL '!$B$9:$O$1898,9,0) -> Cumple | P111: =+VLOOKUP(C111,'Anexo_GL '!$B$9:$O$1898,11,0) -> 2484.00099 | Q111: =+VLOOKUP(C111,'Anexo_GL '!$B$9:$O$1898,12,0) -> 1918.27912 | R111: =+VLOOKUP(C111,'Anexo_GL '!$B$9:$O$1898,13,0) -> 565.72187 | S111: =+VLOOKUP(C111,'Anexo_GL '!$B$9:$O$1898,14,0) -> Cumple
A112: 020101 : MP DE HUARAZ | B112: 85 | C112: 020101 | D112: ANCASH | E112: MP DE HUARAZ | F112: =+VLOOKUP(C112,'Anexo_GL '!$B$9:$O$1898,4,0) -> 25320.4943 | H112: =+VLOOKUP(C112,'Anexo_GL '!$B$9:$O$1898,5,0) -> 66189.83295 | I112: =+VLOOKUP(C112,'Anexo_GL '!$B$9:$O$1898,6,0) -> 53937.50428 | J112: =+VLOOKUP(C112,'Anexo_GL '!$B$9:$O$1898,7,0) -> 40869.33865 | L112: =+VLOOKUP(C112,'Anexo_GL '!$B$9:$O$1898,8,0) -> 38.25435595 | N112: =+VLOOKUP(C112,'Anexo_GL '!$B$9:$O$1898,9,0) -> Cumple | P112: =+VLOOKUP(C112,'Anexo_GL '!$B$9:$O$1898,11,0) -> 92169.64838 | Q112: =+VLOOKUP(C112,'Anexo_GL '!$B$9:$O$1898,12,0) -> 45273.1498 | R112: =+VLOOKUP(C112,'Anexo_GL '!$B$9:$O$1898,13,0) -> 46896.49858 | S112: =+VLOOKUP(C112,'Anexo_GL '!$B$9:$O$1898,14,0) -> Cumple
A113: 020102 : MD DE COCHABAMBA | B113: 86 | C113: 020102 | D113: ANCASH | E113: MD DE COCHABAMBA | F113: =+VLOOKUP(C113,'Anexo_GL '!$B$9:$O$1898,4,0) -> 140.57816 | H113: =+VLOOKUP(C113,'Anexo_GL '!$B$9:$O$1898,5,0) -> 3155.01216 | I113: =+VLOOKUP(C113,'Anexo_GL '!$B$9:$O$1898,6,0) -> 3630.69511 | J113: =+VLOOKUP(C113,'Anexo_GL '!$B$9:$O$1898,7,0) -> 3490.11695 | L113: =+VLOOKUP(C113,'Anexo_GL '!$B$9:$O$1898,8,0) -> 3.871935146 | N113: =+VLOOKUP(C113,'Anexo_GL '!$B$9:$O$1898,9,0) -> Cumple | P113: =+VLOOKUP(C113,'Anexo_GL '!$B$9:$O$1898,11,0) -> 4405.49941 | Q113: =+VLOOKUP(C113,'Anexo_GL '!$B$9:$O$1898,12,0) -> 1558.10329 | R113: =+VLOOKUP(C113,'Anexo_GL '!$B$9:$O$1898,13,0) -> 2847.39612 | S113: =+VLOOKUP(C113,'Anexo_GL '!$B$9:$O$1898,14,0) -> Cumple
A114: 020103 : MD DE COLCABAMBA | B114: 87 | C114: 020103 | D114: ANCASH | E114: MD DE COLCABAMBA | F114: =+VLOOKUP(C114,'Anexo_GL '!$B$9:$O$1898,4,0) -> 89.72175 | H114: =+VLOOKUP(C114,'Anexo_GL '!$B$9:$O$1898,5,0) -> 1858.916587 | I114: =+VLOOKUP(C114,'Anexo_GL '!$B$9:$O$1898,6,0) -> 251.66147 | J114: =+VLOOKUP(C114,'Anexo_GL '!$B$9:$O$1898,7,0) -> 1769.194837 | L114: =+VLOOKUP(C114,'Anexo_GL '!$B$9:$O$1898,8,0) -> 4.826561375 | N114: =+VLOOKUP(C114,'Anexo_GL '!$B$9:$O$1898,9,0) -> Cumple | P114: =+VLOOKUP(C114,'Anexo_GL '!$B$9:$O$1898,11,0) -> 1380.80502 | Q114: =+VLOOKUP(C114,'Anexo_GL '!$B$9:$O$1898,12,0) -> 1183.168 | R114: =+VLOOKUP(C114,'Anexo_GL '!$B$9:$O$1898,13,0) -> 197.63702 | S114: =+VLOOKUP(C114,'Anexo_GL '!$B$9:$O$1898,14,0) -> Cumple
A115: 020104 : MD DE HUANCHAY | B115: 88 | C115: 020104 | D115: ANCASH | E115: MD DE HUANCHAY | F115: =+VLOOKUP(C115,'Anexo_GL '!$B$9:$O$1898,4,0) -> 76.48132 | H115: =+VLOOKUP(C115,'Anexo_GL '!$B$9:$O$1898,5,0) -> 2715.419193 | I115: =+VLOOKUP(C115,'Anexo_GL '!$B$9:$O$1898,6,0) -> 3156.55101 | J115: =+VLOOKUP(C115,'Anexo_GL '!$B$9:$O$1898,7,0) -> 3080.06969 | L115: =+VLOOKUP(C115,'Anexo_GL '!$B$9:$O$1898,8,0) -> 2.42293946 | N115: =+VLOOKUP(C115,'Anexo_GL '!$B$9:$O$1898,9,0) -> Cumple | P115: =+VLOOKUP(C115,'Anexo_GL '!$B$9:$O$1898,11,0) -> 4278.11673 | Q115: =+VLOOKUP(C115,'Anexo_GL '!$B$9:$O$1898,12,0) -> 1740.92406 | R115: =+VLOOKUP(C115,'Anexo_GL '!$B$9:$O$1898,13,0) -> 2537.19267 | S115: =+VLOOKUP(C115,'Anexo_GL '!$B$9:$O$1898,14,0) -> Cumple
A116: 020105 : MD DE INDEPENDENCIA | B116: 89 | C116: 020105 | D116: ANCASH | E116: MD DE INDEPENDENCIA | F116: =+VLOOKUP(C116,'Anexo_GL '!$B$9:$O$1898,4,0) -> 11285.63752 | H116: =+VLOOKUP(C116,'Anexo_GL '!$B$9:$O$1898,5,0) -> 55419.4877 | I116: =+VLOOKUP(C116,'Anexo_GL '!$B$9:$O$1898,6,0) -> 70106.14955 | J116: =+VLOOKUP(C116,'Anexo_GL '!$B$9:$O$1898,7,0) -> 58820.51203 | L116: =+VLOOKUP(C116,'Anexo_GL '!$B$9:$O$1898,8,0) -> 16.09792806 | N116: =+VLOOKUP(C116,'Anexo_GL '!$B$9:$O$1898,9,0) -> Cumple | P116: =+VLOOKUP(C116,'Anexo_GL '!$B$9:$O$1898,11,0) -> 86804.86023 | Q116: =+VLOOKUP(C116,'Anexo_GL '!$B$9:$O$1898,12,0) -> 27543.90639 | R116: =+VLOOKUP(C116,'Anexo_GL '!$B$9:$O$1898,13,0) -> 59260.95384 | S116: =+VLOOKUP(C116,'Anexo_GL '!$B$9:$O$1898,14,0) -> Cumple
A117: 020106 : MD DE JANGAS | B117: 90 | C117: 020106 | D117: ANCASH | E117: MD DE JANGAS | F117: =+VLOOKUP(C117,'Anexo_GL '!$B$9:$O$1898,4,0) -> 1477.3842 | H117: =+VLOOKUP(C117,'Anexo_GL '!$B$9:$O$1898,5,0) -> 5378.397295 | I117: =+VLOOKUP(C117,'Anexo_GL '!$B$9:$O$1898,6,0) -> 6447.03084 | J117: =+VLOOKUP(C117,'Anexo_GL '!$B$9:$O$1898,7,0) -> 4969.64664 | L117: =+VLOOKUP(C117,'Anexo_GL '!$B$9:$O$1898,8,0) -> 22.91573031 | N117: =+VLOOKUP(C117,'Anexo_GL '!$B$9:$O$1898,9,0) -> Cumple | P117: =+VLOOKUP(C117,'Anexo_GL '!$B$9:$O$1898,11,0) -> 8869.58924 | Q117: =+VLOOKUP(C117,'Anexo_GL '!$B$9:$O$1898,12,0) -> 3315.76974 | R117: =+VLOOKUP(C117,'Anexo_GL '!$B$9:$O$1898,13,0) -> 5553.8195 | S117: =+VLOOKUP(C117,'Anexo_GL '!$B$9:$O$1898,14,0) -> Cumple
A118: 020107 : MD DE LA LIBERTAD | B118: 91 | C118: 020107 | D118: ANCASH | E118: MD DE LA LIBERTAD | F118: =+VLOOKUP(C118,'Anexo_GL '!$B$9:$O$1898,4,0) -> 75.1662 | H118: =+VLOOKUP(C118,'Anexo_GL '!$B$9:$O$1898,5,0) -> 2675.312017 | I118: =+VLOOKUP(C118,'Anexo_GL '!$B$9:$O$1898,6,0) -> 2352.5175 | J118: =+VLOOKUP(C118,'Anexo_GL '!$B$9:$O$1898,7,0) -> 2600.145817 | L118: =+VLOOKUP(C118,'Anexo_GL '!$B$9:$O$1898,8,0) -> 2.809623682 | N118: =+VLOOKUP(C118,'Anexo_GL '!$B$9:$O$1898,9,0) -> Cumple | P118: =+VLOOKUP(C118,'Anexo_GL '!$B$9:$O$1898,11,0) -> 3476.50084 | Q118: =+VLOOKUP(C118,'Anexo_GL '!$B$9:$O$1898,12,0) -> 1549.07088 | R118: =+VLOOKUP(C118,'Anexo_GL '!$B$9:$O$1898,13,0) -> 1927.42996 | S118: =+VLOOKUP(C118,'Anexo_GL '!$B$9:$O$1898,14,0) -> Cumple
A119: 020108 : MD DE OLLEROS | B119: 92 | C119: 020108 | D119: ANCASH | E119: MD DE OLLEROS | F119: =+VLOOKUP(C119,'Anexo_GL '!$B$9:$O$1898,4,0) -> 1140.0652 | H119: =+VLOOKUP(C119,'Anexo_GL '!$B$9:$O$1898,5,0) -> 2809.318452 | I119: =+VLOOKUP(C119,'Anexo_GL '!$B$9:$O$1898,6,0) -> 3788.78366 | J119: =+VLOOKUP(C119,'Anexo_GL '!$B$9:$O$1898,7,0) -> 2648.71846 | L119: =+VLOOKUP(C119,'Anexo_GL '!$B$9:$O$1898,8,0) -> 30.09053307 | N119: =+VLOOKUP(C119,'Anexo_GL '!$B$9:$O$1898,9,0) -> Cumple | P119: =+VLOOKUP(C119,'Anexo_GL '!$B$9:$O$1898,11,0) -> 4888.8856 | Q119: =+VLOOKUP(C119,'Anexo_GL '!$B$9:$O$1898,12,0) -> 1936.69301 | R119: =+VLOOKUP(C119,'Anexo_GL '!$B$9:$O$1898,13,0) -> 2952.19259 | S119: =+VLOOKUP(C119,'Anexo_GL '!$B$9:$O$1898,14,0) -> Cumple
A120: 020109 : MD DE PAMPAS | B120: 93 | C120: 020109 | D120: ANCASH | E120: MD DE PAMPAS | F120: =+VLOOKUP(C120,'Anexo_GL '!$B$9:$O$1898,4,0) -> 61.26239 | H120: =+VLOOKUP(C120,'Anexo_GL '!$B$9:$O$1898,5,0) -> 1826.339978 | I120: =+VLOOKUP(C120,'Anexo_GL '!$B$9:$O$1898,6,0) -> 1439.49868 | J120: =+VLOOKUP(C120,'Anexo_GL '!$B$9:$O$1898,7,0) -> 1765.077588 | L120: =+VLOOKUP(C120,'Anexo_GL '!$B$9:$O$1898,8,0) -> 3.354380387 | N120: =+VLOOKUP(C120,'Anexo_GL '!$B$9:$O$1898,9,0) -> Cumple | P120: =+VLOOKUP(C120,'Anexo_GL '!$B$9:$O$1898,11,0) -> 2201.3797 | Q120: =+VLOOKUP(C120,'Anexo_GL '!$B$9:$O$1898,12,0) -> 1065.58015 | R120: =+VLOOKUP(C120,'Anexo_GL '!$B$9:$O$1898,13,0) -> 1135.79955 | S120: =+VLOOKUP(C120,'Anexo_GL '!$B$9:$O$1898,14,0) -> Cumple
A121: 020110 : MD DE PARIACOTO | B121: 94 | C121: 020110 | D121: ANCASH | E121: MD DE PARIACOTO | F121: =+VLOOKUP(C121,'Anexo_GL '!$B$9:$O$1898,4,0) -> 207.21135 | H121: =+VLOOKUP(C121,'Anexo_GL '!$B$9:$O$1898,5,0) -> 4543.375195 | I121: =+VLOOKUP(C121,'Anexo_GL '!$B$9:$O$1898,6,0) -> 5293.81241 | J121: =+VLOOKUP(C121,'Anexo_GL '!$B$9:$O$1898,7,0) -> 5086.60106 | L121: =+VLOOKUP(C121,'Anexo_GL '!$B$9:$O$1898,8,0) -> 3.914217844 | N121: =+VLOOKUP(C121,'Anexo_GL '!$B$9:$O$1898,9,0) -> Cumple | P121: =+VLOOKUP(C121,'Anexo_GL '!$B$9:$O$1898,11,0) -> 6593.08256 | Q121: =+VLOOKUP(C121,'Anexo_GL '!$B$9:$O$1898,12,0) -> 1955.6259 | R121: =+VLOOKUP(C121,'Anexo_GL '!$B$9:$O$1898,13,0) -> 4637.45666 | S121: =+VLOOKUP(C121,'Anexo_GL '!$B$9:$O$1898,14,0) -> Cumple
A122: 020111 : MD DE PIRA | B122: 95 | C122: 020111 | D122: ANCASH | E122: MD DE PIRA | F122: =+VLOOKUP(C122,'Anexo_GL '!$B$9:$O$1898,4,0) -> 762.4559 | H122: =+VLOOKUP(C122,'Anexo_GL '!$B$9:$O$1898,5,0) -> 4620.33786 | I122: =+VLOOKUP(C122,'Anexo_GL '!$B$9:$O$1898,6,0) -> 5393.72703 | J122: =+VLOOKUP(C122,'Anexo_GL '!$B$9:$O$1898,7,0) -> 4631.27113 | L122: =+VLOOKUP(C122,'Anexo_GL '!$B$9:$O$1898,8,0) -> 14.13597492 | N122: =+VLOOKUP(C122,'Anexo_GL '!$B$9:$O$1898,9,0) -> Cumple | P122: =+VLOOKUP(C122,'Anexo_GL '!$B$9:$O$1898,11,0) -> 6419.87496 | Q122: =+VLOOKUP(C122,'Anexo_GL '!$B$9:$O$1898,12,0) -> 2049.45265 | R122: =+VLOOKUP(C122,'Anexo_GL '!$B$9:$O$1898,13,0) -> 4370.42231 | S122: =+VLOOKUP(C122,'Anexo_GL '!$B$9:$O$1898,14,0) -> Cumple
A123: 020112 : MD DE TARICA | B123: 96 | C123: 020112 | D123: ANCASH | E123: MD DE TARICA | F123: =+VLOOKUP(C123,'Anexo_GL '!$B$9:$O$1898,4,0) -> 1786.08424 | H123: =+VLOOKUP(C123,'Anexo_GL '!$B$9:$O$1898,5,0) -> 6911.914722 | I123: =+VLOOKUP(C123,'Anexo_GL '!$B$9:$O$1898,6,0) -> 10428.16986 | J123: =+VLOOKUP(C123,'Anexo_GL '!$B$9:$O$1898,7,0) -> 8642.08562 | L123: =+VLOOKUP(C123,'Anexo_GL '!$B$9:$O$1898,8,0) -> 17.1274947 | N123: =+VLOOKUP(C123,'Anexo_GL '!$B$9:$O$1898,9,0) -> Cumple | P123: =+VLOOKUP(C123,'Anexo_GL '!$B$9:$O$1898,11,0) -> 11628.15524 | Q123: =+VLOOKUP(C123,'Anexo_GL '!$B$9:$O$1898,12,0) -> 2518.57801 | R123: =+VLOOKUP(C123,'Anexo_GL '!$B$9:$O$1898,13,0) -> 9109.57723 | S123: =+VLOOKUP(C123,'Anexo_GL '!$B$9:$O$1898,14,0) -> Cumple
A124: 020201 : MP DE AIJA | B124: 97 | C124: 020201 | D124: ANCASH | E124: MP DE AIJA | F124: =+VLOOKUP(C124,'Anexo_GL '!$B$9:$O$1898,4,0) -> 1348.62254 | H124: =+VLOOKUP(C124,'Anexo_GL '!$B$9:$O$1898,5,0) -> 10517.20127 | I124: =+VLOOKUP(C124,'Anexo_GL '!$B$9:$O$1898,6,0) -> 4348.30489 | J124: =+VLOOKUP(C124,'Anexo_GL '!$B$9:$O$1898,7,0) -> 9168.578733 | L124: =+VLOOKUP(C124,'Anexo_GL '!$B$9:$O$1898,8,0) -> 12.82301731 | N124: =+VLOOKUP(C124,'Anexo_GL '!$B$9:$O$1898,9,0) -> Cumple | P124: =+VLOOKUP(C124,'Anexo_GL '!$B$9:$O$1898,11,0) -> 9240.18439 | Q124: =+VLOOKUP(C124,'Anexo_GL '!$B$9:$O$1898,12,0) -> 5268.70389 | R124: =+VLOOKUP(C124,'Anexo_GL '!$B$9:$O$1898,13,0) -> 3971.4805 | S124: =+VLOOKUP(C124,'Anexo_GL '!$B$9:$O$1898,14,0) -> Cumple
A125: 020202 : MD DE CORIS | B125: 98 | C125: 020202 | D125: ANCASH | E125: MD DE CORIS | F125: =+VLOOKUP(C125,'Anexo_GL '!$B$9:$O$1898,4,0) -> 118.0385 | H125: =+VLOOKUP(C125,'Anexo_GL '!$B$9:$O$1898,5,0) -> 4039.908637 | I125: =+VLOOKUP(C125,'Anexo_GL '!$B$9:$O$1898,6,0) -> 6458.28555 | J125: =+VLOOKUP(C125,'Anexo_GL '!$B$9:$O$1898,7,0) -> 6340.24705 | L125: =+VLOOKUP(C125,'Anexo_GL '!$B$9:$O$1898,8,0) -> 1.827706426 | N125: =+VLOOKUP(C125,'Anexo_GL '!$B$9:$O$1898,9,0) -> Cumple | P125: =+VLOOKUP(C125,'Anexo_GL '!$B$9:$O$1898,11,0) -> 6582.83822 | Q125: =+VLOOKUP(C125,'Anexo_GL '!$B$9:$O$1898,12,0) -> 1625.13794 | R125: =+VLOOKUP(C125,'Anexo_GL '!$B$9:$O$1898,13,0) -> 4957.70028 | S125: =+VLOOKUP(C125,'Anexo_GL '!$B$9:$O$1898,14,0) -> Cumple
A126: 020203 : MD DE HUACLLAN | B126: 99 | C126: 020203 | D126: ANCASH | E126: MD DE HUACLLAN | F126: =+VLOOKUP(C126,'Anexo_GL '!$B$9:$O$1898,4,0) -> 224.58881 | H126: =+VLOOKUP(C126,'Anexo_GL '!$B$9:$O$1898,5,0) -> 1208.953325 | I126: =+VLOOKUP(C126,'Anexo_GL '!$B$9:$O$1898,6,0) -> 914.02405 | J126: =+VLOOKUP(C126,'Anexo_GL '!$B$9:$O$1898,7,0) -> 984.364515 | L126: =+VLOOKUP(C126,'Anexo_GL '!$B$9:$O$1898,8,0) -> 18.57712828 | N126: =+VLOOKUP(C126,'Anexo_GL '!$B$9:$O$1898,9,0) -> Cumple | P126: =+VLOOKUP(C126,'Anexo_GL '!$B$9:$O$1898,11,0) -> 1824.76603 | Q126: =+VLOOKUP(C126,'Anexo_GL '!$B$9:$O$1898,12,0) -> 1014.39393 | R126: =+VLOOKUP(C126,'Anexo_GL '!$B$9:$O$1898,13,0) -> 810.3721 | S126: =+VLOOKUP(C126,'Anexo_GL '!$B$9:$O$1898,14,0) -> Cumple
A127: 020204 : MD DE LA MERCED | B127: 100 | C127: 020204 | D127: ANCASH | E127: MD DE LA MERCED | F127: =+VLOOKUP(C127,'Anexo_GL '!$B$9:$O$1898,4,0) -> 64.971 | H127: =+VLOOKUP(C127,'Anexo_GL '!$B$9:$O$1898,5,0) -> 3131.52254 | I127: =+VLOOKUP(C127,'Anexo_GL '!$B$9:$O$1898,6,0) -> 4291.99891 | J127: =+VLOOKUP(C127,'Anexo_GL '!$B$9:$O$1898,7,0) -> 4227.02791 | L127: =+VLOOKUP(C127,'Anexo_GL '!$B$9:$O$1898,8,0) -> 1.513770189 | N127: =+VLOOKUP(C127,'Anexo_GL '!$B$9:$O$1898,9,0) -> Cumple | P127: =+VLOOKUP(C127,'Anexo_GL '!$B$9:$O$1898,11,0) -> 4270.86699 | Q127: =+VLOOKUP(C127,'Anexo_GL '!$B$9:$O$1898,12,0) -> 1445.55219 | R127: =+VLOOKUP(C127,'Anexo_GL '!$B$9:$O$1898,13,0) -> 2825.3148 | S127: =+VLOOKUP(C127,'Anexo_GL '!$B$9:$O$1898,14,0) -> Cumple
A128: 020205 : MD DE SUCCHA | B128: 101 | C128: 020205 | D128: ANCASH | E128: MD DE SUCCHA | F128: =+VLOOKUP(C128,'Anexo_GL '!$B$9:$O$1898,4,0) -> 71.20349 | H128: =+VLOOKUP(C128,'Anexo_GL '!$B$9:$O$1898,5,0) -> 1647.56339 | I128: =+VLOOKUP(C128,'Anexo_GL '!$B$9:$O$1898,6,0) -> 1722.70882 | J128: =+VLOOKUP(C128,'Anexo_GL '!$B$9:$O$1898,7,0) -> 1651.50533 | L128: =+VLOOKUP(C128,'Anexo_GL '!$B$9:$O$1898,8,0) -> 4.133228389 | N128: =+VLOOKUP(C128,'Anexo_GL '!$B$9:$O$1898,9,0) -> Cumple | P128: =+VLOOKUP(C128,'Anexo_GL '!$B$9:$O$1898,11,0) -> 2609.0402 | Q128: =+VLOOKUP(C128,'Anexo_GL '!$B$9:$O$1898,12,0) -> 1286.65326 | R128: =+VLOOKUP(C128,'Anexo_GL '!$B$9:$O$1898,13,0) -> 1322.38694 | S128: =+VLOOKUP(C128,'Anexo_GL '!$B$9:$O$1898,14,0) -> Cumple
A129: 020301 : MP DE ANTONIO RAYMONDI - LLAMELLIN | B129: 102 | C129: 020301 | D129: ANCASH | E129: MP DE ANTONIO RAYMONDI - LLAMELLIN | F129: =+VLOOKUP(C129,'Anexo_GL '!$B$9:$O$1898,4,0) -> 245.58046 | H129: =+VLOOKUP(C129,'Anexo_GL '!$B$9:$O$1898,5,0) -> 7942.947425 | I129: =+VLOOKUP(C129,'Anexo_GL '!$B$9:$O$1898,6,0) -> 5864.60584 | J129: =+VLOOKUP(C129,'Anexo_GL '!$B$9:$O$1898,7,0) -> 7697.366965 | L129: =+VLOOKUP(C129,'Anexo_GL '!$B$9:$O$1898,8,0) -> 3.091805181 | N129: =+VLOOKUP(C129,'Anexo_GL '!$B$9:$O$1898,9,0) -> Cumple | P129: =+VLOOKUP(C129,'Anexo_GL '!$B$9:$O$1898,11,0) -> 7912.18584 | Q129: =+VLOOKUP(C129,'Anexo_GL '!$B$9:$O$1898,12,0) -> 3655.24118 | R129: =+VLOOKUP(C129,'Anexo_GL '!$B$9:$O$1898,13,0) -> 4256.94466 | S129: =+VLOOKUP(C129,'Anexo_GL '!$B$9:$O$1898,14,0) -> Cumple
A130: 020302 : MD DE ACSO | B130: 103 | C130: 020302 | D130: ANCASH | E130: MD DE ACSO | F130: =+VLOOKUP(C130,'Anexo_GL '!$B$9:$O$1898,4,0) -> 35.9093 | H130: =+VLOOKUP(C130,'Anexo_GL '!$B$9:$O$1898,5,0) -> 2076.609158 | I130: =+VLOOKUP(C130,'Anexo_GL '!$B$9:$O$1898,6,0) -> 2141.89392 | J130: =+VLOOKUP(C130,'Anexo_GL '!$B$9:$O$1898,7,0) -> 2105.98462 | L130: =+VLOOKUP(C130,'Anexo_GL '!$B$9:$O$1898,8,0) -> 1.676520936 | N130: =+VLOOKUP(C130,'Anexo_GL '!$B$9:$O$1898,9,0) -> Cumple | P130: =+VLOOKUP(C130,'Anexo_GL '!$B$9:$O$1898,11,0) -> 3217.80767 | Q130: =+VLOOKUP(C130,'Anexo_GL '!$B$9:$O$1898,12,0) -> 1590.93363 | R130: =+VLOOKUP(C130,'Anexo_GL '!$B$9:$O$1898,13,0) -> 1626.87404 | S130: =+VLOOKUP(C130,'Anexo_GL '!$B$9:$O$1898,14,0) -> Cumple
A131: 020303 : MD DE CHACCHO | B131: 104 | C131: 020303 | D131: ANCASH | E131: MD DE CHACCHO | F131: =+VLOOKUP(C131,'Anexo_GL '!$B$9:$O$1898,4,0) -> 297.23353 | H131: =+VLOOKUP(C131,'Anexo_GL '!$B$9:$O$1898,5,0) -> 2486.722442 | I131: =+VLOOKUP(C131,'Anexo_GL '!$B$9:$O$1898,6,0) -> 2964.19803 | J131: =+VLOOKUP(C131,'Anexo_GL '!$B$9:$O$1898,7,0) -> 2666.9645 | L131: =+VLOOKUP(C131,'Anexo_GL '!$B$9:$O$1898,8,0) -> 10.02745184 | N131: =+VLOOKUP(C131,'Anexo_GL '!$B$9:$O$1898,9,0) -> Cumple | P131: =+VLOOKUP(C131,'Anexo_GL '!$B$9:$O$1898,11,0) -> 3653.49392 | Q131: =+VLOOKUP(C131,'Anexo_GL '!$B$9:$O$1898,12,0) -> 1600.13739 | R131: =+VLOOKUP(C131,'Anexo_GL '!$B$9:$O$1898,13,0) -> 2053.35653 | S131: =+VLOOKUP(C131,'Anexo_GL '!$B$9:$O$1898,14,0) -> Cumple
A132: 020304 : MD DE CHINGAS | B132: 105 | C132: 020304 | D132: ANCASH | E132: MD DE CHINGAS | F132: =+VLOOKUP(C132,'Anexo_GL '!$B$9:$O$1898,4,0) -> 112.25228 | H132: =+VLOOKUP(C132,'Anexo_GL '!$B$9:$O$1898,5,0) -> 2249.980358 | I132: =+VLOOKUP(C132,'Anexo_GL '!$B$9:$O$1898,6,0) -> 2938.84464 | J132: =+VLOOKUP(C132,'Anexo_GL '!$B$9:$O$1898,7,0) -> 2826.59236 | L132: =+VLOOKUP(C132,'Anexo_GL '!$B$9:$O$1898,8,0) -> 3.819605789 | N132: =+VLOOKUP(C132,'Anexo_GL '!$B$9:$O$1898,9,0) -> Cumple | P132: =+VLOOKUP(C132,'Anexo_GL '!$B$9:$O$1898,11,0) -> 3704.8939 | Q132: =+VLOOKUP(C132,'Anexo_GL '!$B$9:$O$1898,12,0) -> 1713.26244 | R132: =+VLOOKUP(C132,'Anexo_GL '!$B$9:$O$1898,13,0) -> 1991.63146 | S132: =+VLOOKUP(C132,'Anexo_GL '!$B$9:$O$1898,14,0) -> Cumple
A133: 020305 : MD DE MIRGAS | B133: 106 | C133: 020305 | D133: ANCASH | E133: MD DE MIRGAS | F133: =+VLOOKUP(C133,'Anexo_GL '!$B$9:$O$1898,4,0) -> 600.27686 | H133: =+VLOOKUP(C133,'Anexo_GL '!$B$9:$O$1898,5,0) -> 6163.419795 | I133: =+VLOOKUP(C133,'Anexo_GL '!$B$9:$O$1898,6,0) -> 8505.47605 | J133: =+VLOOKUP(C133,'Anexo_GL '!$B$9:$O$1898,7,0) -> 7905.19919 | L133: =+VLOOKUP(C133,'Anexo_GL '!$B$9:$O$1898,8,0) -> 7.057533952 | N133: =+VLOOKUP(C133,'Anexo_GL '!$B$9:$O$1898,9,0) -> Cumple | P133: =+VLOOKUP(C133,'Anexo_GL '!$B$9:$O$1898,11,0) -> 8789.17843 | Q133: =+VLOOKUP(C133,'Anexo_GL '!$B$9:$O$1898,12,0) -> 2313.12816 | R133: =+VLOOKUP(C133,'Anexo_GL '!$B$9:$O$1898,13,0) -> 6476.05027 | S133: =+VLOOKUP(C133,'Anexo_GL '!$B$9:$O$1898,14,0) -> Cumple
A134: 020306 : MD DE SAN JUAN DE RONTOY | B134: 107 | C134: 020306 | D134: ANCASH | E134: MD DE SAN JUAN DE RONTOY | F134: =+VLOOKUP(C134,'Anexo_GL '!$B$9:$O$1898,4,0) -> 19.60211 | H134: =+VLOOKUP(C134,'Anexo_GL '!$B$9:$O$1898,5,0) -> 1676.266325 | I134: =+VLOOKUP(C134,'Anexo_GL '!$B$9:$O$1898,6,0) -> 1072.04926 | J134: =+VLOOKUP(C134,'Anexo_GL '!$B$9:$O$1898,7,0) -> 1656.664215 | L134: =+VLOOKUP(C134,'Anexo_GL '!$B$9:$O$1898,8,0) -> 1.169391147 | N134: =+VLOOKUP(C134,'Anexo_GL '!$B$9:$O$1898,9,0) -> Cumple | P134: =+VLOOKUP(C134,'Anexo_GL '!$B$9:$O$1898,11,0) -> 2007.76858 | Q134: =+VLOOKUP(C134,'Anexo_GL '!$B$9:$O$1898,12,0) -> 1372.81858 | R134: =+VLOOKUP(C134,'Anexo_GL '!$B$9:$O$1898,13,0) -> 634.95 | S134: =+VLOOKUP(C134,'Anexo_GL '!$B$9:$O$1898,14,0) -> Cumple
A135: 020401 : MP DE ASUNCION - CHACAS | B135: 108 | C135: 020401 | D135: ANCASH | E135: MP DE ASUNCION - CHACAS | F135: =+VLOOKUP(C135,'Anexo_GL '!$B$9:$O$1898,4,0) -> 913.9817 | H135: =+VLOOKUP(C135,'Anexo_GL '!$B$9:$O$1898,5,0) -> 7757.660445 | I135: =+VLOOKUP(C135,'Anexo_GL '!$B$9:$O$1898,6,0) -> 5549.0524 | J135: =+VLOOKUP(C135,'Anexo_GL '!$B$9:$O$1898,7,0) -> 6843.678745 | L135: =+VLOOKUP(C135,'Anexo_GL '!$B$9:$O$1898,8,0) -> 11.78166673 | N135: =+VLOOKUP(C135,'Anexo_GL '!$B$9:$O$1898,9,0) -> Cumple | P135: =+VLOOKUP(C135,'Anexo_GL '!$B$9:$O$1898,11,0) -> 7811.38905 | Q135: =+VLOOKUP(C135,'Anexo_GL '!$B$9:$O$1898,12,0) -> 3823.28506 | R135: =+VLOOKUP(C135,'Anexo_GL '!$B$9:$O$1898,13,0) -> 3988.10399 | S135: =+VLOOKUP(C135,'Anexo_GL '!$B$9:$O$1898,14,0) -> Cumple
A136: 020402 : MD DE ACOCHACA | B136: 109 | C136: 020402 | D136: ANCASH | E136: MD DE ACOCHACA | F136: =+VLOOKUP(C136,'Anexo_GL '!$B$9:$O$1898,4,0) -> 469.9924 | H136: =+VLOOKUP(C136,'Anexo_GL '!$B$9:$O$1898,5,0) -> 3001.357098 | I136: =+VLOOKUP(C136,'Anexo_GL '!$B$9:$O$1898,6,0) -> 3192.10012 | J136: =+VLOOKUP(C136,'Anexo_GL '!$B$9:$O$1898,7,0) -> 2722.10772 | L136: =+VLOOKUP(C136,'Anexo_GL '!$B$9:$O$1898,8,0) -> 14.72361086 | N136: =+VLOOKUP(C136,'Anexo_GL '!$B$9:$O$1898,9,0) -> Cumple | P136: =+VLOOKUP(C136,'Anexo_GL '!$B$9:$O$1898,11,0) -> 4187.67931 | Q136: =+VLOOKUP(C136,'Anexo_GL '!$B$9:$O$1898,12,0) -> 2236.88961 | R136: =+VLOOKUP(C136,'Anexo_GL '!$B$9:$O$1898,13,0) -> 1950.7897 | S136: =+VLOOKUP(C136,'Anexo_GL '!$B$9:$O$1898,14,0) -> Cumple
A137: 020501 : MP DE BOLOGNESI - CHIQUIAN | B137: 110 | C137: 020501 | D137: ANCASH | E137: MP DE BOLOGNESI - CHIQUIAN | F137: =+VLOOKUP(C137,'Anexo_GL '!$B$9:$O$1898,4,0) -> 4071.16909 | H137: =+VLOOKUP(C137,'Anexo_GL '!$B$9:$O$1898,5,0) -> 17749.55364 | I137: =+VLOOKUP(C137,'Anexo_GL '!$B$9:$O$1898,6,0) -> 3708.18949 | J137: =+VLOOKUP(C137,'Anexo_GL '!$B$9:$O$1898,7,0) -> 13678.38456 | L137: =+VLOOKUP(C137,'Anexo_GL '!$B$9:$O$1898,8,0) -> 22.93674067 | N137: =+VLOOKUP(C137,'Anexo_GL '!$B$9:$O$1898,9,0) -> Cumple | P137: =+VLOOKUP(C137,'Anexo_GL '!$B$9:$O$1898,11,0) -> 12154.46253 | Q137: =+VLOOKUP(C137,'Anexo_GL '!$B$9:$O$1898,12,0) -> 8393.32996 | R137: =+VLOOKUP(C137,'Anexo_GL '!$B$9:$O$1898,13,0) -> 3761.13257 | S137: =+VLOOKUP(C137,'Anexo_GL '!$B$9:$O$1898,14,0) -> Cumple
A138: 020502 : MD DE ABELARDO PARDO LAZAMETA | B138: 111 | C138: 020502 | D138: ANCASH | E138: MD DE ABELARDO PARDO LAZAMETA | F138: =+VLOOKUP(C138,'Anexo_GL '!$B$9:$O$1898,4,0) -> 182.52249 | H138: =+VLOOKUP(C138,'Anexo_GL '!$B$9:$O$1898,5,0) -> 1270.569375 | I138: =+VLOOKUP(C138,'Anexo_GL '!$B$9:$O$1898,6,0) -> 344.59196 | J138: =+VLOOKUP(C138,'Anexo_GL '!$B$9:$O$1898,7,0) -> 1088.046885 | L138: =+VLOOKUP(C138,'Anexo_GL '!$B$9:$O$1898,8,0) -> 14.36540921 | N138: =+VLOOKUP(C138,'Anexo_GL '!$B$9:$O$1898,9,0) -> Cumple | P138: =+VLOOKUP(C138,'Anexo_GL '!$B$9:$O$1898,11,0) -> 1361.98175 | Q138: =+VLOOKUP(C138,'Anexo_GL '!$B$9:$O$1898,12,0) -> 994.96409 | R138: =+VLOOKUP(C138,'Anexo_GL '!$B$9:$O$1898,13,0) -> 367.01766 | S138: =+VLOOKUP(C138,'Anexo_GL '!$B$9:$O$1898,14,0) -> Cumple
A139: 020503 : MD DE ANTONIO RAYMONDI | B139: 112 | C139: 020503 | D139: ANCASH | E139: MD DE ANTONIO RAYMONDI | F139: =+VLOOKUP(C139,'Anexo_GL '!$B$9:$O$1898,4,0) -> 77.17036 | H139: =+VLOOKUP(C139,'Anexo_GL '!$B$9:$O$1898,5,0) -> 2232.191903 | I139: =+VLOOKUP(C139,'Anexo_GL '!$B$9:$O$1898,6,0) -> 1924.9471 | J139: =+VLOOKUP(C139,'Anexo_GL '!$B$9:$O$1898,7,0) -> 2155.021543 | L139: =+VLOOKUP(C139,'Anexo_GL '!$B$9:$O$1898,8,0) -> 3.457156166 | N139: =+VLOOKUP(C139,'Anexo_GL '!$B$9:$O$1898,9,0) -> Cumple | P139: =+VLOOKUP(C139,'Anexo_GL '!$B$9:$O$1898,11,0) -> 2953.49123 | Q139: =+VLOOKUP(C139,'Anexo_GL '!$B$9:$O$1898,12,0) -> 1370.7526 | R139: =+VLOOKUP(C139,'Anexo_GL '!$B$9:$O$1898,13,0) -> 1582.73863 | S139: =+VLOOKUP(C139,'Anexo_GL '!$B$9:$O$1898,14,0) -> Cumple
A140: 020504 : MD DE AQUIA | B140: 113 | C140: 020504 | D140: ANCASH | E140: MD DE AQUIA | F140: =+VLOOKUP(C140,'Anexo_GL '!$B$9:$O$1898,4,0) -> 280.84707 | H140: =+VLOOKUP(C140,'Anexo_GL '!$B$9:$O$1898,5,0) -> 3028.746645 | I140: =+VLOOKUP(C140,'Anexo_GL '!$B$9:$O$1898,6,0) -> 2951.13687 | J140: =+VLOOKUP(C140,'Anexo_GL '!$B$9:$O$1898,7,0) -> 2747.899575 | L140: =+VLOOKUP(C140,'Anexo_GL '!$B$9:$O$1898,8,0) -> 9.272715843 | N140: =+VLOOKUP(C140,'Anexo_GL '!$B$9:$O$1898,9,0) -> Cumple | P140: =+VLOOKUP(C140,'Anexo_GL '!$B$9:$O$1898,11,0) -> 4091.68458 | Q140: =+VLOOKUP(C140,'Anexo_GL '!$B$9:$O$1898,12,0) -> 1004.12731 | R140: =+VLOOKUP(C140,'Anexo_GL '!$B$9:$O$1898,13,0) -> 3087.55727 | S140: =+VLOOKUP(C140,'Anexo_GL '!$B$9:$O$1898,14,0) -> Cumple
A141: 020505 : MD DE CAJACAY | B141: 114 | C141: 020505 | D141: ANCASH | E141: MD DE CAJACAY | F141: =+VLOOKUP(C141,'Anexo_GL '!$B$9:$O$1898,4,0) -> 2086.25605 | H141: =+VLOOKUP(C141,'Anexo_GL '!$B$9:$O$1898,5,0) -> 2583.125078 | I141: =+VLOOKUP(C141,'Anexo_GL '!$B$9:$O$1898,6,0) -> 3274.46997 | J141: =+VLOOKUP(C141,'Anexo_GL '!$B$9:$O$1898,7,0) -> 1188.21392 | L141: =+VLOOKUP(C141,'Anexo_GL '!$B$9:$O$1898,8,0) -> 63.71278616 | N141: =+VLOOKUP(C141,'Anexo_GL '!$B$9:$O$1898,9,0) -> Cumple | P141: =+VLOOKUP(C141,'Anexo_GL '!$B$9:$O$1898,11,0) -> 4472.35628 | Q141: =+VLOOKUP(C141,'Anexo_GL '!$B$9:$O$1898,12,0) -> 1243.08207 | R141: =+VLOOKUP(C141,'Anexo_GL '!$B$9:$O$1898,13,0) -> 3229.27421 | S141: =+VLOOKUP(C141,'Anexo_GL '!$B$9:$O$1898,14,0) -> Cumple
A142: 020506 : MD DE CANIS | B142: 115 | C142: 020506 | D142: ANCASH | E142: MD DE CANIS | F142: =+VLOOKUP(C142,'Anexo_GL '!$B$9:$O$1898,4,0) -> 73.0741 | H142: =+VLOOKUP(C142,'Anexo_GL '!$B$9:$O$1898,5,0) -> 1193.757213 | I142: =+VLOOKUP(C142,'Anexo_GL '!$B$9:$O$1898,6,0) -> 358.10227 | J142: =+VLOOKUP(C142,'Anexo_GL '!$B$9:$O$1898,7,0) -> 1120.683113 | L142: =+VLOOKUP(C142,'Anexo_GL '!$B$9:$O$1898,8,0) -> 6.121353591 | N142: =+VLOOKUP(C142,'Anexo_GL '!$B$9:$O$1898,9,0) -> Cumple | P142: =+VLOOKUP(C142,'Anexo_GL '!$B$9:$O$1898,11,0) -> 1365.66971 | Q142: =+VLOOKUP(C142,'Anexo_GL '!$B$9:$O$1898,12,0) -> 915.78739 | R142: =+VLOOKUP(C142,'Anexo_GL '!$B$9:$O$1898,13,0) -> 449.88232 | S142: =+VLOOKUP(C142,'Anexo_GL '!$B$9:$O$1898,14,0) -> Cumple
A143: 020507 : MD DE COLQUIOC | B143: 116 | C143: 020507 | D143: ANCASH | E143: MD DE COLQUIOC | F143: =+VLOOKUP(C143,'Anexo_GL '!$B$9:$O$1898,4,0) -> 408.59147 | H143: =+VLOOKUP(C143,'Anexo_GL '!$B$9:$O$1898,5,0) -> 3058.89921 | I143: =+VLOOKUP(C143,'Anexo_GL '!$B$9:$O$1898,6,0) -> 2809.6193 | J143: =+VLOOKUP(C143,'Anexo_GL '!$B$9:$O$1898,7,0) -> 2650.30774 | L143: =+VLOOKUP(C143,'Anexo_GL '!$B$9:$O$1898,8,0) -> 13.35746757 | N143: =+VLOOKUP(C143,'Anexo_GL '!$B$9:$O$1898,9,0) -> Cumple | P143: =+VLOOKUP(C143,'Anexo_GL '!$B$9:$O$1898,11,0) -> 4221.38525 | Q143: =+VLOOKUP(C143,'Anexo_GL '!$B$9:$O$1898,12,0) -> 1961.19181 | R143: =+VLOOKUP(C143,'Anexo_GL '!$B$9:$O$1898,13,0) -> 2260.19344 | S143: =+VLOOKUP(C143,'Anexo_GL '!$B$9:$O$1898,14,0) -> Cumple
A144: 020508 : MD DE HUALLANCA | B144: 117 | C144: 020508 | D144: ANCASH | E144: MD DE HUALLANCA | F144: =+VLOOKUP(C144,'Anexo_GL '!$B$9:$O$1898,4,0) -> 1170.45405 | H144: =+VLOOKUP(C144,'Anexo_GL '!$B$9:$O$1898,5,0) -> 10333.77768 | I144: =+VLOOKUP(C144,'Anexo_GL '!$B$9:$O$1898,6,0) -> 11911.71386 | J144: =+VLOOKUP(C144,'Anexo_GL '!$B$9:$O$1898,7,0) -> 10741.25981 | L144: =+VLOOKUP(C144,'Anexo_GL '!$B$9:$O$1898,8,0) -> 9.826075943 | N144: =+VLOOKUP(C144,'Anexo_GL '!$B$9:$O$1898,9,0) -> Cumple | P144: =+VLOOKUP(C144,'Anexo_GL '!$B$9:$O$1898,11,0) -> 15326.54491 | Q144: =+VLOOKUP(C144,'Anexo_GL '!$B$9:$O$1898,12,0) -> 4629.8399 | R144: =+VLOOKUP(C144,'Anexo_GL '!$B$9:$O$1898,13,0) -> 10696.70501 | S144: =+VLOOKUP(C144,'Anexo_GL '!$B$9:$O$1898,14,0) -> Cumple
A145: 020509 : MD DE HUASTA | B145: 118 | C145: 020509 | D145: ANCASH | E145: MD DE HUASTA | F145: =+VLOOKUP(C145,'Anexo_GL '!$B$9:$O$1898,4,0) -> 107.62816 | H145: =+VLOOKUP(C145,'Anexo_GL '!$B$9:$O$1898,5,0) -> 2765.422285 | I145: =+VLOOKUP(C145,'Anexo_GL '!$B$9:$O$1898,6,0) -> 1852.89936 | J145: =+VLOOKUP(C145,'Anexo_GL '!$B$9:$O$1898,7,0) -> 2657.794125 | L145: =+VLOOKUP(C145,'Anexo_GL '!$B$9:$O$1898,8,0) -> 3.891924954 | N145: =+VLOOKUP(C145,'Anexo_GL '!$B$9:$O$1898,9,0) -> Cumple | P145: =+VLOOKUP(C145,'Anexo_GL '!$B$9:$O$1898,11,0) -> 3382.2451 | Q145: =+VLOOKUP(C145,'Anexo_GL '!$B$9:$O$1898,12,0) -> 2050.56287 | R145: =+VLOOKUP(C145,'Anexo_GL '!$B$9:$O$1898,13,0) -> 1331.68223 | S145: =+VLOOKUP(C145,'Anexo_GL '!$B$9:$O$1898,14,0) -> Cumple
A146: 020510 : MD DE HUAYLLACAYAN | B146: 119 | C146: 020510 | D146: ANCASH | E146: MD DE HUAYLLACAYAN | F146: =+VLOOKUP(C146,'Anexo_GL '!$B$9:$O$1898,4,0) -> 784.41646 | H146: =+VLOOKUP(C146,'Anexo_GL '!$B$9:$O$1898,5,0) -> 2519.718305 | I146: =+VLOOKUP(C146,'Anexo_GL '!$B$9:$O$1898,6,0) -> 2778.35016 | J146: =+VLOOKUP(C146,'Anexo_GL '!$B$9:$O$1898,7,0) -> 1993.9337 | L146: =+VLOOKUP(C146,'Anexo_GL '!$B$9:$O$1898,8,0) -> 28.2331749 | N146: =+VLOOKUP(C146,'Anexo_GL '!$B$9:$O$1898,9,0) -> Cumple | P146: =+VLOOKUP(C146,'Anexo_GL '!$B$9:$O$1898,11,0) -> 3747.17973 | Q146: =+VLOOKUP(C146,'Anexo_GL '!$B$9:$O$1898,12,0) -> 1232.47347 | R146: =+VLOOKUP(C146,'Anexo_GL '!$B$9:$O$1898,13,0) -> 2514.70626 | S146: =+VLOOKUP(C146,'Anexo_GL '!$B$9:$O$1898,14,0) -> Cumple
A147: 020511 : MD DE LA PRIMAVERA | B147: 120 | C147: 020511 | D147: ANCASH | E147: MD DE LA PRIMAVERA | F147: =+VLOOKUP(C147,'Anexo_GL '!$B$9:$O$1898,4,0) -> 152.77694 | H147: =+VLOOKUP(C147,'Anexo_GL '!$B$9:$O$1898,5,0) -> 3450.582873 | I147: =+VLOOKUP(C147,'Anexo_GL '!$B$9:$O$1898,6,0) -> 1371.41795 | J147: =+VLOOKUP(C147,'Anexo_GL '!$B$9:$O$1898,7,0) -> 3297.805932 | L147: =+VLOOKUP(C147,'Anexo_GL '!$B$9:$O$1898,8,0) -> 4.42756907 | N147: =+VLOOKUP(C147,'Anexo_GL '!$B$9:$O$1898,9,0) -> Cumple | P147: =+VLOOKUP(C147,'Anexo_GL '!$B$9:$O$1898,11,0) -> 1910.1259 | Q147: =+VLOOKUP(C147,'Anexo_GL '!$B$9:$O$1898,12,0) -> 713.05985 | R147: =+VLOOKUP(C147,'Anexo_GL '!$B$9:$O$1898,13,0) -> 1197.06605 | S147: =+VLOOKUP(C147,'Anexo_GL '!$B$9:$O$1898,14,0) -> Cumple
A148: 020512 : MD DE MANGAS | B148: 121 | C148: 020512 | D148: ANCASH | E148: MD DE MANGAS | F148: =+VLOOKUP(C148,'Anexo_GL '!$B$9:$O$1898,4,0) -> 235.00446 | H148: =+VLOOKUP(C148,'Anexo_GL '!$B$9:$O$1898,5,0) -> 1552.260848 | I148: =+VLOOKUP(C148,'Anexo_GL '!$B$9:$O$1898,6,0) -> 1569.45997 | J148: =+VLOOKUP(C148,'Anexo_GL '!$B$9:$O$1898,7,0) -> 1334.45551 | L148: =+VLOOKUP(C148,'Anexo_GL '!$B$9:$O$1898,8,0) -> 14.97358738 | N148: =+VLOOKUP(C148,'Anexo_GL '!$B$9:$O$1898,9,0) -> Cumple | P148: =+VLOOKUP(C148,'Anexo_GL '!$B$9:$O$1898,11,0) -> 2636.22965 | Q148: =+VLOOKUP(C148,'Anexo_GL '!$B$9:$O$1898,12,0) -> 1521.31702 | R148: =+VLOOKUP(C148,'Anexo_GL '!$B$9:$O$1898,13,0) -> 1114.91263 | S148: =+VLOOKUP(C148,'Anexo_GL '!$B$9:$O$1898,14,0) -> Cumple
A149: 020513 : MD DE PACLLON | B149: 122 | C149: 020513 | D149: ANCASH | E149: MD DE PACLLON | F149: =+VLOOKUP(C149,'Anexo_GL '!$B$9:$O$1898,4,0) -> 1035.75548 | H149: =+VLOOKUP(C149,'Anexo_GL '!$B$9:$O$1898,5,0) -> 1989.864335 | I149: =+VLOOKUP(C149,'Anexo_GL '!$B$9:$O$1898,6,0) -> 1374.87704 | J149: =+VLOOKUP(C149,'Anexo_GL '!$B$9:$O$1898,7,0) -> 954.108855 | L149: =+VLOOKUP(C149,'Anexo_GL '!$B$9:$O$1898,8,0) -> 52.0515626 | N149: =+VLOOKUP(C149,'Anexo_GL '!$B$9:$O$1898,9,0) -> Cumple | P149: =+VLOOKUP(C149,'Anexo_GL '!$B$9:$O$1898,11,0) -> 2668.86895 | Q149: =+VLOOKUP(C149,'Anexo_GL '!$B$9:$O$1898,12,0) -> 883.46856 | R149: =+VLOOKUP(C149,'Anexo_GL '!$B$9:$O$1898,13,0) -> 1785.40039 | S149: =+VLOOKUP(C149,'Anexo_GL '!$B$9:$O$1898,14,0) -> Cumple
A150: 020514 : MD DE SAN MIGUEL DE CORPANQUI | B150: 123 | C150: 020514 | D150: ANCASH | E150: MD DE SAN MIGUEL DE CORPANQUI | F150: =+VLOOKUP(C150,'Anexo_GL '!$B$9:$O$1898,4,0) -> 92.55965 | H150: =+VLOOKUP(C150,'Anexo_GL '!$B$9:$O$1898,5,0) -> 1611.59632 | I150: =+VLOOKUP(C150,'Anexo_GL '!$B$9:$O$1898,6,0) -> 1438.81073 | J150: =+VLOOKUP(C150,'Anexo_GL '!$B$9:$O$1898,7,0) -> 1519.03667 | L150: =+VLOOKUP(C150,'Anexo_GL '!$B$9:$O$1898,8,0) -> 5.743352032 | N150: =+VLOOKUP(C150,'Anexo_GL '!$B$9:$O$1898,9,0) -> Cumple | P150: =+VLOOKUP(C150,'Anexo_GL '!$B$9:$O$1898,11,0) -> 2420.46986 | Q150: =+VLOOKUP(C150,'Anexo_GL '!$B$9:$O$1898,12,0) -> 1336.15448 | R150: =+VLOOKUP(C150,'Anexo_GL '!$B$9:$O$1898,13,0) -> 1084.31538 | S150: =+VLOOKUP(C150,'Anexo_GL '!$B$9:$O$1898,14,0) -> Cumple
A151: 020515 : MD DE TICLLOS | B151: 124 | C151: 020515 | D151: ANCASH | E151: MD DE TICLLOS | F151: =+VLOOKUP(C151,'Anexo_GL '!$B$9:$O$1898,4,0) -> 1377.77721 | H151: =+VLOOKUP(C151,'Anexo_GL '!$B$9:$O$1898,5,0) -> 1787.798538 | I151: =+VLOOKUP(C151,'Anexo_GL '!$B$9:$O$1898,6,0) -> 1353.48451 | J151: =+VLOOKUP(C151,'Anexo_GL '!$B$9:$O$1898,7,0) -> 410.0213275 | L151: =+VLOOKUP(C151,'Anexo_GL '!$B$9:$O$1898,8,0) -> 77.06557429 | N151: =+VLOOKUP(C151,'Anexo_GL '!$B$9:$O$1898,9,0) -> Cumple | P151: =+VLOOKUP(C151,'Anexo_GL '!$B$9:$O$1898,11,0) -> 2411.08848 | Q151: =+VLOOKUP(C151,'Anexo_GL '!$B$9:$O$1898,12,0) -> 1177.1152 | R151: =+VLOOKUP(C151,'Anexo_GL '!$B$9:$O$1898,13,0) -> 1233.97328 | S151: =+VLOOKUP(C151,'Anexo_GL '!$B$9:$O$1898,14,0) -> Cumple
A152: 020601 : MP DE CARHUAZ | B152: 125 | C152: 020601 | D152: ANCASH | E152: MP DE CARHUAZ | F152: =+VLOOKUP(C152,'Anexo_GL '!$B$9:$O$1898,4,0) -> 3044.70425 | H152: =+VLOOKUP(C152,'Anexo_GL '!$B$9:$O$1898,5,0) -> 23634.68928 | I152: =+VLOOKUP(C152,'Anexo_GL '!$B$9:$O$1898,6,0) -> 22331.65159 | J152: =+VLOOKUP(C152,'Anexo_GL '!$B$9:$O$1898,7,0) -> 20589.98503 | L152: =+VLOOKUP(C152,'Anexo_GL '!$B$9:$O$1898,8,0) -> 12.88235362 | N152: =+VLOOKUP(C152,'Anexo_GL '!$B$9:$O$1898,9,0) -> Cumple | P152: =+VLOOKUP(C152,'Anexo_GL '!$B$9:$O$1898,11,0) -> 30844.63662 | Q152: =+VLOOKUP(C152,'Anexo_GL '!$B$9:$O$1898,12,0) -> 9789.77535 | R152: =+VLOOKUP(C152,'Anexo_GL '!$B$9:$O$1898,13,0) -> 21054.86127 | S152: =+VLOOKUP(C152,'Anexo_GL '!$B$9:$O$1898,14,0) -> Cumple
A153: 020602 : MD DE ACOPAMPA | B153: 126 | C153: 020602 | D153: ANCASH | E153: MD DE ACOPAMPA | F153: =+VLOOKUP(C153,'Anexo_GL '!$B$9:$O$1898,4,0) -> 313.33742 | H153: =+VLOOKUP(C153,'Anexo_GL '!$B$9:$O$1898,5,0) -> 2632.607375 | I153: =+VLOOKUP(C153,'Anexo_GL '!$B$9:$O$1898,6,0) -> 2998.93019 | J153: =+VLOOKUP(C153,'Anexo_GL '!$B$9:$O$1898,7,0) -> 2685.59277 | L153: =+VLOOKUP(C153,'Anexo_GL '!$B$9:$O$1898,8,0) -> 10.44830657 | N153: =+VLOOKUP(C153,'Anexo_GL '!$B$9:$O$1898,9,0) -> Cumple | P153: =+VLOOKUP(C153,'Anexo_GL '!$B$9:$O$1898,11,0) -> 4057.78642 | Q153: =+VLOOKUP(C153,'Anexo_GL '!$B$9:$O$1898,12,0) -> 1642.17719 | R153: =+VLOOKUP(C153,'Anexo_GL '!$B$9:$O$1898,13,0) -> 2415.60923 | S153: =+VLOOKUP(C153,'Anexo_GL '!$B$9:$O$1898,14,0) -> Cumple
A154: 020603 : MD DE AMASHCA | B154: 127 | C154: 020603 | D154: ANCASH | E154: MD DE AMASHCA | F154: =+VLOOKUP(C154,'Anexo_GL '!$B$9:$O$1898,4,0) -> 19.73982 | H154: =+VLOOKUP(C154,'Anexo_GL '!$B$9:$O$1898,5,0) -> 2389.6208 | I154: =+VLOOKUP(C154,'Anexo_GL '!$B$9:$O$1898,6,0) -> 2437.85736 | J154: =+VLOOKUP(C154,'Anexo_GL '!$B$9:$O$1898,7,0) -> 2418.11754 | L154: =+VLOOKUP(C154,'Anexo_GL '!$B$9:$O$1898,8,0) -> 0.8097200568 | N154: =+VLOOKUP(C154,'Anexo_GL '!$B$9:$O$1898,9,0) -> Cumple | P154: =+VLOOKUP(C154,'Anexo_GL '!$B$9:$O$1898,11,0) -> 3236.38957 | Q154: =+VLOOKUP(C154,'Anexo_GL '!$B$9:$O$1898,12,0) -> 1336.27762 | R154: =+VLOOKUP(C154,'Anexo_GL '!$B$9:$O$1898,13,0) -> 1900.11195 | S154: =+VLOOKUP(C154,'Anexo_GL '!$B$9:$O$1898,14,0) -> Cumple
A155: 020604 : MD DE ANTA | B155: 128 | C155: 020604 | D155: ANCASH | E155: MD DE ANTA | F155: =+VLOOKUP(C155,'Anexo_GL '!$B$9:$O$1898,4,0) -> 375.302 | H155: =+VLOOKUP(C155,'Anexo_GL '!$B$9:$O$1898,5,0) -> 3142.04619 | I155: =+VLOOKUP(C155,'Anexo_GL '!$B$9:$O$1898,6,0) -> 3505.56565 | J155: =+VLOOKUP(C155,'Anexo_GL '!$B$9:$O$1898,7,0) -> 3130.26365 | L155: =+VLOOKUP(C155,'Anexo_GL '!$B$9:$O$1898,8,0) -> 10.70588993 | N155: =+VLOOKUP(C155,'Anexo_GL '!$B$9:$O$1898,9,0) -> Cumple | P155: =+VLOOKUP(C155,'Anexo_GL '!$B$9:$O$1898,11,0) -> 4485.01221 | Q155: =+VLOOKUP(C155,'Anexo_GL '!$B$9:$O$1898,12,0) -> 1971.77192 | R155: =+VLOOKUP(C155,'Anexo_GL '!$B$9:$O$1898,13,0) -> 2513.24029 | S155: =+VLOOKUP(C155,'Anexo_GL '!$B$9:$O$1898,14,0) -> Cumple
A156: 020605 : MD DE ATAQUERO | B156: 129 | C156: 020605 | D156: ANCASH | E156: MD DE ATAQUERO | F156: =+VLOOKUP(C156,'Anexo_GL '!$B$9:$O$1898,4,0) -> 133.25072 | H156: =+VLOOKUP(C156,'Anexo_GL '!$B$9:$O$1898,5,0) -> 1739.271303 | I156: =+VLOOKUP(C156,'Anexo_GL '!$B$9:$O$1898,6,0) -> 1212.19565 | J156: =+VLOOKUP(C156,'Anexo_GL '!$B$9:$O$1898,7,0) -> 1606.020583 | L156: =+VLOOKUP(C156,'Anexo_GL '!$B$9:$O$1898,8,0) -> 7.661295843 | N156: =+VLOOKUP(C156,'Anexo_GL '!$B$9:$O$1898,9,0) -> Cumple | P156: =+VLOOKUP(C156,'Anexo_GL '!$B$9:$O$1898,11,0) -> 2338.05987 | Q156: =+VLOOKUP(C156,'Anexo_GL '!$B$9:$O$1898,12,0) -> 1241.49174 | R156: =+VLOOKUP(C156,'Anexo_GL '!$B$9:$O$1898,13,0) -> 1096.56813 | S156: =+VLOOKUP(C156,'Anexo_GL '!$B$9:$O$1898,14,0) -> Cumple
A157: 020606 : MD DE MARCARA | B157: 130 | C157: 020606 | D157: ANCASH | E157: MD DE MARCARA | F157: =+VLOOKUP(C157,'Anexo_GL '!$B$9:$O$1898,4,0) -> 1484.48983 | H157: =+VLOOKUP(C157,'Anexo_GL '!$B$9:$O$1898,5,0) -> 9316.872117 | I157: =+VLOOKUP(C157,'Anexo_GL '!$B$9:$O$1898,6,0) -> 13113.17422 | J157: =+VLOOKUP(C157,'Anexo_GL '!$B$9:$O$1898,7,0) -> 11628.68439 | L157: =+VLOOKUP(C157,'Anexo_GL '!$B$9:$O$1898,8,0) -> 11.3205987 | N157: =+VLOOKUP(C157,'Anexo_GL '!$B$9:$O$1898,9,0) -> Cumple | P157: =+VLOOKUP(C157,'Anexo_GL '!$B$9:$O$1898,11,0) -> 14475.9843 | Q157: =+VLOOKUP(C157,'Anexo_GL '!$B$9:$O$1898,12,0) -> 3622.8267 | R157: =+VLOOKUP(C157,'Anexo_GL '!$B$9:$O$1898,13,0) -> 10853.1576 | S157: =+VLOOKUP(C157,'Anexo_GL '!$B$9:$O$1898,14,0) -> Cumple
A158: 020607 : MD DE PARIAHUANCA | B158: 131 | C158: 020607 | D158: ANCASH | E158: MD DE PARIAHUANCA | F158: =+VLOOKUP(C158,'Anexo_GL '!$B$9:$O$1898,4,0) -> 91.91726 | H158: =+VLOOKUP(C158,'Anexo_GL '!$B$9:$O$1898,5,0) -> 1971.555905 | I158: =+VLOOKUP(C158,'Anexo_GL '!$B$9:$O$1898,6,0) -> 1993.04499 | J158: =+VLOOKUP(C158,'Anexo_GL '!$B$9:$O$1898,7,0) -> 1901.12773 | L158: =+VLOOKUP(C158,'Anexo_GL '!$B$9:$O$1898,8,0) -> 4.611900908 | N158: =+VLOOKUP(C158,'Anexo_GL '!$B$9:$O$1898,9,0) -> Cumple | P158: =+VLOOKUP(C158,'Anexo_GL '!$B$9:$O$1898,11,0) -> 3071.72638 | Q158: =+VLOOKUP(C158,'Anexo_GL '!$B$9:$O$1898,12,0) -> 1577.17851 | R158: =+VLOOKUP(C158,'Anexo_GL '!$B$9:$O$1898,13,0) -> 1494.54787 | S158: =+VLOOKUP(C158,'Anexo_GL '!$B$9:$O$1898,14,0) -> Cumple
A159: 020608 : MD DE SAN MIGUEL DE ACO | B159: 132 | C159: 020608 | D159: ANCASH | E159: MD DE SAN MIGUEL DE ACO | F159: =+VLOOKUP(C159,'Anexo_GL '!$B$9:$O$1898,4,0) -> 293.65807 | H159: =+VLOOKUP(C159,'Anexo_GL '!$B$9:$O$1898,5,0) -> 2654.337522 | I159: =+VLOOKUP(C159,'Anexo_GL '!$B$9:$O$1898,6,0) -> 2706.15461 | J159: =+VLOOKUP(C159,'Anexo_GL '!$B$9:$O$1898,7,0) -> 2412.49654 | L159: =+VLOOKUP(C159,'Anexo_GL '!$B$9:$O$1898,8,0) -> 10.85148901 | N159: =+VLOOKUP(C159,'Anexo_GL '!$B$9:$O$1898,9,0) -> Cumple | P159: =+VLOOKUP(C159,'Anexo_GL '!$B$9:$O$1898,11,0) -> 3288.48434 | Q159: =+VLOOKUP(C159,'Anexo_GL '!$B$9:$O$1898,12,0) -> 1307.35091 | R159: =+VLOOKUP(C159,'Anexo_GL '!$B$9:$O$1898,13,0) -> 1981.13343 | S159: =+VLOOKUP(C159,'Anexo_GL '!$B$9:$O$1898,14,0) -> Cumple
A160: 020609 : MD DE SHILLA | B160: 133 | C160: 020609 | D160: ANCASH | E160: MD DE SHILLA | F160: =+VLOOKUP(C160,'Anexo_GL '!$B$9:$O$1898,4,0) -> 101.70472 | H160: =+VLOOKUP(C160,'Anexo_GL '!$B$9:$O$1898,5,0) -> 2496.457067 | I160: =+VLOOKUP(C160,'Anexo_GL '!$B$9:$O$1898,6,0) -> 2620.05349 | J160: =+VLOOKUP(C160,'Anexo_GL '!$B$9:$O$1898,7,0) -> 2518.34877 | L160: =+VLOOKUP(C160,'Anexo_GL '!$B$9:$O$1898,8,0) -> 3.881780291 | N160: =+VLOOKUP(C160,'Anexo_GL '!$B$9:$O$1898,9,0) -> Cumple | P160: =+VLOOKUP(C160,'Anexo_GL '!$B$9:$O$1898,11,0) -> 3662.88287 | Q160: =+VLOOKUP(C160,'Anexo_GL '!$B$9:$O$1898,12,0) -> 1760.02552 | R160: =+VLOOKUP(C160,'Anexo_GL '!$B$9:$O$1898,13,0) -> 1902.85735 | S160: =+VLOOKUP(C160,'Anexo_GL '!$B$9:$O$1898,14,0) -> Cumple
A161: 020610 : MD DE TINCO | B161: 134 | C161: 020610 | D161: ANCASH | E161: MD DE TINCO | F161: =+VLOOKUP(C161,'Anexo_GL '!$B$9:$O$1898,4,0) -> 121.1947 | H161: =+VLOOKUP(C161,'Anexo_GL '!$B$9:$O$1898,5,0) -> 3040.452377 | I161: =+VLOOKUP(C161,'Anexo_GL '!$B$9:$O$1898,6,0) -> 3782.44492 | J161: =+VLOOKUP(C161,'Anexo_GL '!$B$9:$O$1898,7,0) -> 3661.25022 | L161: =+VLOOKUP(C161,'Anexo_GL '!$B$9:$O$1898,8,0) -> 3.204136546 | N161: =+VLOOKUP(C161,'Anexo_GL '!$B$9:$O$1898,9,0) -> Cumple | P161: =+VLOOKUP(C161,'Anexo_GL '!$B$9:$O$1898,11,0) -> 4799.12 | Q161: =+VLOOKUP(C161,'Anexo_GL '!$B$9:$O$1898,12,0) -> 1702.57163 | R161: =+VLOOKUP(C161,'Anexo_GL '!$B$9:$O$1898,13,0) -> 3096.54837 | S161: =+VLOOKUP(C161,'Anexo_GL '!$B$9:$O$1898,14,0) -> Cumple
A162: 020611 : MD DE YUNGAR | B162: 135 | C162: 020611 | D162: ANCASH | E162: MD DE YUNGAR | F162: =+VLOOKUP(C162,'Anexo_GL '!$B$9:$O$1898,4,0) -> 255.76473 | H162: =+VLOOKUP(C162,'Anexo_GL '!$B$9:$O$1898,5,0) -> 2890.80918 | I162: =+VLOOKUP(C162,'Anexo_GL '!$B$9:$O$1898,6,0) -> 2834.01458 | J162: =+VLOOKUP(C162,'Anexo_GL '!$B$9:$O$1898,7,0) -> 2635.04445 | L162: =+VLOOKUP(C162,'Anexo_GL '!$B$9:$O$1898,8,0) -> 8.847513415 | N162: =+VLOOKUP(C162,'Anexo_GL '!$B$9:$O$1898,9,0) -> Cumple | P162: =+VLOOKUP(C162,'Anexo_GL '!$B$9:$O$1898,11,0) -> 4175.70204 | Q162: =+VLOOKUP(C162,'Anexo_GL '!$B$9:$O$1898,12,0) -> 2346.12551 | R162: =+VLOOKUP(C162,'Anexo_GL '!$B$9:$O$1898,13,0) -> 1829.57653 | S162: =+VLOOKUP(C162,'Anexo_GL '!$B$9:$O$1898,14,0) -> Cumple
A163: 020701 : MP DE CARLOS FERMIN FITZCARRALD | B163: 136 | C163: 020701 | D163: ANCASH | E163: MP DE CARLOS FERMIN FITZCARRALD | F163: =+VLOOKUP(C163,'Anexo_GL '!$B$9:$O$1898,4,0) -> 5916.95467 | H163: =+VLOOKUP(C163,'Anexo_GL '!$B$9:$O$1898,5,0) -> 22774.40058 | I163: =+VLOOKUP(C163,'Anexo_GL '!$B$9:$O$1898,6,0) -> 21107.81703 | J163: =+VLOOKUP(C163,'Anexo_GL '!$B$9:$O$1898,7,0) -> 16857.44591 | L163: =+VLOOKUP(C163,'Anexo_GL '!$B$9:$O$1898,8,0) -> 25.98072625 | N163: =+VLOOKUP(C163,'Anexo_GL '!$B$9:$O$1898,9,0) -> Cumple | P163: =+VLOOKUP(C163,'Anexo_GL '!$B$9:$O$1898,11,0) -> 28025.76584 | Q163: =+VLOOKUP(C163,'Anexo_GL '!$B$9:$O$1898,12,0) -> 14508.36133 | R163: =+VLOOKUP(C163,'Anexo_GL '!$B$9:$O$1898,13,0) -> 13517.40451 | S163: =+VLOOKUP(C163,'Anexo_GL '!$B$9:$O$1898,14,0) -> Cumple
A164: 020702 : MD DE SAN NICOLAS | B164: 137 | C164: 020702 | D164: ANCASH | E164: MD DE SAN NICOLAS | F164: =+VLOOKUP(C164,'Anexo_GL '!$B$9:$O$1898,4,0) -> 279.87257 | H164: =+VLOOKUP(C164,'Anexo_GL '!$B$9:$O$1898,5,0) -> 4850.755893 | I164: =+VLOOKUP(C164,'Anexo_GL '!$B$9:$O$1898,6,0) -> 5318.15372 | J164: =+VLOOKUP(C164,'Anexo_GL '!$B$9:$O$1898,7,0) -> 5038.28115 | L164: =+VLOOKUP(C164,'Anexo_GL '!$B$9:$O$1898,8,0) -> 5.26258895 | N164: =+VLOOKUP(C164,'Anexo_GL '!$B$9:$O$1898,9,0) -> Cumple | P164: =+VLOOKUP(C164,'Anexo_GL '!$B$9:$O$1898,11,0) -> 6548.26198 | Q164: =+VLOOKUP(C164,'Anexo_GL '!$B$9:$O$1898,12,0) -> 1932.73462 | R164: =+VLOOKUP(C164,'Anexo_GL '!$B$9:$O$1898,13,0) -> 4615.52736 | S164: =+VLOOKUP(C164,'Anexo_GL '!$B$9:$O$1898,14,0) -> Cumple
A165: 020703 : MD DE YAUYA | B165: 138 | C165: 020703 | D165: ANCASH | E165: MD DE YAUYA | F165: =+VLOOKUP(C165,'Anexo_GL '!$B$9:$O$1898,4,0) -> 854.2876 | H165: =+VLOOKUP(C165,'Anexo_GL '!$B$9:$O$1898,5,0) -> 8240.899435 | I165: =+VLOOKUP(C165,'Anexo_GL '!$B$9:$O$1898,6,0) -> 10644.98177 | J165: =+VLOOKUP(C165,'Anexo_GL '!$B$9:$O$1898,7,0) -> 9790.69417 | L165: =+VLOOKUP(C165,'Anexo_GL '!$B$9:$O$1898,8,0) -> 8.025261278 | N165: =+VLOOKUP(C165,'Anexo_GL '!$B$9:$O$1898,9,0) -> Cumple | P165: =+VLOOKUP(C165,'Anexo_GL '!$B$9:$O$1898,11,0) -> 11868.24345 | Q165: =+VLOOKUP(C165,'Anexo_GL '!$B$9:$O$1898,12,0) -> 3436.96071 | R165: =+VLOOKUP(C165,'Anexo_GL '!$B$9:$O$1898,13,0) -> 8431.28274 | S165: =+VLOOKUP(C165,'Anexo_GL '!$B$9:$O$1898,14,0) -> Cumple
A166: 020801 : MP DE CASMA | B166: 139 | C166: 020801 | D166: ANCASH | E166: MP DE CASMA | F166: =+VLOOKUP(C166,'Anexo_GL '!$B$9:$O$1898,4,0) -> 10817.38548 | H166: =+VLOOKUP(C166,'Anexo_GL '!$B$9:$O$1898,5,0) -> 40865.85034 | I166: =+VLOOKUP(C166,'Anexo_GL '!$B$9:$O$1898,6,0) -> 52463.76686 | J166: =+VLOOKUP(C166,'Anexo_GL '!$B$9:$O$1898,7,0) -> 41646.38138 | L166: =+VLOOKUP(C166,'Anexo_GL '!$B$9:$O$1898,8,0) -> 20.61877392 | N166: =+VLOOKUP(C166,'Anexo_GL '!$B$9:$O$1898,9,0) -> Cumple | P166: =+VLOOKUP(C166,'Anexo_GL '!$B$9:$O$1898,11,0) -> 63788.43495 | Q166: =+VLOOKUP(C166,'Anexo_GL '!$B$9:$O$1898,12,0) -> 21572.63122 | R166: =+VLOOKUP(C166,'Anexo_GL '!$B$9:$O$1898,13,0) -> 42215.80373 | S166: =+VLOOKUP(C166,'Anexo_GL '!$B$9:$O$1898,14,0) -> Cumple
A167: 020802 : MD DE BUENA VISTA ALTA | B167: 140 | C167: 020802 | D167: ANCASH | E167: MD DE BUENA VISTA ALTA | F167: =+VLOOKUP(C167,'Anexo_GL '!$B$9:$O$1898,4,0) -> 547.36072 | H167: =+VLOOKUP(C167,'Anexo_GL '!$B$9:$O$1898,5,0) -> 6316.572598 | I167: =+VLOOKUP(C167,'Anexo_GL '!$B$9:$O$1898,6,0) -> 9161.50189 | J167: =+VLOOKUP(C167,'Anexo_GL '!$B$9:$O$1898,7,0) -> 8614.14117 | L167: =+VLOOKUP(C167,'Anexo_GL '!$B$9:$O$1898,8,0) -> 5.97457411 | N167: =+VLOOKUP(C167,'Anexo_GL '!$B$9:$O$1898,9,0) -> Cumple | P167: =+VLOOKUP(C167,'Anexo_GL '!$B$9:$O$1898,11,0) -> 10560.64062 | Q167: =+VLOOKUP(C167,'Anexo_GL '!$B$9:$O$1898,12,0) -> 3147.13819 | R167: =+VLOOKUP(C167,'Anexo_GL '!$B$9:$O$1898,13,0) -> 7413.50243 | S167: =+VLOOKUP(C167,'Anexo_GL '!$B$9:$O$1898,14,0) -> Cumple
A168: 020803 : MD DE COMANDANTE NOEL | B168: 141 | C168: 020803 | D168: ANCASH | E168: MD DE COMANDANTE NOEL | F168: =+VLOOKUP(C168,'Anexo_GL '!$B$9:$O$1898,4,0) -> 2811.63621 | H168: =+VLOOKUP(C168,'Anexo_GL '!$B$9:$O$1898,5,0) -> 3389.4179 | I168: =+VLOOKUP(C168,'Anexo_GL '!$B$9:$O$1898,6,0) -> 3438.87756 | J168: =+VLOOKUP(C168,'Anexo_GL '!$B$9:$O$1898,7,0) -> 627.24135 | L168: =+VLOOKUP(C168,'Anexo_GL '!$B$9:$O$1898,8,0) -> 81.76028838 | N168: =+VLOOKUP(C168,'Anexo_GL '!$B$9:$O$1898,9,0) -> Cumple | P168: =+VLOOKUP(C168,'Anexo_GL '!$B$9:$O$1898,11,0) -> 5097.63209 | Q168: =+VLOOKUP(C168,'Anexo_GL '!$B$9:$O$1898,12,0) -> 2763.37571 | R168: =+VLOOKUP(C168,'Anexo_GL '!$B$9:$O$1898,13,0) -> 2334.25638 | S168: =+VLOOKUP(C168,'Anexo_GL '!$B$9:$O$1898,14,0) -> Cumple
A169: 020804 : MD DE YAUTAN | B169: 142 | C169: 020804 | D169: ANCASH | E169: MD DE YAUTAN | F169: =+VLOOKUP(C169,'Anexo_GL '!$B$9:$O$1898,4,0) -> 972.97255 | H169: =+VLOOKUP(C169,'Anexo_GL '!$B$9:$O$1898,5,0) -> 8536.325113 | I169: =+VLOOKUP(C169,'Anexo_GL '!$B$9:$O$1898,6,0) -> 11487.00362 | J169: =+VLOOKUP(C169,'Anexo_GL '!$B$9:$O$1898,7,0) -> 10514.03107 | L169: =+VLOOKUP(C169,'Anexo_GL '!$B$9:$O$1898,8,0) -> 8.470203216 | N169: =+VLOOKUP(C169,'Anexo_GL '!$B$9:$O$1898,9,0) -> Cumple | P169: =+VLOOKUP(C169,'Anexo_GL '!$B$9:$O$1898,11,0) -> 14070.5474 | Q169: =+VLOOKUP(C169,'Anexo_GL '!$B$9:$O$1898,12,0) -> 5631.62838 | R169: =+VLOOKUP(C169,'Anexo_GL '!$B$9:$O$1898,13,0) -> 8438.91902 | S169: =+VLOOKUP(C169,'Anexo_GL '!$B$9:$O$1898,14,0) -> Cumple
A170: 020901 : MP DE CORONGO | B170: 143 | C170: 020901 | D170: ANCASH | E170: MP DE CORONGO | F170: =+VLOOKUP(C170,'Anexo_GL '!$B$9:$O$1898,4,0) -> 1173.58149 | H170: =+VLOOKUP(C170,'Anexo_GL '!$B$9:$O$1898,5,0) -> 8837.68569 | I170: =+VLOOKUP(C170,'Anexo_GL '!$B$9:$O$1898,6,0) -> 1732.33487 | J170: =+VLOOKUP(C170,'Anexo_GL '!$B$9:$O$1898,7,0) -> 7664.1042 | L170: =+VLOOKUP(C170,'Anexo_GL '!$B$9:$O$1898,8,0) -> 13.27928522 | N170: =+VLOOKUP(C170,'Anexo_GL '!$B$9:$O$1898,9,0) -> Cumple | P170: =+VLOOKUP(C170,'Anexo_GL '!$B$9:$O$1898,11,0) -> 6124.56381 | Q170: =+VLOOKUP(C170,'Anexo_GL '!$B$9:$O$1898,12,0) -> 4893.3235 | R170: =+VLOOKUP(C170,'Anexo_GL '!$B$9:$O$1898,13,0) -> 1231.24031 | S170: =+VLOOKUP(C170,'Anexo_GL '!$B$9:$O$1898,14,0) -> Cumple
A171: 020902 : MD DE ACO | B171: 144 | C171: 020902 | D171: ANCASH | E171: MD DE ACO | F171: =+VLOOKUP(C171,'Anexo_GL '!$B$9:$O$1898,4,0) -> 353.33039 | H171: =+VLOOKUP(C171,'Anexo_GL '!$B$9:$O$1898,5,0) -> 1054.327493 | I171: =+VLOOKUP(C171,'Anexo_GL '!$B$9:$O$1898,6,0) -> 465.37538 | J171: =+VLOOKUP(C171,'Anexo_GL '!$B$9:$O$1898,7,0) -> 700.9971025 | L171: =+VLOOKUP(C171,'Anexo_GL '!$B$9:$O$1898,8,0) -> 33.51239463 | N171: =+VLOOKUP(C171,'Anexo_GL '!$B$9:$O$1898,9,0) -> Cumple | P171: =+VLOOKUP(C171,'Anexo_GL '!$B$9:$O$1898,11,0) -> 1506.65519 | Q171: =+VLOOKUP(C171,'Anexo_GL '!$B$9:$O$1898,12,0) -> 1221.89502 | R171: =+VLOOKUP(C171,'Anexo_GL '!$B$9:$O$1898,13,0) -> 284.76017 | S171: =+VLOOKUP(C171,'Anexo_GL '!$B$9:$O$1898,14,0) -> Cumple
A172: 020903 : MD DE BAMBAS | B172: 145 | C172: 020903 | D172: ANCASH | E172: MD DE BAMBAS | F172: =+VLOOKUP(C172,'Anexo_GL '!$B$9:$O$1898,4,0) -> 52.15499 | H172: =+VLOOKUP(C172,'Anexo_GL '!$B$9:$O$1898,5,0) -> 1285.558078 | I172: =+VLOOKUP(C172,'Anexo_GL '!$B$9:$O$1898,6,0) -> 910.22923 | J172: =+VLOOKUP(C172,'Anexo_GL '!$B$9:$O$1898,7,0) -> 1233.403088 | L172: =+VLOOKUP(C172,'Anexo_GL '!$B$9:$O$1898,8,0) -> 4.056992128 | N172: =+VLOOKUP(C172,'Anexo_GL '!$B$9:$O$1898,9,0) -> Cumple | P172: =+VLOOKUP(C172,'Anexo_GL '!$B$9:$O$1898,11,0) -> 1856.76432 | Q172: =+VLOOKUP(C172,'Anexo_GL '!$B$9:$O$1898,12,0) -> 908.58249 | R172: =+VLOOKUP(C172,'Anexo_GL '!$B$9:$O$1898,13,0) -> 948.18183 | S172: =+VLOOKUP(C172,'Anexo_GL '!$B$9:$O$1898,14,0) -> Cumple
A173: 020904 : MD DE CUSCA | B173: 146 | C173: 020904 | D173: ANCASH | E173: MD DE CUSCA | F173: =+VLOOKUP(C173,'Anexo_GL '!$B$9:$O$1898,4,0) -> 334.13933 | H173: =+VLOOKUP(C173,'Anexo_GL '!$B$9:$O$1898,5,0) -> 4245.61082 | I173: =+VLOOKUP(C173,'Anexo_GL '!$B$9:$O$1898,6,0) -> 5001.83558 | J173: =+VLOOKUP(C173,'Anexo_GL '!$B$9:$O$1898,7,0) -> 4667.69625 | L173: =+VLOOKUP(C173,'Anexo_GL '!$B$9:$O$1898,8,0) -> 6.680334142 | N173: =+VLOOKUP(C173,'Anexo_GL '!$B$9:$O$1898,9,0) -> Cumple | P173: =+VLOOKUP(C173,'Anexo_GL '!$B$9:$O$1898,11,0) -> 6785.79717 | Q173: =+VLOOKUP(C173,'Anexo_GL '!$B$9:$O$1898,12,0) -> 2029.51378 | R173: =+VLOOKUP(C173,'Anexo_GL '!$B$9:$O$1898,13,0) -> 4756.28339 | S173: =+VLOOKUP(C173,'Anexo_GL '!$B$9:$O$1898,14,0) -> Cumple
A174: 020905 : MD DE LA PAMPA | B174: 147 | C174: 020905 | D174: ANCASH | E174: MD DE LA PAMPA | F174: =+VLOOKUP(C174,'Anexo_GL '!$B$9:$O$1898,4,0) -> 759.53701 | H174: =+VLOOKUP(C174,'Anexo_GL '!$B$9:$O$1898,5,0) -> 1550.118427 | I174: =+VLOOKUP(C174,'Anexo_GL '!$B$9:$O$1898,6,0) -> 1450.59045 | J174: =+VLOOKUP(C174,'Anexo_GL '!$B$9:$O$1898,7,0) -> 790.5814175 | L174: =+VLOOKUP(C174,'Anexo_GL '!$B$9:$O$1898,8,0) -> 48.99864401 | N174: =+VLOOKUP(C174,'Anexo_GL '!$B$9:$O$1898,9,0) -> Cumple | P174: =+VLOOKUP(C174,'Anexo_GL '!$B$9:$O$1898,11,0) -> 2648.54796 | Q174: =+VLOOKUP(C174,'Anexo_GL '!$B$9:$O$1898,12,0) -> 1451.35671 | R174: =+VLOOKUP(C174,'Anexo_GL '!$B$9:$O$1898,13,0) -> 1197.19125 | S174: =+VLOOKUP(C174,'Anexo_GL '!$B$9:$O$1898,14,0) -> Cumple
A175: 020906 : MD DE YANAC | B175: 148 | C175: 020906 | D175: ANCASH | E175: MD DE YANAC | F175: =+VLOOKUP(C175,'Anexo_GL '!$B$9:$O$1898,4,0) -> 29.09868 | H175: =+VLOOKUP(C175,'Anexo_GL '!$B$9:$O$1898,5,0) -> 1311.013633 | I175: =+VLOOKUP(C175,'Anexo_GL '!$B$9:$O$1898,6,0) -> 934.8524 | J175: =+VLOOKUP(C175,'Anexo_GL '!$B$9:$O$1898,7,0) -> 1281.914953 | L175: =+VLOOKUP(C175,'Anexo_GL '!$B$9:$O$1898,8,0) -> 2.219555867 | N175: =+VLOOKUP(C175,'Anexo_GL '!$B$9:$O$1898,9,0) -> Cumple | P175: =+VLOOKUP(C175,'Anexo_GL '!$B$9:$O$1898,11,0) -> 1556.62281 | Q175: =+VLOOKUP(C175,'Anexo_GL '!$B$9:$O$1898,12,0) -> 944.51165 | R175: =+VLOOKUP(C175,'Anexo_GL '!$B$9:$O$1898,13,0) -> 612.11116 | S175: =+VLOOKUP(C175,'Anexo_GL '!$B$9:$O$1898,14,0) -> Cumple
A176: 020907 : MD DE YUPAN | B176: 149 | C176: 020907 | D176: ANCASH | E176: MD DE YUPAN | F176: =+VLOOKUP(C176,'Anexo_GL '!$B$9:$O$1898,4,0) -> 81.49669 | H176: =+VLOOKUP(C176,'Anexo_GL '!$B$9:$O$1898,5,0) -> 1123.403193 | I176: =+VLOOKUP(C176,'Anexo_GL '!$B$9:$O$1898,6,0) -> 702.05972 | J176: =+VLOOKUP(C176,'Anexo_GL '!$B$9:$O$1898,7,0) -> 1041.906503 | L176: =+VLOOKUP(C176,'Anexo_GL '!$B$9:$O$1898,8,0) -> 7.254447072 | N176: =+VLOOKUP(C176,'Anexo_GL '!$B$9:$O$1898,9,0) -> Cumple | P176: =+VLOOKUP(C176,'Anexo_GL '!$B$9:$O$1898,11,0) -> 1754.54645 | Q176: =+VLOOKUP(C176,'Anexo_GL '!$B$9:$O$1898,12,0) -> 1130.85862 | R176: =+VLOOKUP(C176,'Anexo_GL '!$B$9:$O$1898,13,0) -> 623.68783 | S176: =+VLOOKUP(C176,'Anexo_GL '!$B$9:$O$1898,14,0) -> Cumple
A177: 021001 : MP DE HUARI | B177: 150 | C177: 021001 | D177: ANCASH | E177: MP DE HUARI | F177: =+VLOOKUP(C177,'Anexo_GL '!$B$9:$O$1898,4,0) -> 6674.66417 | H177: =+VLOOKUP(C177,'Anexo_GL '!$B$9:$O$1898,5,0) -> 61111.32961 | I177: =+VLOOKUP(C177,'Anexo_GL '!$B$9:$O$1898,6,0) -> 92776.30643 | J177: =+VLOOKUP(C177,'Anexo_GL '!$B$9:$O$1898,7,0) -> 86101.64226 | L177: =+VLOOKUP(C177,'Anexo_GL '!$B$9:$O$1898,8,0) -> 7.1943629 | N177: =+VLOOKUP(C177,'Anexo_GL '!$B$9:$O$1898,9,0) -> Cumple | P177: =+VLOOKUP(C177,'Anexo_GL '!$B$9:$O$1898,11,0) -> 95400.93433 | Q177: =+VLOOKUP(C177,'Anexo_GL '!$B$9:$O$1898,12,0) -> 18985.52238 | R177: =+VLOOKUP(C177,'Anexo_GL '!$B$9:$O$1898,13,0) -> 76415.41195 | S177: =+VLOOKUP(C177,'Anexo_GL '!$B$9:$O$1898,14,0) -> Cumple
A178: 021002 : MD DE ANRA | B178: 151 | C178: 021002 | D178: ANCASH | E178: MD DE ANRA | F178: =+VLOOKUP(C178,'Anexo_GL '!$B$9:$O$1898,4,0) -> 763.65451 | H178: =+VLOOKUP(C178,'Anexo_GL '!$B$9:$O$1898,5,0) -> 11248.05517 | I178: =+VLOOKUP(C178,'Anexo_GL '!$B$9:$O$1898,6,0) -> 20298.18837 | J178: =+VLOOKUP(C178,'Anexo_GL '!$B$9:$O$1898,7,0) -> 19534.53386 | L178: =+VLOOKUP(C178,'Anexo_GL '!$B$9:$O$1898,8,0) -> 3.762180625 | N178: =+VLOOKUP(C178,'Anexo_GL '!$B$9:$O$1898,9,0) -> Cumple | P178: =+VLOOKUP(C178,'Anexo_GL '!$B$9:$O$1898,11,0) -> 18819.67404 | Q178: =+VLOOKUP(C178,'Anexo_GL '!$B$9:$O$1898,12,0) -> 3406.844 | R178: =+VLOOKUP(C178,'Anexo_GL '!$B$9:$O$1898,13,0) -> 15412.83004 | S178: =+VLOOKUP(C178,'Anexo_GL '!$B$9:$O$1898,14,0) -> Cumple
A179: 021003 : MD DE CAJAY | B179: 152 | C179: 021003 | D179: ANCASH | E179: MD DE CAJAY | F179: =+VLOOKUP(C179,'Anexo_GL '!$B$9:$O$1898,4,0) -> 549.73436 | H179: =+VLOOKUP(C179,'Anexo_GL '!$B$9:$O$1898,5,0) -> 25088.99 | I179: =+VLOOKUP(C179,'Anexo_GL '!$B$9:$O$1898,6,0) -> 49767.56807 | J179: =+VLOOKUP(C179,'Anexo_GL '!$B$9:$O$1898,7,0) -> 49217.83371 | L179: =+VLOOKUP(C179,'Anexo_GL '!$B$9:$O$1898,8,0) -> 1.104603623 | N179: =+VLOOKUP(C179,'Anexo_GL '!$B$9:$O$1898,9,0) -> Cumple | P179: =+VLOOKUP(C179,'Anexo_GL '!$B$9:$O$1898,11,0) -> 45817.18051 | Q179: =+VLOOKUP(C179,'Anexo_GL '!$B$9:$O$1898,12,0) -> 4543.2728 | R179: =+VLOOKUP(C179,'Anexo_GL '!$B$9:$O$1898,13,0) -> 41273.90771 | S179: =+VLOOKUP(C179,'Anexo_GL '!$B$9:$O$1898,14,0) -> Cumple
A180: 021004 : MD DE CHAVIN DE HUANTAR | B180: 153 | C180: 021004 | D180: ANCASH | E180: MD DE CHAVIN DE HUANTAR | F180: =+VLOOKUP(C180,'Anexo_GL '!$B$9:$O$1898,4,0) -> 23813.39159 | H180: =+VLOOKUP(C180,'Anexo_GL '!$B$9:$O$1898,5,0) -> 76199.70092 | I180: =+VLOOKUP(C180,'Anexo_GL '!$B$9:$O$1898,6,0) -> 146800.2136 | J180: =+VLOOKUP(C180,'Anexo_GL '!$B$9:$O$1898,7,0) -> 122986.822 | L180: =+VLOOKUP(C180,'Anexo_GL '!$B$9:$O$1898,8,0) -> 16.2216328 | N180: =+VLOOKUP(C180,'Anexo_GL '!$B$9:$O$1898,9,0) -> Cumple | P180: =+VLOOKUP(C180,'Anexo_GL '!$B$9:$O$1898,11,0) -> 136538.3273 | Q180: =+VLOOKUP(C180,'Anexo_GL '!$B$9:$O$1898,12,0) -> 27761.93511 | R180: =+VLOOKUP(C180,'Anexo_GL '!$B$9:$O$1898,13,0) -> 108776.3921 | S180: =+VLOOKUP(C180,'Anexo_GL '!$B$9:$O$1898,14,0) -> Cumple
A181: 021005 : MD DE HUACACHI | B181: 154 | C181: 021005 | D181: ANCASH | E181: MD DE HUACACHI | F181: =+VLOOKUP(C181,'Anexo_GL '!$B$9:$O$1898,4,0) -> 1340.57526 | H181: =+VLOOKUP(C181,'Anexo_GL '!$B$9:$O$1898,5,0) -> 19043.88025 | I181: =+VLOOKUP(C181,'Anexo_GL '!$B$9:$O$1898,6,0) -> 36018.85873 | J181: =+VLOOKUP(C181,'Anexo_GL '!$B$9:$O$1898,7,0) -> 34678.28347 | L181: =+VLOOKUP(C181,'Anexo_GL '!$B$9:$O$1898,8,0) -> 3.721870451 | N181: =+VLOOKUP(C181,'Anexo_GL '!$B$9:$O$1898,9,0) -> Cumple | P181: =+VLOOKUP(C181,'Anexo_GL '!$B$9:$O$1898,11,0) -> 33303.15123 | Q181: =+VLOOKUP(C181,'Anexo_GL '!$B$9:$O$1898,12,0) -> 4173.8976 | R181: =+VLOOKUP(C181,'Anexo_GL '!$B$9:$O$1898,13,0) -> 29129.25363 | S181: =+VLOOKUP(C181,'Anexo_GL '!$B$9:$O$1898,14,0) -> Cumple
A182: 021006 : MD DE HUACCHIS | B182: 155 | C182: 021006 | D182: ANCASH | E182: MD DE HUACCHIS | F182: =+VLOOKUP(C182,'Anexo_GL '!$B$9:$O$1898,4,0) -> 206.52015 | H182: =+VLOOKUP(C182,'Anexo_GL '!$B$9:$O$1898,5,0) -> 8747.85194 | I182: =+VLOOKUP(C182,'Anexo_GL '!$B$9:$O$1898,6,0) -> 12843.10559 | J182: =+VLOOKUP(C182,'Anexo_GL '!$B$9:$O$1898,7,0) -> 12636.58544 | L182: =+VLOOKUP(C182,'Anexo_GL '!$B$9:$O$1898,8,0) -> 1.608023453 | N182: =+VLOOKUP(C182,'Anexo_GL '!$B$9:$O$1898,9,0) -> Cumple | P182: =+VLOOKUP(C182,'Anexo_GL '!$B$9:$O$1898,11,0) -> 11976.5176 | Q182: =+VLOOKUP(C182,'Anexo_GL '!$B$9:$O$1898,12,0) -> 1971.53032 | R182: =+VLOOKUP(C182,'Anexo_GL '!$B$9:$O$1898,13,0) -> 10004.98728 | S182: =+VLOOKUP(C182,'Anexo_GL '!$B$9:$O$1898,14,0) -> Cumple
A183: 021007 : MD DE HUACHIS | B183: 156 | C183: 021007 | D183: ANCASH | E183: MD DE HUACHIS | F183: =+VLOOKUP(C183,'Anexo_GL '!$B$9:$O$1898,4,0) -> 3309.66758 | H183: =+VLOOKUP(C183,'Anexo_GL '!$B$9:$O$1898,5,0) -> 27076.68512 | I183: =+VLOOKUP(C183,'Anexo_GL '!$B$9:$O$1898,6,0) -> 47909.36923 | J183: =+VLOOKUP(C183,'Anexo_GL '!$B$9:$O$1898,7,0) -> 44599.70165 | L183: =+VLOOKUP(C183,'Anexo_GL '!$B$9:$O$1898,8,0) -> 6.908184418 | N183: =+VLOOKUP(C183,'Anexo_GL '!$B$9:$O$1898,9,0) -> Cumple | P183: =+VLOOKUP(C183,'Anexo_GL '!$B$9:$O$1898,11,0) -> 43068.57027 | Q183: =+VLOOKUP(C183,'Anexo_GL '!$B$9:$O$1898,12,0) -> 6328.0498 | R183: =+VLOOKUP(C183,'Anexo_GL '!$B$9:$O$1898,13,0) -> 36740.52047 | S183: =+VLOOKUP(C183,'Anexo_GL '!$B$9:$O$1898,14,0) -> Cumple
A184: 021008 : MD DE HUANTAR | B184: 157 | C184: 021008 | D184: ANCASH | E184: MD DE HUANTAR | F184: =+VLOOKUP(C184,'Anexo_GL '!$B$9:$O$1898,4,0) -> 2380.72205 | H184: =+VLOOKUP(C184,'Anexo_GL '!$B$9:$O$1898,5,0) -> 19321.47095 | I184: =+VLOOKUP(C184,'Anexo_GL '!$B$9:$O$1898,6,0) -> 33526.74947 | J184: =+VLOOKUP(C184,'Anexo_GL '!$B$9:$O$1898,7,0) -> 31146.02742 | L184: =+VLOOKUP(C184,'Anexo_GL '!$B$9:$O$1898,8,0) -> 7.100962926 | N184: =+VLOOKUP(C184,'Anexo_GL '!$B$9:$O$1898,9,0) -> Cumple | P184: =+VLOOKUP(C184,'Anexo_GL '!$B$9:$O$1898,11,0) -> 31316.01196 | Q184: =+VLOOKUP(C184,'Anexo_GL '!$B$9:$O$1898,12,0) -> 4383.67265 | R184: =+VLOOKUP(C184,'Anexo_GL '!$B$9:$O$1898,13,0) -> 26932.33931 | S184: =+VLOOKUP(C184,'Anexo_GL '!$B$9:$O$1898,14,0) -> Cumple
A185: 021009 : MD DE MASIN | B185: 158 | C185: 021009 | D185: ANCASH | E185: MD DE MASIN | F185: =+VLOOKUP(C185,'Anexo_GL '!$B$9:$O$1898,4,0) -> 1120.71543 | H185: =+VLOOKUP(C185,'Anexo_GL '!$B$9:$O$1898,5,0) -> 9842.372552 | I185: =+VLOOKUP(C185,'Anexo_GL '!$B$9:$O$1898,6,0) -> 15620.84337 | J185: =+VLOOKUP(C185,'Anexo_GL '!$B$9:$O$1898,7,0) -> 14500.12794 | L185: =+VLOOKUP(C185,'Anexo_GL '!$B$9:$O$1898,8,0) -> 7.17448734 | N185: =+VLOOKUP(C185,'Anexo_GL '!$B$9:$O$1898,9,0) -> Cumple | P185: =+VLOOKUP(C185,'Anexo_GL '!$B$9:$O$1898,11,0) -> 14491.24798 | Q185: =+VLOOKUP(C185,'Anexo_GL '!$B$9:$O$1898,12,0) -> 3208.3045 | R185: =+VLOOKUP(C185,'Anexo_GL '!$B$9:$O$1898,13,0) -> 11282.94348 | S185: =+VLOOKUP(C185,'Anexo_GL '!$B$9:$O$1898,14,0) -> Cumple
A186: 021010 : MD DE PAUCAS | B186: 159 | C186: 021010 | D186: ANCASH | E186: MD DE PAUCAS | F186: =+VLOOKUP(C186,'Anexo_GL '!$B$9:$O$1898,4,0) -> 442.7209 | H186: =+VLOOKUP(C186,'Anexo_GL '!$B$9:$O$1898,5,0) -> 11439.00024 | I186: =+VLOOKUP(C186,'Anexo_GL '!$B$9:$O$1898,6,0) -> 17831.13667 | J186: =+VLOOKUP(C186,'Anexo_GL '!$B$9:$O$1898,7,0) -> 17388.41577 | L186: =+VLOOKUP(C186,'Anexo_GL '!$B$9:$O$1898,8,0) -> 2.482852934 | N186: =+VLOOKUP(C186,'Anexo_GL '!$B$9:$O$1898,9,0) -> Cumple | P186: =+VLOOKUP(C186,'Anexo_GL '!$B$9:$O$1898,11,0) -> 16330.21934 | Q186: =+VLOOKUP(C186,'Anexo_GL '!$B$9:$O$1898,12,0) -> 1579.81629 | R186: =+VLOOKUP(C186,'Anexo_GL '!$B$9:$O$1898,13,0) -> 14750.40305 | S186: =+VLOOKUP(C186,'Anexo_GL '!$B$9:$O$1898,14,0) -> Cumple
A187: 021011 : MD DE PONTO | B187: 160 | C187: 021011 | D187: ANCASH | E187: MD DE PONTO | F187: =+VLOOKUP(C187,'Anexo_GL '!$B$9:$O$1898,4,0) -> 4895.72165 | H187: =+VLOOKUP(C187,'Anexo_GL '!$B$9:$O$1898,5,0) -> 28530.23716 | I187: =+VLOOKUP(C187,'Anexo_GL '!$B$9:$O$1898,6,0) -> 53570.64007 | J187: =+VLOOKUP(C187,'Anexo_GL '!$B$9:$O$1898,7,0) -> 48674.91842 | L187: =+VLOOKUP(C187,'Anexo_GL '!$B$9:$O$1898,8,0) -> 9.138814925 | N187: =+VLOOKUP(C187,'Anexo_GL '!$B$9:$O$1898,9,0) -> Cumple | P187: =+VLOOKUP(C187,'Anexo_GL '!$B$9:$O$1898,11,0) -> 49664.16572 | Q187: =+VLOOKUP(C187,'Anexo_GL '!$B$9:$O$1898,12,0) -> 8083.6254 | R187: =+VLOOKUP(C187,'Anexo_GL '!$B$9:$O$1898,13,0) -> 41580.54032 | S187: =+VLOOKUP(C187,'Anexo_GL '!$B$9:$O$1898,14,0) -> Cumple
A188: 021012 : MD DE RAHUAPAMPA | B188: 161 | C188: 021012 | D188: ANCASH | E188: MD DE RAHUAPAMPA | F188: =+VLOOKUP(C188,'Anexo_GL '!$B$9:$O$1898,4,0) -> 1109.48217 | H188: =+VLOOKUP(C188,'Anexo_GL '!$B$9:$O$1898,5,0) -> 5351.727332 | I188: =+VLOOKUP(C188,'Anexo_GL '!$B$9:$O$1898,6,0) -> 8970.61721 | J188: =+VLOOKUP(C188,'Anexo_GL '!$B$9:$O$1898,7,0) -> 7861.13504 | L188: =+VLOOKUP(C188,'Anexo_GL '!$B$9:$O$1898,8,0) -> 12.36795801 | N188: =+VLOOKUP(C188,'Anexo_GL '!$B$9:$O$1898,9,0) -> Cumple | P188: =+VLOOKUP(C188,'Anexo_GL '!$B$9:$O$1898,11,0) -> 9148.12742 | Q188: =+VLOOKUP(C188,'Anexo_GL '!$B$9:$O$1898,12,0) -> 1396.91598 | R188: =+VLOOKUP(C188,'Anexo_GL '!$B$9:$O$1898,13,0) -> 7751.21144 | S188: =+VLOOKUP(C188,'Anexo_GL '!$B$9:$O$1898,14,0) -> Cumple
A189: 021013 : MD DE RAPAYAN | B189: 162 | C189: 021013 | D189: ANCASH | E189: MD DE RAPAYAN | F189: =+VLOOKUP(C189,'Anexo_GL '!$B$9:$O$1898,4,0) -> 59.25335 | H189: =+VLOOKUP(C189,'Anexo_GL '!$B$9:$O$1898,5,0) -> 11199.05547 | I189: =+VLOOKUP(C189,'Anexo_GL '!$B$9:$O$1898,6,0) -> 18831.61213 | J189: =+VLOOKUP(C189,'Anexo_GL '!$B$9:$O$1898,7,0) -> 18772.35878 | L189: =+VLOOKUP(C189,'Anexo_GL '!$B$9:$O$1898,8,0) -> 0.3146483136 | N189: =+VLOOKUP(C189,'Anexo_GL '!$B$9:$O$1898,9,0) -> Cumple | P189: =+VLOOKUP(C189,'Anexo_GL '!$B$9:$O$1898,11,0) -> 17530.93357 | Q189: =+VLOOKUP(C189,'Anexo_GL '!$B$9:$O$1898,12,0) -> 2750.17401 | R189: =+VLOOKUP(C189,'Anexo_GL '!$B$9:$O$1898,13,0) -> 14780.75956 | S189: =+VLOOKUP(C189,'Anexo_GL '!$B$9:$O$1898,14,0) -> Cumple
A190: 021014 : MD DE SAN MARCOS | B190: 163 | C190: 021014 | D190: ANCASH | E190: MD DE SAN MARCOS | F190: =+VLOOKUP(C190,'Anexo_GL '!$B$9:$O$1898,4,0) -> 52861.93044 | H190: =+VLOOKUP(C190,'Anexo_GL '!$B$9:$O$1898,5,0) -> 342854.485 | I190: =+VLOOKUP(C190,'Anexo_GL '!$B$9:$O$1898,6,0) -> 684274.5234 | J190: =+VLOOKUP(C190,'Anexo_GL '!$B$9:$O$1898,7,0) -> 631412.593 | L190: =+VLOOKUP(C190,'Anexo_GL '!$B$9:$O$1898,8,0) -> 7.725251874 | N190: =+VLOOKUP(C190,'Anexo_GL '!$B$9:$O$1898,9,0) -> Cumple | P190: =+VLOOKUP(C190,'Anexo_GL '!$B$9:$O$1898,11,0) -> 620653.2013 | Q190: =+VLOOKUP(C190,'Anexo_GL '!$B$9:$O$1898,12,0) -> 139125.7407 | R190: =+VLOOKUP(C190,'Anexo_GL '!$B$9:$O$1898,13,0) -> 481527.4606 | S190: =+VLOOKUP(C190,'Anexo_GL '!$B$9:$O$1898,14,0) -> Cumple
A191: 021015 : MD DE SAN PEDRO DE CHANA | B191: 164 | C191: 021015 | D191: ANCASH | E191: MD DE SAN PEDRO DE CHANA | F191: =+VLOOKUP(C191,'Anexo_GL '!$B$9:$O$1898,4,0) -> 6357.54826 | H191: =+VLOOKUP(C191,'Anexo_GL '!$B$9:$O$1898,5,0) -> 17585.78266 | I191: =+VLOOKUP(C191,'Anexo_GL '!$B$9:$O$1898,6,0) -> 28211.17258 | J191: =+VLOOKUP(C191,'Anexo_GL '!$B$9:$O$1898,7,0) -> 21853.62432 | L191: =+VLOOKUP(C191,'Anexo_GL '!$B$9:$O$1898,8,0) -> 22.53556899 | N191: =+VLOOKUP(C191,'Anexo_GL '!$B$9:$O$1898,9,0) -> Cumple | P191: =+VLOOKUP(C191,'Anexo_GL '!$B$9:$O$1898,11,0) -> 27122.89805 | Q191: =+VLOOKUP(C191,'Anexo_GL '!$B$9:$O$1898,12,0) -> 3115.27183 | R191: =+VLOOKUP(C191,'Anexo_GL '!$B$9:$O$1898,13,0) -> 24007.62622 | S191: =+VLOOKUP(C191,'Anexo_GL '!$B$9:$O$1898,14,0) -> Cumple
A192: 021016 : MD DE UCO | B192: 165 | C192: 021016 | D192: ANCASH | E192: MD DE UCO | F192: =+VLOOKUP(C192,'Anexo_GL '!$B$9:$O$1898,4,0) -> 926.30889 | H192: =+VLOOKUP(C192,'Anexo_GL '!$B$9:$O$1898,5,0) -> 9093.253475 | I192: =+VLOOKUP(C192,'Anexo_GL '!$B$9:$O$1898,6,0) -> 14442.83414 | J192: =+VLOOKUP(C192,'Anexo_GL '!$B$9:$O$1898,7,0) -> 13516.52525 | L192: =+VLOOKUP(C192,'Anexo_GL '!$B$9:$O$1898,8,0) -> 6.413622707 | N192: =+VLOOKUP(C192,'Anexo_GL '!$B$9:$O$1898,9,0) -> Cumple | P192: =+VLOOKUP(C192,'Anexo_GL '!$B$9:$O$1898,11,0) -> 13747.28363 | Q192: =+VLOOKUP(C192,'Anexo_GL '!$B$9:$O$1898,12,0) -> 1816.61863 | R192: =+VLOOKUP(C192,'Anexo_GL '!$B$9:$O$1898,13,0) -> 11930.665 | S192: =+VLOOKUP(C192,'Anexo_GL '!$B$9:$O$1898,14,0) -> Cumple
A193: 021101 : MP DE HUARMEY | B193: 166 | C193: 021101 | D193: ANCASH | E193: MP DE HUARMEY | F193: =+VLOOKUP(C193,'Anexo_GL '!$B$9:$O$1898,4,0) -> 8225.06894 | H193: =+VLOOKUP(C193,'Anexo_GL '!$B$9:$O$1898,5,0) -> 38407.82827 | I193: =+VLOOKUP(C193,'Anexo_GL '!$B$9:$O$1898,6,0) -> 39841.44024 | J193: =+VLOOKUP(C193,'Anexo_GL '!$B$9:$O$1898,7,0) -> 31616.3713 | L193: =+VLOOKUP(C193,'Anexo_GL '!$B$9:$O$1898,8,0) -> 20.64450705 | N193: =+VLOOKUP(C193,'Anexo_GL '!$B$9:$O$1898,9,0) -> Cumple | P193: =+VLOOKUP(C193,'Anexo_GL '!$B$9:$O$1898,11,0) -> 53359.95971 | Q193: =+VLOOKUP(C193,'Anexo_GL '!$B$9:$O$1898,12,0) -> 16484.02862 | R193: =+VLOOKUP(C193,'Anexo_GL '!$B$9:$O$1898,13,0) -> 36875.93109 | S193: =+VLOOKUP(C193,'Anexo_GL '!$B$9:$O$1898,14,0) -> Cumple
A194: 021102 : MD DE COCHAPETI | B194: 167 | C194: 021102 | D194: ANCASH | E194: MD DE COCHAPETI | F194: =+VLOOKUP(C194,'Anexo_GL '!$B$9:$O$1898,4,0) -> 861.14286 | H194: =+VLOOKUP(C194,'Anexo_GL '!$B$9:$O$1898,5,0) -> 1771.617422 | I194: =+VLOOKUP(C194,'Anexo_GL '!$B$9:$O$1898,6,0) -> 2109.53956 | J194: =+VLOOKUP(C194,'Anexo_GL '!$B$9:$O$1898,7,0) -> 1248.3967 | L194: =+VLOOKUP(C194,'Anexo_GL '!$B$9:$O$1898,8,0) -> 40.82136578 | N194: =+VLOOKUP(C194,'Anexo_GL '!$B$9:$O$1898,9,0) -> Cumple | P194: =+VLOOKUP(C194,'Anexo_GL '!$B$9:$O$1898,11,0) -> 2624.12125 | Q194: =+VLOOKUP(C194,'Anexo_GL '!$B$9:$O$1898,12,0) -> 845.66988 | R194: =+VLOOKUP(C194,'Anexo_GL '!$B$9:$O$1898,13,0) -> 1778.45137 | S194: =+VLOOKUP(C194,'Anexo_GL '!$B$9:$O$1898,14,0) -> Cumple
A195: 021103 : MD DE CULEBRAS | B195: 168 | C195: 021103 | D195: ANCASH | E195: MD DE CULEBRAS | F195: =+VLOOKUP(C195,'Anexo_GL '!$B$9:$O$1898,4,0) -> 2080.97324 | H195: =+VLOOKUP(C195,'Anexo_GL '!$B$9:$O$1898,5,0) -> 4089.81307 | I195: =+VLOOKUP(C195,'Anexo_GL '!$B$9:$O$1898,6,0) -> 4898.19615 | J195: =+VLOOKUP(C195,'Anexo_GL '!$B$9:$O$1898,7,0) -> 2817.22291 | L195: =+VLOOKUP(C195,'Anexo_GL '!$B$9:$O$1898,8,0) -> 42.48448156 | N195: =+VLOOKUP(C195,'Anexo_GL '!$B$9:$O$1898,9,0) -> Cumple | P195: =+VLOOKUP(C195,'Anexo_GL '!$B$9:$O$1898,11,0) -> 6124.30995 | Q195: =+VLOOKUP(C195,'Anexo_GL '!$B$9:$O$1898,12,0) -> 2292.27564 | R195: =+VLOOKUP(C195,'Anexo_GL '!$B$9:$O$1898,13,0) -> 3832.03431 | S195: =+VLOOKUP(C195,'Anexo_GL '!$B$9:$O$1898,14,0) -> Cumple
A196: 021104 : MD DE HUAYAN | B196: 169 | C196: 021104 | D196: ANCASH | E196: MD DE HUAYAN | F196: =+VLOOKUP(C196,'Anexo_GL '!$B$9:$O$1898,4,0) -> 411.88025 | H196: =+VLOOKUP(C196,'Anexo_GL '!$B$9:$O$1898,5,0) -> 1402.578115 | I196: =+VLOOKUP(C196,'Anexo_GL '!$B$9:$O$1898,6,0) -> 1067.08824 | J196: =+VLOOKUP(C196,'Anexo_GL '!$B$9:$O$1898,7,0) -> 990.697865 | L196: =+VLOOKUP(C196,'Anexo_GL '!$B$9:$O$1898,8,0) -> 29.36594016 | N196: =+VLOOKUP(C196,'Anexo_GL '!$B$9:$O$1898,9,0) -> Cumple | P196: =+VLOOKUP(C196,'Anexo_GL '!$B$9:$O$1898,11,0) -> 2029.25088 | Q196: =+VLOOKUP(C196,'Anexo_GL '!$B$9:$O$1898,12,0) -> 1183.98026 | R196: =+VLOOKUP(C196,'Anexo_GL '!$B$9:$O$1898,13,0) -> 845.27062 | S196: =+VLOOKUP(C196,'Anexo_GL '!$B$9:$O$1898,14,0) -> Cumple
A197: 021105 : MD DE MALVAS | B197: 170 | C197: 021105 | D197: ANCASH | E197: MD DE MALVAS | F197: =+VLOOKUP(C197,'Anexo_GL '!$B$9:$O$1898,4,0) -> 60.63999 | H197: =+VLOOKUP(C197,'Anexo_GL '!$B$9:$O$1898,5,0) -> 1630.989275 | I197: =+VLOOKUP(C197,'Anexo_GL '!$B$9:$O$1898,6,0) -> 1347.55555 | J197: =+VLOOKUP(C197,'Anexo_GL '!$B$9:$O$1898,7,0) -> 1570.349285 | L197: =+VLOOKUP(C197,'Anexo_GL '!$B$9:$O$1898,8,0) -> 3.717988274 | N197: =+VLOOKUP(C197,'Anexo_GL '!$B$9:$O$1898,9,0) -> Cumple | P197: =+VLOOKUP(C197,'Anexo_GL '!$B$9:$O$1898,11,0) -> 2425.64555 | Q197: =+VLOOKUP(C197,'Anexo_GL '!$B$9:$O$1898,12,0) -> 1347.35363 | R197: =+VLOOKUP(C197,'Anexo_GL '!$B$9:$O$1898,13,0) -> 1078.29192 | S197: =+VLOOKUP(C197,'Anexo_GL '!$B$9:$O$1898,14,0) -> Cumple
A198: 021201 : MP DE HUAYLAS - CARAZ | B198: 171 | C198: 021201 | D198: ANCASH | E198: MP DE HUAYLAS - CARAZ | F198: =+VLOOKUP(C198,'Anexo_GL '!$B$9:$O$1898,4,0) -> 4474.1485 | H198: =+VLOOKUP(C198,'Anexo_GL '!$B$9:$O$1898,5,0) -> 31195.25351 | I198: =+VLOOKUP(C198,'Anexo_GL '!$B$9:$O$1898,6,0) -> 25302.82846 | J198: =+VLOOKUP(C198,'Anexo_GL '!$B$9:$O$1898,7,0) -> 26721.10501 | L198: =+VLOOKUP(C198,'Anexo_GL '!$B$9:$O$1898,8,0) -> 14.34240148 | N198: =+VLOOKUP(C198,'Anexo_GL '!$B$9:$O$1898,9,0) -> Cumple | P198: =+VLOOKUP(C198,'Anexo_GL '!$B$9:$O$1898,11,0) -> 38291.25788 | Q198: =+VLOOKUP(C198,'Anexo_GL '!$B$9:$O$1898,12,0) -> 18537.58042 | R198: =+VLOOKUP(C198,'Anexo_GL '!$B$9:$O$1898,13,0) -> 19753.67746 | S198: =+VLOOKUP(C198,'Anexo_GL '!$B$9:$O$1898,14,0) -> Cumple
A199: 021202 : MD DE HUALLANCA | B199: 172 | C199: 021202 | D199: ANCASH | E199: MD DE HUALLANCA | F199: =+VLOOKUP(C199,'Anexo_GL '!$B$9:$O$1898,4,0) -> 159.75033 | H199: =+VLOOKUP(C199,'Anexo_GL '!$B$9:$O$1898,5,0) -> 3231.338053 | I199: =+VLOOKUP(C199,'Anexo_GL '!$B$9:$O$1898,6,0) -> 1077.28605 | J199: =+VLOOKUP(C199,'Anexo_GL '!$B$9:$O$1898,7,0) -> 3071.587722 | L199: =+VLOOKUP(C199,'Anexo_GL '!$B$9:$O$1898,8,0) -> 4.94378265 | N199: =+VLOOKUP(C199,'Anexo_GL '!$B$9:$O$1898,9,0) -> Cumple | P199: =+VLOOKUP(C199,'Anexo_GL '!$B$9:$O$1898,11,0) -> 2614.52918 | Q199: =+VLOOKUP(C199,'Anexo_GL '!$B$9:$O$1898,12,0) -> 1559.4882 | R199: =+VLOOKUP(C199,'Anexo_GL '!$B$9:$O$1898,13,0) -> 1055.04098 | S199: =+VLOOKUP(C199,'Anexo_GL '!$B$9:$O$1898,14,0) -> Cumple
A200: 021203 : MD DE HUATA | B200: 173 | C200: 021203 | D200: ANCASH | E200: MD DE HUATA | F200: =+VLOOKUP(C200,'Anexo_GL '!$B$9:$O$1898,4,0) -> 251.05931 | H200: =+VLOOKUP(C200,'Anexo_GL '!$B$9:$O$1898,5,0) -> 2011.50987 | I200: =+VLOOKUP(C200,'Anexo_GL '!$B$9:$O$1898,6,0) -> 2077.42904 | J200: =+VLOOKUP(C200,'Anexo_GL '!$B$9:$O$1898,7,0) -> 1826.36973 | L200: =+VLOOKUP(C200,'Anexo_GL '!$B$9:$O$1898,8,0) -> 12.08509678 | N200: =+VLOOKUP(C200,'Anexo_GL '!$B$9:$O$1898,9,0) -> Cumple | P200: =+VLOOKUP(C200,'Anexo_GL '!$B$9:$O$1898,11,0) -> 2710.84672 | Q200: =+VLOOKUP(C200,'Anexo_GL '!$B$9:$O$1898,12,0) -> 1117.38122 | R200: =+VLOOKUP(C200,'Anexo_GL '!$B$9:$O$1898,13,0) -> 1593.4655 | S200: =+VLOOKUP(C200,'Anexo_GL '!$B$9:$O$1898,14,0) -> Cumple
... 1717 more rows

Sheet Anexo_GR
B1: Anexo N° 3: Cumplimiento de las Reglas Fiscales Subnacionales 2022
B2: Gobiernos Regionales
B4: N° | C4: UBIGEO | D4: Gobierno Regional | E4: R1: Regla Fiscal del Saldo de Deuda Total | L4: R2: Regla Fiscal de Ahorro en Cuenta Corriente
E5: 2022 | L5: 2022
E6: S/ Miles | I6: SDT/Prom. ICT 2019-2022 % | J6: Cumple R1 | L6: S/ Miles | O6: Cumple R2
E7: Saldo de Deuda Total 1/ | F7: Prom. ICT 2019-2022 | G7: Límite Ley N° 29230 2/ | H7: Espacio Total | L7: Ingreso Corriente Total | M7: Gasto Corriente Total | N7: Ahorro en Cuenta Corriente
B8: 1 | C8: 010000 | D8: AMAZONAS | E8: 357365.5144 | F8: 880222.83 | G8: 4.96304 | H8: 522857.3155 | I8: 40.59943713 | J8: Cumple | L8: 1039988.076 | M8: 854969.3989 | N8: 185018.6774 | O8: Cumple
B9: 2 | C9: 020000 | D9: ANCASH | E9: 942101.5065 | F9: 2042473.608 | G9: 629153.1886 | H9: 1100372.102 | I9: 46.12551676 | J9: Cumple | L9: 2539095.337 | M9: 1830895.822 | N9: 708199.5155 | O9: Cumple
B10: 3 | C10: 030000 | D10: APURIMAC | E10: 756366.7951 | F10: 1032768.336 | G10: 130069.8625 | H10: 276401.541 | I10: 73.23683043 | J10: Cumple | L10: 1182461.228 | M10: 992329.0055 | N10: 190132.2225 | O10: Cumple
B11: 4 | C11: 040000 | D11: AREQUIPA | E11: 878677.5865 | F11: 1873904.049 | G11: 514380.8962 | H11: 995226.4625 | I11: 46.89021228 | J11: Cumple | L11: 2218758.527 | M11: 1688376.755 | N11: 530381.7721 | O11: Cumple
B12: 5 | C12: 050000 | D12: AYACUCHO | E12: 680619.593 | F12: 1406551.421 | G12: 118325.1852 | H12: 725931.8277 | I12: 48.38924358 | J12: Cumple | L12: 1643319.305 | M12: 1379414.19 | N12: 263905.1144 | O12: Cumple
B13: 6 | C13: 060000 | D13: CAJAMARCA | E13: 1576433.088 | F13: 2368996.529 | G13: 135489.4475 | H13: 792563.441 | I13: 66.5443393 | J13: Cumple | L13: 2844792.147 | M13: 2351485.576 | N13: 493306.5705 | O13: Cumple
B14: 7 | C14: 070000 | D14: CALLAO | E14: 529817.7254 | F14: 1186108.92 | G14: 901622.892 | H14: 656291.1947 | I14: 44.66855585 | J14: Cumple | L14: 1356626.445 | M14: 1171993.145 | N14: 184633.3002 | O14: Cumple
B15: 8 | C15: 080000 | D15: CUSCO | E15: 676316.8517 | F15: 2367821.445 | G15: 1148288.692 | H15: 1691504.594 | I15: 28.56283159 | J15: Cumple | L15: 2852835.726 | M15: 1939272.743 | N15: 913562.9835 | O15: Cumple
B16: 9 | C16: 090000 | D16: HUANCAVELICA | E16: 304527.975 | F16: 1001381.808 | G16: 100787.776 | H16: 696853.833 | I16: 30.41077565 | J16: Cumple | L16: 1148598.93 | M16: 993799.9356 | N16: 154798.9946 | O16: Cumple
B17: 10 | C17: 100000 | D17: HUANUCO | E17: 170828.0991 | F17: 1273626.774 | G17: 1009.8155 | H17: 1102798.675 | I17: 13.41272832 | J17: Cumple | L17: 1561158.506 | M17: 1289027.305 | N17: 272131.2008 | O17: Cumple
B18: 11 | C18: 110000 | D18: ICA | E18: 155939.8397 | F18: 1252708.383 | G18: 301653.3428 | H18: 1096768.543 | I18: 12.44821555 | J18: Cumple | L18: 1628613.5 | M18: 1144418.789 | N18: 484194.7111 | O18: Cumple
B19: 12 | C19: 120000 | D19: JUNIN | E19: 414001.1369 | F19: 1972048.621 | G19: 39814.10901 | H19: 1558047.484 | I19: 20.99345485 | J19: Cumple | L19: 2407562.231 | M19: 1920502.781 | N19: 487059.4498 | O19: Cumple
B20: 13 | C20: 130000 | D20: LA LIBERTAD | E20: 1216579.553 | F20: 2265571.548 | G20: 155766.2866 | H20: 1048991.995 | I20: 53.69857129 | J20: Cumple | L20: 2767039.321 | M20: 2246212.755 | N20: 520826.5662 | O20: Cumple
B21: 14 | C21: 140000 | D21: LAMBAYEQUE | E21: 512828.7428 | F21: 1316150.159 | G21: 369.81925 | H21: 803321.4163 | I21: 38.96430352 | J21: Cumple | L21: 1622598.04 | M21: 1261843.278 | N21: 360754.7613 | O21: Cumple
B22: 15 | C22: 150000 | D22: LIMA | E22: 175129.4441 | F22: 1401474.23 | G22: 148907.6712 | H22: 1226344.786 | I22: 12.49608736 | J22: Cumple | L22: 1721786.767 | M22: 1394939.399 | N22: 326847.3674 | O22: Cumple
B23: 16 | C23: 160000 | D23: LORETO | E23: 510104.254 | F23: 2206773.433 | G23: 112503.3347 | H23: 1696669.179 | I23: 23.11538857 | J23: Cumple | L23: 2687112.629 | M23: 2054303.226 | N23: 632809.4022 | O23: Cumple
B24: 17 | C24: 170000 | D24: MADRE DE DIOS | E24: 52324.77486 | F24: 335434.8868 | G24: 1264.93941 | H24: 283110.112 | I24: 15.59908552 | J24: Cumple | L24: 425325.688 | M24: 321069.3677 | N24: 104256.3203 | O24: Cumple
B25: 18 | C25: 180000 | D25: MOQUEGUA | E25: 361909.5599 | F25: 486749.5997 | G25: 182049.9596 | H25: 124840.0399 | I25: 74.35230765 | J25: Cumple | L25: 589760.9422 | M25: 450986.3169 | N25: 138774.6253 | O25: Cumple
B26: 19 | C26: 190000 | D26: PASCO | E26: 241994.436 | F26: 556963.518 | G26: 24064.95148 | H26: 314969.082 | I26: 43.44888456 | J26: Cumple | L26: 664474.8019 | M26: 556916.2892 | N26: 107558.5127 | O26: Cumple
B27: 20 | C27: 200000 | D27: PIURA | E27: 1868384.944 | F27: 2298130.962 | G27: 222372.1552 | H27: 429746.0179 | I27: 81.30019459 | J27: Cumple | L27: 2923363.162 | M27: 2248048.598 | N27: 675314.5645 | O27: Cumple
B28: 21 | C28: 210000 | D28: PUNO | E28: 1326809.938 | F28: 2025739.528 | G28: 66121.50021 | H28: 698929.5903 | I28: 65.49755876 | J28: Cumple | L28: 2454183.859 | M28: 1937349.423 | N28: 516834.4359 | O28: Cumple
B29: 22 | C29: 260000 | D29: REGIÓN LIMA METROPOLITANA | E29: 8599.80067 | F29: 25624.59146 | G29: 19789.40042 | H29: 17024.79079 | I29: 33.5607328 | J29: Cumple | L29: 30781.74576 | M29: 15977.8837 | N29: 14803.86206 | O29: Cumple
B30: 23 | C30: 220000 | D30: SAN MARTIN | E30: 354346.9578 | F30: 1497494.278 | G30: 847.83174 | H30: 1143147.32 | I30: 23.66265854 | J30: Cumple | L30: 1855723.629 | M30: 1476499.688 | N30: 379223.941 | O30: Cumple
B31: 24 | C31: 230000 | D31: TACNA | E31: 110686.5956 | F31: 689616.0857 | G31: 306543.0544 | H31: 578929.4901 | I31: 16.05046604 | J31: Cumple | L31: 861063.1807 | M31: 585380.9821 | N31: 275682.1985 | O31: Cumple
B32: 25 | C32: 240000 | D32: TUMBES | E32: 242970.0518 | F32: 472471.2486 | G32: 56465.12801 | H32: 229501.1967 | I32: 51.42536241 | J32: Cumple | L32: 555482.4097 | M32: 458906.7784 | N32: 96575.63138 | O32: Cumple
B33: 26 | C33: 250000 | D33: UCAYALI | E33: 360529.7535 | F33: 949282.8054 | G33: 62826.93137 | H33: 588753.0518 | I33: 37.97917243 | J33: Cumple | L33: 1244823.826 | M33: 906469.5981 | N33: 338354.2284 | O33: Cumple
B35: TOTAL | E35: =+SUM(E8:E33) -> 14786194.52 | F35: =+SUM(F8:F33) -> 35186089.6 | G35: =+SUM(G8:G33) -> 5380493.134 | H35: =+SUM(H8:H33) -> 20399895.08 | L35: =+SUM(L8:L33) -> 42827329.96 | M35: =+SUM(M8:M33) -> 33471389.03 | N35: =+SUM(N8:N33) -> 9355940.93
B37: 1/ El Saldo de Deuda Total está compuesto por la información disponible del Saldo de Pasivos, Deuda Exigible con entidades del Estado y Deuda Real con el Sistema Privado de Pensiones a diciembre del 2022. El Decreto de Urgencia N° 031-2019, en su artículo 2 dispone la modificación de la definición "Saldo de Pasivos" establecida en el literal a) del numeral 1 del artículo 3 del Decreto Legislativo N° 1275, la cual queda redactada de la siguiente manera: "Comprende todos los pasivos reconocidos y formalizados en los Estados de Situación Financiera de los Gobiernos Regionales o Gobiernos Locales, excluyendo los ingresos diferidos, obligaciones previsionales, beneficios sociales, provisiones y pasivos derivados de la ejecución de cartas fianza, multas no consentidas y similares. El Saldo de Pasivos comprende también los que proceden de operaciones diversas garantizadas con flujos de ingresos futuros, con y sin aval del Gobierno Nacional, como los Fideicomisos, Titulización de activos y similares. Se excluyen también los pasivos derivados de la ejecución de las sentencias judiciales en materia laboral correspondientes a la subespecialidad personal del Magisterio y personal de la Salud."
B38: 2/ Corresponde a la suma de los flujos transferidos por concepto de Recursos Determinados provenientes de Canon, Sobrecanon, Regalías, Renta de Aduanas y Participaciones de los años 2020 y 2021, más el tope presupuestal por el mismo concepto incluido en el Presupuesto Institucional de Apertura 2022, aprobado por la Ley N° 31365, Ley que aprueba el Presupuesto del Sector Público para el Año Fiscal 2022, infornado a través del Memorando N° 0342-2022-EF/50.03 por la Dirección General de Presupuesto Público del Ministerio de Economía y Finanzas.
B39: Fuente: DGCP-MEF, SICON, SUNAT, SBS y AFP.

Sheet Anexo_GL
A1: Anexo N° 3: Cumplimiento de las Reglas Fiscales Subnacionales 2022
A2: Gobiernos Locales
A5: N° | B5: Ubigeo | C5: Departamento | D5: Municipalidad 4/ | E5: R1: Regla Fiscal del Saldo de Deuda Total | L5: R2: Regla Fiscal de Ahorro en Cuenta Corriente
E6: 2022 | L6: 2022
E7: S/ Miles | I7: SDT/Prom. ICT 2019-2022 ó SDT/ Lím Ley N° 29230 ó SDT/ ICT 2022 % 3/ | J7: Cumple R1 | L7: S/ Miles | O7: Cumple R2
E8: Saldo de Deuda Total 1/ | F8: Prom. ICT 2019-2022 ó ICT 2022 | G8: Límite Ley N° 29230 2/ | H8: Espacio Total | L8: Ingreso Corriente Total | M8: Gasto Corriente Total | N8: Ahorro en Cuenta Corriente
A9: 1 | B9: 010101 | C9: AMAZONAS | D9: MUNICIPALIDAD PROVINCIAL DE CHACHAPOYAS | E9: 10509.90021 | F9: 26562.86018 | G9: 0.9426 | H9: 16052.95997 | I9: 39.56614663 | J9: Cumple | L9: 24066.69907 | M9: 21576.77981 | N9: 2489.91926 | O9: Cumple
A10: 2 | B10: 010102 | C10: AMAZONAS | D10: MUNICIPALIDAD DISTRITAL DE ASUNCION | E10: 41.51621 | F10: 823.7814325 | G10: 0.00108 | H10: 782.2652225 | I10: 5.039711793 | J10: Cumple | L10: 950.5172 | M10: 792.43257 | N10: 158.08463 | O10: Cumple
A11: 3 | B11: 010103 | C11: AMAZONAS | D11: MUNICIPALIDAD DISTRITAL DE BALSAS | E11: 12.15143 | F11: 946.9366875 | G11: 0.00212 | H11: 934.7852575 | I11: 1.283235739 | J11: Cumple | L11: 1433.80976 | M11: 1428.45246 | N11: 5.3573 | O11: Cumple
A12: 4 | B12: 010104 | C12: AMAZONAS | D12: MUNICIPALIDAD DISTRITAL DE CHETO | E12: 8.2896 | F12: 891.7533175 | G12: 0.00079 | H12: 883.4637175 | I12: 0.9295844307 | J12: Cumple | L12: 1017.01906 | M12: 835.08722 | N12: 181.93184 | O12: Cumple
A13: 5 | B13: 010105 | C13: AMAZONAS | D13: MUNICIPALIDAD DISTRITAL DE CHILIQUIN | E13: 59.25767 | F13: 1050.223867 | G13: 0.00186 | H13: 990.9661975 | I13: 5.642384622 | J13: Cumple | L13: 890.43042 | M13: 702.95644 | N13: 187.47398 | O13: Cumple
A14: 6 | B14: 010106 | C14: AMAZONAS | D14: MUNICIPALIDAD DISTRITAL DE CHUQUIBAMBA | E14: 135.27337 | F14: 1588.484448 | G14: 0.00347 | H14: 1453.211078 | I14: 8.515876263 | J14: Cumple | L14: 1257.71191 | M14: 1089.22865 | N14: 168.48326 | O14: Cumple
A15: 7 | B15: 010107 | C15: AMAZONAS | D15: MUNICIPALIDAD DISTRITAL DE GRANADA | E15: 205.1586 | F15: 894.903875 | G15: 0.00079 | H15: 689.745275 | I15: 22.92521082 | J15: Cumple | L15: 944.00212 | M15: 750.4117 | N15: 193.59042 | O15: Cumple
A16: 8 | B16: 010108 | C16: AMAZONAS | D16: MUNICIPALIDAD DISTRITAL DE HUANCAS | E16: 93.08578 | F16: 967.0004925 | G16: 0.00134 | H16: 873.9147125 | I16: 9.626239151 | J16: Cumple | L16: 1245.0558 | M16: 874.96129 | N16: 370.09451 | O16: Cumple
A17: 9 | B17: 010109 | C17: AMAZONAS | D17: MUNICIPALIDAD DISTRITAL DE JALCA GRANDE | E17: 170.01306 | F17: 1869.238635 | G17: 0.97945 | H17: 1699.225575 | I17: 9.095310616 | J17: Cumple | L17: 1993.43755 | M17: 1410.52781 | N17: 582.90974 | O17: Cumple
A18: 10 | B18: 010110 | C18: AMAZONAS | D18: MUNICIPALIDAD DISTRITAL DE LEIMEBAMBA | E18: 56.93235 | F18: 2551.598402 | G18: 0.00559 | H18: 2494.666052 | I18: 2.231242579 | J18: Cumple | L18: 1390.9511 | M18: 1151.91537 | N18: 239.03573 | O18: Cumple
A19: 11 | B19: 010111 | C19: AMAZONAS | D19: MUNICIPALIDAD DISTRITAL DE LEVANTO | E19: 470.4075 | F19: 964.943725 | G19: 0.00134 | H19: 494.536225 | I19: 48.74973408 | J19: Cumple | L19: 1088.01972 | M19: 1026.20382 | N19: 61.8159 | O19: Cumple
A20: 12 | B20: 010112 | C20: AMAZONAS | D20: MUNICIPALIDAD DISTRITAL DE MAGDALENA | E20: 392.39478 | F20: 844.1176825 | G20: 0.00079 | H20: 451.7229025 | I20: 46.4857908 | J20: Cumple | L20: 1221.26404 | M20: 990.17194 | N20: 231.0921 | O20: Cumple
A21: 13 | B21: 010113 | C21: AMAZONAS | D21: MUNICIPALIDAD DISTRITAL DE MARISCAL CASTILLA | E21: 23.31776 | F21: 943.842025 | G21: 0.00186 | H21: 920.524265 | I21: 2.470515127 | J21: Cumple | L21: 1018.03107 | M21: 778.26014 | N21: 239.77093 | O21: Cumple
A22: 14 | B22: 010114 | C22: AMAZONAS | D22: MUNICIPALIDAD DISTRITAL DE MOLINOPAMPA | E22: 183.12924 | F22: 1037.899678 | G22: 0.00571 | H22: 854.7704375 | I22: 17.64421398 | J22: Cumple | L22: 1294.31102 | M22: 1096.33471 | N22: 197.97631 | O22: Cumple
A23: 15 | B23: 010115 | C23: AMAZONAS | D23: MUNICIPALIDAD DISTRITAL DE MONTEVIDEO | E23: 133.98071 | F23: 866.41888 | G23: 0.00052 | H23: 732.43817 | I23: 15.46373389 | J23: Cumple | L23: 746.84111 | M23: 555.57813 | N23: 191.26298 | O23: Cumple
A24: 16 | B24: 010116 | C24: AMAZONAS | D24: MUNICIPALIDAD DISTRITAL DE OLLEROS | E24: 73.17216 | F24: 748.4849675 | G24: 0.00186 | H24: 675.3128075 | I24: 9.776036016 | J24: Cumple | L24: 1015.36897 | M24: 780.32888 | N24: 235.04009 | O24: Cumple
A25: 17 | B25: 010117 | C25: AMAZONAS | D25: MUNICIPALIDAD DISTRITAL DE QUINJALCA | E25: 25.85365 | F25: 717.67503 | G25: 0.00347 | H25: 691.82138 | I25: 3.602417378 | J25: Cumple | L25: 850.30715 | M25: 756.96946 | N25: 93.33769 | O25: Cumple
A26: 18 | B26: 010118 | C26: AMAZONAS | D26: MUNICIPALIDAD DISTRITAL DE SAN FRANCISCO DE DAGUAS | E26: 48.1432 | F26: 759.1483425 | G26: 0.00055 | H26: 711.0051425 | I26: 6.341738143 | J26: Cumple | L26: 1003.64406 | M26: 739.56856 | N26: 264.0755 | O26: Cumple
A27: 19 | B27: 010119 | C27: AMAZONAS | D27: MUNICIPALIDAD DISTRITAL DE SAN ISIDRO DE MAYNO | E27: 268.62569 | F27: 790.6554775 | G27: 0.00079 | H27: 522.0297875 | I27: 33.97506217 | J27: Cumple | L27: 1044.10196 | M27: 849.5617 | N27: 194.54026 | O27: Cumple
A28: 20 | B28: 010120 | C28: AMAZONAS | D28: MUNICIPALIDAD DISTRITAL DE SOLOCO | E28: 947.67434 | F28: 1012.20184 | G28: 0.00212 | H28: 64.5275 | I28: 93.62503629 | J28: Cumple | L28: 1085.05212 | M28: 826.1916 | N28: 258.86052 | O28: Cumple
A29: 21 | B29: 010121 | C29: AMAZONAS | D29: MUNICIPALIDAD DISTRITAL DE SONCHE | E29: 163.69177 | F29: 945.828275 | G29: 0.00226 | H29: 782.136505 | I29: 17.30671141 | J29: Cumple | L29: 1082.02559 | M29: 1126.92956 | N29: -44.90397 | O29: No Cumple
A30: 22 | B30: 010201 | C30: AMAZONAS | D30: MUNICIPALIDAD PROVINCIAL DE BAGUA - LA PECA | E30: 1320.04818 | F30: 24135.53534 | G30: 0.82984 | H30: 22815.48716 | I30: 5.469313861 | J30: Cumple | L30: 21654.96537 | M30: 19349.8236 | N30: 2305.14177 | O30: Cumple
A31: 23 | B31: 010202 | C31: AMAZONAS | D31: MUNICIPALIDAD DISTRITAL DE ARAMANGO | E31: 3091.8163 | F31: 5215.798967 | G31: 1.13132 | H31: 2123.982668 | I31: 59.27790391 | J31: Cumple | L31: 5888.64561 | M31: 3695.9657 | N31: 2192.67991 | O31: Cumple
A32: 24 | B32: 010203 | C32: AMAZONAS | D32: MUNICIPALIDAD DISTRITAL DE COPALLIN | E32: 647.9362 | F32: 2526.098985 | G32: 0.00919 | H32: 1878.162785 | I32: 25.6496758 | J32: Cumple | L32: 3207.78271 | M32: 2666.37312 | N32: 541.40959 | O32: Cumple
A33: 25 | B33: 010204 | C33: AMAZONAS | D33: MUNICIPALIDAD DISTRITAL DE EL PARCO | E33: 413.24048 | F33: 4221.043397 | G33: 0.00314 | H33: 3807.802918 | I33: 9.790007851 | J33: Cumple | L33: 1010.90429 | M33: 972.4032 | N33: 38.50109 | O33: Cumple
A34: 26 | B34: 010205 | C34: AMAZONAS | D34: MUNICIPALIDAD DISTRITAL DE IMAZA | E34: 7890.49627 | F34: 11658.76625 | G34: 2.3106 | H34: 3768.269983 | I34: 67.67865569 | J34: Cumple | L34: 15538.43182 | M34: 9796.71378 | N34: 5741.71804 | O34: Cumple
A35: 27 | B35: 010206 | C35: AMAZONAS | D35: MUNICIPALIDAD DISTRITAL DE LA PECA | E35: 232.57715 | F35: 3435.20034 | G35: 0.01181 | H35: 3202.62319 | I35: 6.770410077 | J35: Cumple | L35: 3745.25577 | M35: 3219.03786 | N35: 526.21791 | O35: Cumple
A36: 28 | B36: 010301 | C36: AMAZONAS | D36: MUNICIPALIDAD PROVINCIAL DE BONGARA - JUMBILLA | E36: 2042.05427 | F36: 6744.756765 | G36: 0.0016 | H36: 4702.702495 | I36: 30.27617364 | J36: Cumple | L36: 5074.57222 | M36: 3569.10361 | N36: 1505.46861 | O36: Cumple
A37: 29 | B37: 010302 | C37: AMAZONAS | D37: MUNICIPALIDAD DISTRITAL DE CHISQUILLA | E37: 54.51828 | F37: 829.271575 | G37: 0.00108 | H37: 774.753295 | I37: 6.574237155 | J37: Cumple | L37: 960.81709 | M37: 700.15038 | N37: 260.66671 | O37: Cumple
A38: 30 | B38: 010303 | C38: AMAZONAS | D38: MUNICIPALIDAD DISTRITAL DE CHURUJA | E38: 34.72453 | F38: 723.671665 | G38: 0.00052 | H38: 688.947135 | I38: 4.798381874 | J38: Cumple | L38: 1066.62217 | M38: 840.17737 | N38: 226.4448 | O38: Cumple
A39: 31 | B39: 010304 | C39: AMAZONAS | D39: MUNICIPALIDAD DISTRITAL DE COROSHA | E39: 52.9584 | F39: 1055.946917 | G39: 0.00347 | H39: 1002.988517 | I39: 5.015252104 | J39: Cumple | L39: 1023.48523 | M39: 908.28299 | N39: 115.20224 | O39: Cumple
A40: 32 | B40: 010305 | C40: AMAZONAS | D40: MUNICIPALIDAD DISTRITAL DE CUISPES | E40: 28.71933 | F40: 783.271465 | G40: 0.0016 | H40: 754.552135 | I40: 3.666587037 | J40: Cumple | L40: 1024.25657 | M40: 846.26442 | N40: 177.99215 | O40: Cumple
A41: 33 | B41: 010306 | C41: AMAZONAS | D41: MUNICIPALIDAD DISTRITAL DE FLORIDA | E41: 115.5522 | F41: 3532.6473 | G41: 0.01801 | H41: 3417.0951 | I41: 3.270980378 | J41: Cumple | L41: 3351.36834 | M41: 2452.4062 | N41: 898.96214 | O41: Cumple
A42: 34 | B42: 010307 | C42: AMAZONAS | D42: MUNICIPALIDAD DISTRITAL DE JAZAN | E42: 1641.14431 | F42: 3854.22982 | G42: 0.01014 | H42: 2213.08551 | I42: 42.58034385 | J42: Cumple | L42: 3578.16901 | M42: 2770.55283 | N42: 807.61618 | O42: Cumple
A43: 35 | B43: 010308 | C43: AMAZONAS | D43: MUNICIPALIDAD DISTRITAL DE RECTA | E43: 110.78375 | F43: 913.67103 | G43: 0.00052 | H43: 802.88728 | I43: 12.12512451 | J43: Cumple | L43: 1099.86962 | M43: 824.08509 | N43: 275.78453 | O43: Cumple
A44: 36 | B44: 010309 | C44: AMAZONAS | D44: MUNICIPALIDAD DISTRITAL DE SAN CARLOS | E44: 69.12694 | F44: 717.010445 | G44: 0.00134 | H44: 647.883505 | I44: 9.640994839 | J44: Cumple | L44: 865.09452 | M44: 730.86329 | N44: 134.23123 | O44: Cumple
A45: 37 | B45: 010310 | C45: AMAZONAS | D45: MUNICIPALIDAD DISTRITAL DE SHIPASBAMBA | E45: 23.76196 | F45: 1232.164465 | G45: 0.00399 | H45: 1208.402505 | I45: 1.928473079 | J45: Cumple | L45: 1493.91262 | M45: 1138.31934 | N45: 355.59328 | O45: Cumple
A46: 38 | B46: 010311 | C46: AMAZONAS | D46: MUNICIPALIDAD DISTRITAL DE VALERA | E46: 50.4334 | F46: 819.1473975 | G46: 0.00134 | H46: 768.7139975 | I46: 6.15681624 | J46: Cumple | L46: 1166.46776 | M46: 945.74135 | N46: 220.72641 | O46: Cumple
A47: 39 | B47: 010312 | C47: AMAZONAS | D47: MUNICIPALIDAD DISTRITAL DE YAMBRASBAMBA | E47: 1211.71791 | F47: 3575.98003 | G47: 0.02066 | H47: 2364.26212 | I47: 33.88491826 | J47: Cumple | L47: 3701.70486 | M47: 2573.38214 | N47: 1128.32272 | O47: Cumple
A48: 40 | B48: 010401 | C48: AMAZONAS | D48: MUNICIPALIDAD PROVINCIAL DE CONDORCANQUI - NIEVA | E48: 1724.05047 | F48: 24387.37733 | G48: 2.45769 | H48: 22663.32686 | I48: 7.069437794 | J48: Cumple | L48: 26762.99211 | M48: 17264.78838 | N48: 9498.20373 | O48: Cumple
A49: 41 | B49: 010402 | C49: AMAZONAS | D49: MUNICIPALIDAD DISTRITAL DE EL CENEPA | E49: 80.42937 | F49: 7116.89033 | G49: 0.65185 | H49: 7036.46096 | I49: 1.130119564 | J49: Cumple | L49: 9361.28016 | M49: 6227.27487 | N49: 3134.00529 | O49: Cumple
A50: 42 | B50: 010403 | C50: AMAZONAS | D50: MUNICIPALIDAD DISTRITAL DE RIO SANTIAGO | E50: 2237.06825 | F50: 10402.12412 | G50: 1.1045 | H50: 8165.055872 | I50: 21.50587922 | J50: Cumple | L50: 13661.89139 | M50: 9165.09769 | N50: 4496.7937 | O50: Cumple
A51: 43 | B51: 010501 | C51: AMAZONAS | D51: MUNICIPALIDAD PROVINCIAL DE LUYA - LAMUD | E51: 2868.48682 | F51: 22935.97288 | G51: 0.00131 | H51: 20067.48606 | I51: 12.50649726 | J51: Cumple | L51: 9635.34645 | M51: 7220.13192 | N51: 2415.21453 | O51: Cumple
A52: 44 | B52: 010502 | C52: AMAZONAS | D52: MUNICIPALIDAD DISTRITAL DE CAMPORREDONDO | E52: 22.12388 | F52: 4575.105698 | G52: 0.00867 | H52: 4552.981818 | I52: 0.4835709044 | J52: Cumple | L52: 2583.52176 | M52: 1684.42595 | N52: 899.09581 | O52: Cumple
A53: 45 | B53: 010503 | C53: AMAZONAS | D53: MUNICIPALIDAD DISTRITAL DE COCABAMBA | E53: 1547.97704 | F53: 1211.611782 | G53: 0.00236 | H53: 0 | I53: 127.7618015 | J53: No Cumple | L53: 1585.96288 | M53: 1165.81118 | N53: 420.1517 | O53: Cumple
A54: 46 | B54: 010504 | C54: AMAZONAS | D54: MUNICIPALIDAD DISTRITAL DE COLCAMAR | E54: 12.79307 | F54: 1132.905282 | G54: 0.00131 | H54: 1120.112212 | I54: 1.129226794 | J54: Cumple | L54: 1457.61995 | M54: 1377.3878 | N54: 80.23215 | O54: Cumple
A55: 47 | B55: 010505 | C55: AMAZONAS | D55: MUNICIPALIDAD DISTRITAL DE CONILA | E55: 380.76758 | F55: 835.776855 | G55: 0.00131 | H55: 455.009275 | I55: 45.55852172 | J55: Cumple | L55: 935.80039 | M55: 626.00342 | N55: 309.79697 | O55: Cumple
A56: 48 | B56: 010506 | C56: AMAZONAS | D56: MUNICIPALIDAD DISTRITAL DE INGUILPATA | E56: 143.81082 | F56: 983.9252075 | G56: 0.00052 | H56: 840.1143875 | I56: 14.61603168 | J56: Cumple | L56: 1179.89224 | M56: 1042.44667 | N56: 137.44557 | O56: Cumple
A57: 49 | B57: 010507 | C57: AMAZONAS | D57: MUNICIPALIDAD DISTRITAL DE LONGUITA | E57: 14.21302 | F57: 1898.354978 | G57: 0.00079 | H57: 1884.141957 | I57: 0.7487019113 | J57: Cumple | L57: 1127.33078 | M57: 998.17231 | N57: 129.15847 | O57: Cumple
A58: 50 | B58: 010508 | C58: AMAZONAS | D58: MUNICIPALIDAD DISTRITAL DE LONYA CHICO | E58: 19.87504 | F58: 1122.218533 | G58: 0.00131 | H58: 1102.343493 | I58: 1.771048991 | J58: Cumple | L58: 1190.05306 | M58: 929.96929 | N58: 260.08377 | O58: Cumple
A59: 51 | B59: 010509 | C59: AMAZONAS | D59: MUNICIPALIDAD DISTRITAL DE LUYA | E59: 42.24941 | F59: 2255.87904 | G59: 0.00262 | H59: 2213.62963 | I59: 1.872857953 | J59: Cumple | L59: 2068.71532 | M59: 1536.41397 | N59: 532.30135 | O59: Cumple
A60: 52 | B60: 010510 | C60: AMAZONAS | D60: MUNICIPALIDAD DISTRITAL DE LUYA VIEJO | E60: 92.68269 | F60: 896.0765675 | G60: 0.00026 | H60: 803.3938775 | I60: 10.34316635 | J60: Cumple | L60: 1051.71775 | M60: 831.6839 | N60: 220.03385 | O60: Cumple
A61: 53 | B61: 010511 | C61: AMAZONAS | D61: MUNICIPALIDAD DISTRITAL DE MARIA | E61: 28.70141 | F61: 1150.5679 | G61: 0.00079 | H61: 1121.86649 | I61: 2.494542912 | J61: Cumple | L61: 1087.60549 | M61: 862.5453 | N61: 225.06019 | O61: Cumple
A62: 54 | B62: 010512 | C62: AMAZONAS | D62: MUNICIPALIDAD DISTRITAL DE OCALLI | E62: 71.80127 | F62: 2129.089527 | G62: 0.00314 | H62: 2057.288257 | I62: 3.372393179 | J62: Cumple | L62: 1864.08146 | M62: 1514.05931 | N62: 350.02215 | O62: Cumple
A63: 55 | B63: 010513 | C63: AMAZONAS | D63: MUNICIPALIDAD DISTRITAL DE OCUMAL | E63: 35.36174 | F63: 1985.046883 | G63: 0.00419 | H63: 1949.685143 | I63: 1.781405785 | J63: Cumple | L63: 2209.11264 | M63: 1454.08096 | N63: 755.03168 | O63: Cumple
A64: 56 | B64: 010514 | C64: AMAZONAS | D64: MUNICIPALIDAD DISTRITAL DE PIZUQUIA | E64: 183.41426 | F64: 3207.284555 | G64: 0.00526 | H64: 3023.870295 | I64: 5.718677494 | J64: Cumple | L64: 2612.65299 | M64: 1932.09478 | N64: 680.55821 | O64: Cumple
A65: 57 | B65: 010515 | C65: AMAZONAS | D65: MUNICIPALIDAD DISTRITAL DE PROVIDENCIA | E65: 68.761 | F65: 1134.459783 | G65: 0.00157 | H65: 1065.698782 | I65: 6.061122753 | J65: Cumple | L65: 1180.99186 | M65: 812.36694 | N65: 368.62492 | O65: Cumple
A66: 58 | B66: 010516 | C66: AMAZONAS | D66: MUNICIPALIDAD DISTRITAL DE SAN CRISTOBAL DE OLTO | E66: 20.32522 | F66: 995.3614675 | G66: 0.00052 | H66: 975.0362475 | I66: 2.041993855 | J66: Cumple | L66: 1103.48703 | M66: 882.3551 | N66: 221.13193 | O66: Cumple
A67: 59 | B67: 010517 | C67: AMAZONAS | D67: MUNICIPALIDAD DISTRITAL DE SAN FRANCISCO DE YESO | E67: 30.89905 | F67: 717.7482625 | G67: 0.00105 | H67: 686.8492125 | I67: 4.30499823 | J67: Cumple | L67: 860.36877 | M67: 609.27693 | N67: 251.09184 | O67: Cumple
A68: 60 | B68: 010518 | C68: AMAZONAS | D68: MUNICIPALIDAD DISTRITAL DE SAN JERONIMO DE PACLAS | E68: 27.76252 | F68: 1074.499797 | G68: 0.00079 | H68: 1046.737277 | I68: 2.583762237 | J68: Cumple | L68: 1068.99796 | M68: 813.51923 | N68: 255.47873 | O68: Cumple
A69: 61 | B69: 010519 | C69: AMAZONAS | D69: MUNICIPALIDAD DISTRITAL DE SAN JUAN DE LOPECANCHA | E69: 86.79148 | F69: 1098.888467 | G69: 0.00131 | H69: 1012.096988 | I69: 7.898115465 | J69: Cumple | L69: 1033.83582 | M69: 703.57156 | N69: 330.26426 | O69: Cumple
A70: 62 | B70: 010520 | C70: AMAZONAS | D70: MUNICIPALIDAD DISTRITAL DE SANTA CATALINA | E70: 79.29475 | F70: 1181.718645 | G70: 0.00393 | H70: 1102.423895 | I70: 6.710120919 | J70: Cumple | L70: 1365.53317 | M70: 996.34477 | N70: 369.1884 | O70: Cumple
A71: 63 | B71: 010521 | C71: AMAZONAS | D71: MUNICIPALIDAD DISTRITAL DE SANTO TOMAS | E71: 87.55291 | F71: 1519.356805 | G71: 0.00736 | H71: 1431.803895 | I71: 5.762498296 | J71: Cumple | L71: 1584.55636 | M71: 1123.81405 | N71: 460.74231 | O71: Cumple
A72: 64 | B72: 010522 | C72: AMAZONAS | D72: MUNICIPALIDAD DISTRITAL DE TINGO | E72: 86.69008 | F72: 788.16559 | G72: 0.00157 | H72: 701.47551 | I72: 10.99896787 | J72: Cumple | L72: 1124.99534 | M72: 845.26255 | N72: 279.73279 | O72: Cumple
A73: 65 | B73: 010523 | C73: AMAZONAS | D73: MUNICIPALIDAD DISTRITAL DE TRITA | E73: 4.12996 | F73: 974.261175 | G73: 0.00105 | H73: 970.131215 | I73: 0.4239068646 | J73: Cumple | L73: 1117.19843 | M73: 919.3881 | N73: 197.81033 | O73: Cumple
A74: 66 | B74: 010601 | C74: AMAZONAS | D74: MUNICIPALIDAD PROVINCIAL DE RODRIGUEZ DE MENDOZA - SAN NICOLAS | E74: 5888.97566 | F74: 9613.684203 | G74: 0.00736 | H74: 3724.708543 | I74: 61.25617959 | J74: Cumple | L74: 6672.03349 | M74: 6103.18366 | N74: 568.84983 | O74: Cumple
A75: 67 | B75: 010602 | C75: AMAZONAS | D75: MUNICIPALIDAD DISTRITAL DE CHIRIMOTO | E75: 30.839 | F75: 1220.124775 | G75: 0.01285 | H75: 1189.285775 | I75: 2.527528383 | J75: Cumple | L75: 1255.99752 | M75: 966.9175 | N75: 289.08002 | O75: Cumple
A76: 68 | B76: 010603 | C76: AMAZONAS | D76: MUNICIPALIDAD DISTRITAL DE COCHAMAL | E76: 302.16377 | F76: 723.5666725 | G76: 0.00157 | H76: 421.4029025 | I76: 41.76032168 | J76: Cumple | L76: 1060.7504 | M76: 880.17163 | N76: 180.57877 | O76: Cumple
A77: 69 | B77: 010604 | C77: AMAZONAS | D77: MUNICIPALIDAD DISTRITAL DE HUAMBO | E77: 141.41792 | F77: 2077.478443 | G77: 0.00945 | H77: 1936.060523 | I77: 6.807190732 | J77: Cumple | L77: 1276.47087 | M77: 1065.99968 | N77: 210.47119 | O77: Cumple
A78: 70 | B78: 010605 | C78: AMAZONAS | D78: MUNICIPALIDAD DISTRITAL DE LIMABAMBA | E78: 2319.73057 | F78: 1261.023438 | G78: 0.00919 | H78: 0 | I78: 183.956182 | J78: No Cumple | L78: 1542.81568 | M78: 1289.73345 | N78: 253.08223 | O78: Cumple
A79: 71 | B79: 010606 | C79: AMAZONAS | D79: MUNICIPALIDAD DISTRITAL DE LONGAR | E79: 81.88987 | F79: 783.8734575 | G79: 0.00448 | H79: 701.9835875 | I79: 10.44682266 | J79: Cumple | L79: 1055.07057 | M79: 942.68839 | N79: 112.38218 | O79: Cumple
A80: 72 | B80: 010607 | C80: AMAZONAS | D80: MUNICIPALIDAD DISTRITAL DE MARISCAL BENAVIDES | E80: 858.41053 | F80: 1073.58785 | G80: 0.00209 | H80: 215.17732 | I80: 79.9571763 | J80: Cumple | L80: 1247.07679 | M80: 1151.6694 | N80: 95.40739 | O80: Cumple
A81: 73 | B81: 010608 | C81: AMAZONAS | D81: MUNICIPALIDAD DISTRITAL DE MILPUC | E81: 89.93559 | F81: 736.0194325 | G81: 0.01571 | H81: 646.0838425 | I81: 12.21918689 | J81: Cumple | L81: 836.24395 | M81: 699.5253 | N81: 136.71865 | O81: Cumple
A82: 74 | B82: 010609 | C82: AMAZONAS | D82: MUNICIPALIDAD DISTRITAL DE OMIA | E82: 207.84622 | F82: 3555.411935 | G82: 0.04462 | H82: 3347.565715 | I82: 5.845911073 | J82: Cumple | L82: 4327.45732 | M82: 2998.71579 | N82: 1328.74153 | O82: Cumple
A83: 75 | B83: 010610 | C83: AMAZONAS | D83: MUNICIPALIDAD DISTRITAL DE SANTA ROSA | E83: 95.21676 | F83: 1083.99024 | G83: 0.00183 | H83: 988.77348 | I83: 8.783913036 | J83: Cumple | L83: 1082.95158 | M83: 953.6928 | N83: 129.25878 | O83: Cumple
A84: 76 | B84: 010611 | C84: AMAZONAS | D84: MUNICIPALIDAD DISTRITAL DE TOTORA | E84: 758.25336 | F84: 681.4585175 | G84: 0.00052 | H84: 0 | I84: 111.2691881 | J84: No Cumple | L84: 683.88114 | M84: 542.54844 | N84: 141.3327 | O84: Cumple
A85: 77 | B85: 010612 | C85: AMAZONAS | D85: MUNICIPALIDAD DISTRITAL DE VISTA ALEGRE | E85: 146.44923 | F85: 1687.64515 | G85: 0.02258 | H85: 1541.19592 | I85: 8.677726476 | J85: Cumple | L85: 1987.60579 | M85: 1441.80324 | N85: 545.80255 | O85: Cumple
A86: 78 | B86: 010701 | C86: AMAZONAS | D86: MUNICIPALIDAD PROVINCIA DE UTCUBAMBA - BAGUA GRANDE | E86: 8153.80633 | F86: 43053.95237 | G86: 1.44364 | H86: 34900.14604 | I86: 18.93857795 | J86: Cumple | L86: 41554.41597 | M86: 31252.75194 | N86: 10301.66403 | O86: Cumple
A87: 79 | B87: 010702 | C87: AMAZONAS | D87: MUNICIPALIDAD DISTRITAL DE CAJARURO | E87: 3561.14137 | F87: 13603.71477 | G87: 0.96138 | H87: 10042.5734 | I87: 26.17771271 | J87: Cumple | L87: 14445.33972 | M87: 10851.78118 | N87: 3593.55854 | O87: Cumple
A88: 80 | B88: 010703 | C88: AMAZONAS | D88: MUNICIPALIDAD DISTRITAL DE CUMBA | E88: 402.58431 | F88: 4525.882795 | G88: 0.06969 | H88: 4123.298485 | I88: 8.895155448 | J88: Cumple | L88: 5399.59707 | M88: 3558.65277 | N88: 1840.9443 | O88: Cumple
A89: 81 | B89: 010704 | C89: AMAZONAS | D89: MUNICIPALIDAD DISTRITAL DE EL MILAGRO | E89: 460.1607 | F89: 3607.592062 | G89: 0.03694 | H89: 3147.431362 | I89: 12.75534185 | J89: Cumple | L89: 4456.00463 | M89: 3957.5224 | N89: 498.48223 | O89: Cumple
A90: 82 | B90: 010705 | C90: AMAZONAS | D90: MUNICIPALIDAD DISTRITAL DE JAMALCA | E90: 207.54307 | F90: 4763.642145 | G90: 0.05085 | H90: 4556.099075 | I90: 4.356814884 | J90: Cumple | L90: 4751.77028 | M90: 3938.95102 | N90: 812.81926 | O90: Cumple
A91: 83 | B91: 010706 | C91: AMAZONAS | D91: MUNICIPALIDAD DISTRITAL DE LONYA GRANDE | E91: 98.54891 | F91: 4631.39582 | G91: 0.05085 | H91: 4532.84691 | I91: 2.127844689 | J91: Cumple | L91: 4924.53601 | M91: 3076.22127 | N91: 1848.31474 | O91: Cumple
A92: 84 | B92: 010707 | C92: AMAZONAS | D92: MUNICIPALIDAD DISTRITAL DE YAMON | E92: 82.45009 | F92: 2333.191932 | G92: 0.02882 | H92: 2250.741843 | I92: 3.533789435 | J92: Cumple | L92: 2484.00099 | M92: 1918.27912 | N92: 565.72187 | O92: Cumple
A93: 85 | B93: 020101 | C93: ANCASH | D93: MUNICIPALIDAD PROVINCIAL DE HUARAZ | E93: 25320.4943 | F93: 66189.83295 | G93: 53937.50428 | H93: 40869.33865 | I93: 38.25435595 | J93: Cumple | L93: 92169.64838 | M93: 45273.1498 | N93: 46896.49858 | O93: Cumple
A94: 86 | B94: 020102 | C94: ANCASH | D94: MUNICIPALIDAD DISTRITAL DE COCHABAMBA | E94: 140.57816 | F94: 3155.01216 | G94: 3630.69511 | H94: 3490.11695 | I94: 3.871935146 | J94: Cumple | L94: 4405.49941 | M94: 1558.10329 | N94: 2847.39612 | O94: Cumple
A95: 87 | B95: 020103 | C95: ANCASH | D95: MUNICIPALIDAD DISTRITAL DE COLCABAMBA | E95: 89.72175 | F95: 1858.916587 | G95: 251.66147 | H95: 1769.194837 | I95: 4.826561375 | J95: Cumple | L95: 1380.80502 | M95: 1183.168 | N95: 197.63702 | O95: Cumple
A96: 88 | B96: 020104 | C96: ANCASH | D96: MUNICIPALIDAD DISTRITAL DE HUANCHAY | E96: 76.48132 | F96: 2715.419193 | G96: 3156.55101 | H96: 3080.06969 | I96: 2.42293946 | J96: Cumple | L96: 4278.11673 | M96: 1740.92406 | N96: 2537.19267 | O96: Cumple
A97: 89 | B97: 020105 | C97: ANCASH | D97: MUNICIPALIDAD DISTRITAL DE INDEPENDENCIA | E97: 11285.63752 | F97: 55419.4877 | G97: 70106.14955 | H97: 58820.51203 | I97: 16.09792806 | J97: Cumple | L97: 86804.86023 | M97: 27543.90639 | N97: 59260.95384 | O97: Cumple
A98: 90 | B98: 020106 | C98: ANCASH | D98: MUNICIPALIDAD DISTRITAL DE JANGAS | E98: 1477.3842 | F98: 5378.397295 | G98: 6447.03084 | H98: 4969.64664 | I98: 22.91573031 | J98: Cumple | L98: 8869.58924 | M98: 3315.76974 | N98: 5553.8195 | O98: Cumple
A99: 91 | B99: 020107 | C99: ANCASH | D99: MUNICIPALIDAD DISTRITAL DE LA LIBERTAD | E99: 75.1662 | F99: 2675.312017 | G99: 2352.5175 | H99: 2600.145817 | I99: 2.809623682 | J99: Cumple | L99: 3476.50084 | M99: 1549.07088 | N99: 1927.42996 | O99: Cumple
A100: 92 | B100: 020108 | C100: ANCASH | D100: MUNICIPALIDAD DISTRITAL DE OLLEROS | E100: 1140.0652 | F100: 2809.318452 | G100: 3788.78366 | H100: 2648.71846 | I100: 30.09053307 | J100: Cumple | L100: 4888.8856 | M100: 1936.69301 | N100: 2952.19259 | O100: Cumple
A101: 93 | B101: 020109 | C101: ANCASH | D101: MUNICIPALIDAD DISTRITAL DE PAMPAS | E101: 61.26239 | F101: 1826.339978 | G101: 1439.49868 | H101: 1765.077588 | I101: 3.354380387 | J101: Cumple | L101: 2201.3797 | M101: 1065.58015 | N101: 1135.79955 | O101: Cumple
A102: 94 | B102: 020110 | C102: ANCASH | D102: MUNICIPALIDAD DISTRITAL DE PARIACOTO | E102: 207.21135 | F102: 4543.375195 | G102: 5293.81241 | H102: 5086.60106 | I102: 3.914217844 | J102: Cumple | L102: 6593.08256 | M102: 1955.6259 | N102: 4637.45666 | O102: Cumple
A103: 95 | B103: 020111 | C103: ANCASH | D103: MUNICIPALIDAD DISTRITAL DE PIRA | E103: 762.4559 | F103: 4620.33786 | G103: 5393.72703 | H103: 4631.27113 | I103: 14.13597492 | J103: Cumple | L103: 6419.87496 | M103: 2049.45265 | N103: 4370.42231 | O103: Cumple
A104: 96 | B104: 020112 | C104: ANCASH | D104: MUNICIPALIDAD DISTRITAL DE TARICA | E104: 1786.08424 | F104: 6911.914722 | G104: 10428.16986 | H104: 8642.08562 | I104: 17.1274947 | J104: Cumple | L104: 11628.15524 | M104: 2518.57801 | N104: 9109.57723 | O104: Cumple
A105: 97 | B105: 020201 | C105: ANCASH | D105: MUNICIPALIDAD PROVINCIAL DE AIJA | E105: 1348.62254 | F105: 10517.20127 | G105: 4348.30489 | H105: 9168.578733 | I105: 12.82301731 | J105: Cumple | L105: 9240.18439 | M105: 5268.70389 | N105: 3971.4805 | O105: Cumple
A106: 98 | B106: 020202 | C106: ANCASH | D106: MUNICIPALIDAD DISTRITAL DE CORIS | E106: 118.0385 | F106: 4039.908637 | G106: 6458.28555 | H106: 6340.24705 | I106: 1.827706426 | J106: Cumple | L106: 6582.83822 | M106: 1625.13794 | N106: 4957.70028 | O106: Cumple
A107: 99 | B107: 020203 | C107: ANCASH | D107: MUNICIPALIDAD DISTRITAL DE HUACLLAN | E107: 224.58881 | F107: 1208.953325 | G107: 914.02405 | H107: 984.364515 | I107: 18.57712828 | J107: Cumple | L107: 1824.76603 | M107: 1014.39393 | N107: 810.3721 | O107: Cumple
A108: 100 | B108: 020204 | C108: ANCASH | D108: MUNICIPALIDAD DISTRITAL DE LA MERCED | E108: 64.971 | F108: 3131.52254 | G108: 4291.99891 | H108: 4227.02791 | I108: 1.513770189 | J108: Cumple | L108: 4270.86699 | M108: 1445.55219 | N108: 2825.3148 | O108: Cumple
A109: 101 | B109: 020205 | C109: ANCASH | D109: MUNICIPALIDAD DISTRITAL DE SUCCHA | E109: 71.20349 | F109: 1647.56339 | G109: 1722.70882 | H109: 1651.50533 | I109: 4.133228389 | J109: Cumple | L109: 2609.0402 | M109: 1286.65326 | N109: 1322.38694 | O109: Cumple
A110: 102 | B110: 020301 | C110: ANCASH | D110: MUNICIPALIDAD PROVINCIAL DE ANTONIO RAYMONDI - LLAMELLIN | E110: 245.58046 | F110: 7942.947425 | G110: 5864.60584 | H110: 7697.366965 | I110: 3.091805181 | J110: Cumple | L110: 7912.18584 | M110: 3655.24118 | N110: 4256.94466 | O110: Cumple
A111: 103 | B111: 020302 | C111: ANCASH | D111: MUNICIPALIDAD DISTRITAL DE ACSO | E111: 35.9093 | F111: 2076.609158 | G111: 2141.89392 | H111: 2105.98462 | I111: 1.676520936 | J111: Cumple | L111: 3217.80767 | M111: 1590.93363 | N111: 1626.87404 | O111: Cumple
A112: 104 | B112: 020303 | C112: ANCASH | D112: MUNICIPALIDAD DISTRITAL DE CHACCHO | E112: 297.23353 | F112: 2486.722442 | G112: 2964.19803 | H112: 2666.9645 | I112: 10.02745184 | J112: Cumple | L112: 3653.49392 | M112: 1600.13739 | N112: 2053.35653 | O112: Cumple
A113: 105 | B113: 020304 | C113: ANCASH | D113: MUNICIPALIDAD DISTRITAL DE CHINGAS | E113: 112.25228 | F113: 2249.980358 | G113: 2938.84464 | H113: 2826.59236 | I113: 3.819605789 | J113: Cumple | L113: 3704.8939 | M113: 1713.26244 | N113: 1991.63146 | O113: Cumple
A114: 106 | B114: 020305 | C114: ANCASH | D114: MUNICIPALIDAD DISTRITAL DE MIRGAS | E114: 600.27686 | F114: 6163.419795 | G114: 8505.47605 | H114: 7905.19919 | I114: 7.057533952 | J114: Cumple | L114: 8789.17843 | M114: 2313.12816 | N114: 6476.05027 | O114: Cumple
A115: 107 | B115: 020306 | C115: ANCASH | D115: MUNICIPALIDAD DISTRITAL DE SAN JUAN DE RONTOY | E115: 19.60211 | F115: 1676.266325 | G115: 1072.04926 | H115: 1656.664215 | I115: 1.169391147 | J115: Cumple | L115: 2007.76858 | M115: 1372.81858 | N115: 634.95 | O115: Cumple
A116: 108 | B116: 020401 | C116: ANCASH | D116: MUNICIPALIDAD PROVINCIAL DE ASUNCION - CHACAS | E116: 913.9817 | F116: 7757.660445 | G116: 5549.0524 | H116: 6843.678745 | I116: 11.78166673 | J116: Cumple | L116: 7811.38905 | M116: 3823.28506 | N116: 3988.10399 | O116: Cumple
A117: 109 | B117: 020402 | C117: ANCASH | D117: MUNICIPALIDAD DISTRITAL DE ACOCHACA | E117: 469.9924 | F117: 3001.357098 | G117: 3192.10012 | H117: 2722.10772 | I117: 14.72361086 | J117: Cumple | L117: 4187.67931 | M117: 2236.88961 | N117: 1950.7897 | O117: Cumple
A118: 110 | B118: 020501 | C118: ANCASH | D118: MUNICIPALIDAD PROVINCIAL DE BOLOGNESI - CHIQUIAN | E118: 4071.16909 | F118: 17749.55364 | G118: 3708.18949 | H118: 13678.38456 | I118: 22.93674067 | J118: Cumple | L118: 12154.46253 | M118: 8393.32996 | N118: 3761.13257 | O118: Cumple
A119: 111 | B119: 020502 | C119: ANCASH | D119: MUNICIPALIDAD DISTRITAL DE ABELARDO PARDO LAZAMETA | E119: 182.52249 | F119: 1270.569375 | G119: 344.59196 | H119: 1088.046885 | I119: 14.36540921 | J119: Cumple | L119: 1361.98175 | M119: 994.96409 | N119: 367.01766 | O119: Cumple
A120: 112 | B120: 020503 | C120: ANCASH | D120: MUNICIPALIDAD DISTRITAL DE ANTONIO RAYMONDI | E120: 77.17036 | F120: 2232.191903 | G120: 1924.9471 | H120: 2155.021543 | I120: 3.457156166 | J120: Cumple | L120: 2953.49123 | M120: 1370.7526 | N120: 1582.73863 | O120: Cumple
A121: 113 | B121: 020504 | C121: ANCASH | D121: MUNICIPALIDAD DISTRITAL DE AQUIA | E121: 280.84707 | F121: 3028.746645 | G121: 2951.13687 | H121: 2747.899575 | I121: 9.272715843 | J121: Cumple | L121: 4091.68458 | M121: 1004.12731 | N121: 3087.55727 | O121: Cumple
A122: 114 | B122: 020505 | C122: ANCASH | D122: MUNICIPALIDAD DISTRITAL DE CAJACAY | E122: 2086.25605 | F122: 2583.125078 | G122: 3274.46997 | H122: 1188.21392 | I122: 63.71278616 | J122: Cumple | L122: 4472.35628 | M122: 1243.08207 | N122: 3229.27421 | O122: Cumple
A123: 115 | B123: 020506 | C123: ANCASH | D123: MUNICIPALIDAD DISTRITAL DE CANIS | E123: 73.0741 | F123: 1193.757213 | G123: 358.10227 | H123: 1120.683113 | I123: 6.121353591 | J123: Cumple | L123: 1365.66971 | M123: 915.78739 | N123: 449.88232 | O123: Cumple
A124: 116 | B124: 020507 | C124: ANCASH | D124: MUNICIPALIDAD DISTRITAL DE COLQUIOC | E124: 408.59147 | F124: 3058.89921 | G124: 2809.6193 | H124: 2650.30774 | I124: 13.35746757 | J124: Cumple | L124: 4221.38525 | M124: 1961.19181 | N124: 2260.19344 | O124: Cumple
A125: 117 | B125: 020508 | C125: ANCASH | D125: MUNICIPALIDAD DISTRITAL DE HUALLANCA | E125: 1170.45405 | F125: 10333.77768 | G125: 11911.71386 | H125: 10741.25981 | I125: 9.826075943 | J125: Cumple | L125: 15326.54491 | M125: 4629.8399 | N125: 10696.70501 | O125: Cumple
A126: 118 | B126: 020509 | C126: ANCASH | D126: MUNICIPALIDAD DISTRITAL DE HUASTA | E126: 107.62816 | F126: 2765.422285 | G126: 1852.89936 | H126: 2657.794125 | I126: 3.891924954 | J126: Cumple | L126: 3382.2451 | M126: 2050.56287 | N126: 1331.68223 | O126: Cumple
A127: 119 | B127: 020510 | C127: ANCASH | D127: MUNICIPALIDAD DISTRITAL DE HUAYLLACAYAN | E127: 784.41646 | F127: 2519.718305 | G127: 2778.35016 | H127: 1993.9337 | I127: 28.2331749 | J127: Cumple | L127: 3747.17973 | M127: 1232.47347 | N127: 2514.70626 | O127: Cumple
A128: 120 | B128: 020511 | C128: ANCASH | D128: MUNICIPALIDAD DISTRITAL DE LA PRIMAVERA | E128: 152.77694 | F128: 3450.582873 | G128: 1371.41795 | H128: 3297.805932 | I128: 4.42756907 | J128: Cumple | L128: 1910.1259 | M128: 713.05985 | N128: 1197.06605 | O128: Cumple
A129: 121 | B129: 020512 | C129: ANCASH | D129: MUNICIPALIDAD DISTRITAL DE MANGAS | E129: 235.00446 | F129: 1552.260848 | G129: 1569.45997 | H129: 1334.45551 | I129: 14.97358738 | J129: Cumple | L129: 2636.22965 | M129: 1521.31702 | N129: 1114.91263 | O129: Cumple
A130: 122 | B130: 020513 | C130: ANCASH | D130: MUNICIPALIDAD DISTRITAL DE PACLLON | E130: 1035.75548 | F130: 1989.864335 | G130: 1374.87704 | H130: 954.108855 | I130: 52.0515626 | J130: Cumple | L130: 2668.86895 | M130: 883.46856 | N130: 1785.40039 | O130: Cumple
A131: 123 | B131: 020514 | C131: ANCASH | D131: MUNICIPALIDAD DISTRITAL DE SAN MIGUEL DE CORPANQUI | E131: 92.55965 | F131: 1611.59632 | G131: 1438.81073 | H131: 1519.03667 | I131: 5.743352032 | J131: Cumple | L131: 2420.46986 | M131: 1336.15448 | N131: 1084.31538 | O131: Cumple
A132: 124 | B132: 020515 | C132: ANCASH | D132: MUNICIPALIDAD DISTRITAL DE TICLLOS | E132: 1377.77721 | F132: 1787.798538 | G132: 1353.48451 | H132: 410.0213275 | I132: 77.06557429 | J132: Cumple | L132: 2411.08848 | M132: 1177.1152 | N132: 1233.97328 | O132: Cumple
A133: 125 | B133: 020601 | C133: ANCASH | D133: MUNICIPALIDAD PROVINCIAL DE CARHUAZ | E133: 3044.70425 | F133: 23634.68928 | G133: 22331.65159 | H133: 20589.98503 | I133: 12.88235362 | J133: Cumple | L133: 30844.63662 | M133: 9789.77535 | N133: 21054.86127 | O133: Cumple
A134: 126 | B134: 020602 | C134: ANCASH | D134: MUNICIPALIDAD DISTRITAL DE ACOPAMPA | E134: 313.33742 | F134: 2632.607375 | G134: 2998.93019 | H134: 2685.59277 | I134: 10.44830657 | J134: Cumple | L134: 4057.78642 | M134: 1642.17719 | N134: 2415.60923 | O134: Cumple
A135: 127 | B135: 020603 | C135: ANCASH | D135: MUNICIPALIDAD DISTRITAL DE AMASHCA | E135: 19.73982 | F135: 2389.6208 | G135: 2437.85736 | H135: 2418.11754 | I135: 0.8097200568 | J135: Cumple | L135: 3236.38957 | M135: 1336.27762 | N135: 1900.11195 | O135: Cumple
A136: 128 | B136: 020604 | C136: ANCASH | D136: MUNICIPALIDAD DISTRITAL DE ANTA | E136: 375.302 | F136: 3142.04619 | G136: 3505.56565 | H136: 3130.26365 | I136: 10.70588993 | J136: Cumple | L136: 4485.01221 | M136: 1971.77192 | N136: 2513.24029 | O136: Cumple
A137: 129 | B137: 020605 | C137: ANCASH | D137: MUNICIPALIDAD DISTRITAL DE ATAQUERO | E137: 133.25072 | F137: 1739.271303 | G137: 1212.19565 | H137: 1606.020583 | I137: 7.661295843 | J137: Cumple | L137: 2338.05987 | M137: 1241.49174 | N137: 1096.56813 | O137: Cumple
A138: 130 | B138: 020606 | C138: ANCASH | D138: MUNICIPALIDAD DISTRITAL DE MARCARA | E138: 1484.48983 | F138: 9316.872117 | G138: 13113.17422 | H138: 11628.68439 | I138: 11.3205987 | J138: Cumple | L138: 14475.9843 | M138: 3622.8267 | N138: 10853.1576 | O138: Cumple
A139: 131 | B139: 020607 | C139: ANCASH | D139: MUNICIPALIDAD DISTRITAL DE PARIAHUANCA | E139: 91.91726 | F139: 1971.555905 | G139: 1993.04499 | H139: 1901.12773 | I139: 4.611900908 | J139: Cumple | L139: 3071.72638 | M139: 1577.17851 | N139: 1494.54787 | O139: Cumple
A140: 132 | B140: 020608 | C140: ANCASH | D140: MUNICIPALIDAD DISTRITAL DE SAN MIGUEL DE ACO | E140: 293.65807 | F140: 2654.337522 | G140: 2706.15461 | H140: 2412.49654 | I140: 10.85148901 | J140: Cumple | L140: 3288.48434 | M140: 1307.35091 | N140: 1981.13343 | O140: Cumple
A141: 133 | B141: 020609 | C141: ANCASH | D141: MUNICIPALIDAD DISTRITAL DE SHILLA | E141: 101.70472 | F141: 2496.457067 | G141: 2620.05349 | H141: 2518.34877 | I141: 3.881780291 | J141: Cumple | L141: 3662.88287 | M141: 1760.02552 | N141: 1902.85735 | O141: Cumple
A142: 134 | B142: 020610 | C142: ANCASH | D142: MUNICIPALIDAD DISTRITAL DE TINCO | E142: 121.1947 | F142: 3040.452377 | G142: 3782.44492 | H142: 3661.25022 | I142: 3.204136546 | J142: Cumple | L142: 4799.12 | M142: 1702.57163 | N142: 3096.54837 | O142: Cumple
A143: 135 | B143: 020611 | C143: ANCASH | D143: MUNICIPALIDAD DISTRITAL DE YUNGAR | E143: 255.76473 | F143: 2890.80918 | G143: 2834.01458 | H143: 2635.04445 | I143: 8.847513415 | J143: Cumple | L143: 4175.70204 | M143: 2346.12551 | N143: 1829.57653 | O143: Cumple
A144: 136 | B144: 020701 | C144: ANCASH | D144: MUNICIPALIDAD PROVINCIAL DE CARLOS FERMIN FITZCARRALD | E144: 5916.95467 | F144: 22774.40058 | G144: 21107.81703 | H144: 16857.44591 | I144: 25.98072625 | J144: Cumple | L144: 28025.76584 | M144: 14508.36133 | N144: 13517.40451 | O144: Cumple
A145: 137 | B145: 020702 | C145: ANCASH | D145: MUNICIPALIDAD DISTRITAL DE SAN NICOLAS | E145: 279.87257 | F145: 4850.755893 | G145: 5318.15372 | H145: 5038.28115 | I145: 5.26258895 | J145: Cumple | L145: 6548.26198 | M145: 1932.73462 | N145: 4615.52736 | O145: Cumple
A146: 138 | B146: 020703 | C146: ANCASH | D146: MUNICIPALIDAD DISTRITAL DE YAUYA | E146: 854.2876 | F146: 8240.899435 | G146: 10644.98177 | H146: 9790.69417 | I146: 8.025261278 | J146: Cumple | L146: 11868.24345 | M146: 3436.96071 | N146: 8431.28274 | O146: Cumple
A147: 139 | B147: 020801 | C147: ANCASH | D147: MUNICIPALIDAD PROVINCIAL DE CASMA | E147: 10817.38548 | F147: 40865.85034 | G147: 52463.76686 | H147: 41646.38138 | I147: 20.61877392 | J147: Cumple | L147: 63788.43495 | M147: 21572.63122 | N147: 42215.80373 | O147: Cumple
A148: 140 | B148: 020802 | C148: ANCASH | D148: MUNICIPALIDAD DISTRITAL DE BUENA VISTA ALTA | E148: 547.36072 | F148: 6316.572598 | G148: 9161.50189 | H148: 8614.14117 | I148: 5.97457411 | J148: Cumple | L148: 10560.64062 | M148: 3147.13819 | N148: 7413.50243 | O148: Cumple
A149: 141 | B149: 020803 | C149: ANCASH | D149: MUNICIPALIDAD DISTRITAL DE COMANDANTE NOEL | E149: 2811.63621 | F149: 3389.4179 | G149: 3438.87756 | H149: 627.24135 | I149: 81.76028838 | J149: Cumple | L149: 5097.63209 | M149: 2763.37571 | N149: 2334.25638 | O149: Cumple
A150: 142 | B150: 020804 | C150: ANCASH | D150: MUNICIPALIDAD DISTRITAL DE YAUTAN | E150: 972.97255 | F150: 8536.325113 | G150: 11487.00362 | H150: 10514.03107 | I150: 8.470203216 | J150: Cumple | L150: 14070.5474 | M150: 5631.62838 | N150: 8438.91902 | O150: Cumple
A151: 143 | B151: 020901 | C151: ANCASH | D151: MUNICIPALIDAD PROVINCIAL DE CORONGO | E151: 1173.58149 | F151: 8837.68569 | G151: 1732.33487 | H151: 7664.1042 | I151: 13.27928522 | J151: Cumple | L151: 6124.56381 | M151: 4893.3235 | N151: 1231.24031 | O151: Cumple
A152: 144 | B152: 020902 | C152: ANCASH | D152: MUNICIPALIDAD DISTRITAL DE ACO | E152: 353.33039 | F152: 1054.327493 | G152: 465.37538 | H152: 700.9971025 | I152: 33.51239463 | J152: Cumple | L152: 1506.65519 | M152: 1221.89502 | N152: 284.76017 | O152: Cumple
A153: 145 | B153: 020903 | C153: ANCASH | D153: MUNICIPALIDAD DISTRITAL DE BAMBAS | E153: 52.15499 | F153: 1285.558078 | G153: 910.22923 | H153: 1233.403088 | I153: 4.056992128 | J153: Cumple | L153: 1856.76432 | M153: 908.58249 | N153: 948.18183 | O153: Cumple
A154: 146 | B154: 020904 | C154: ANCASH | D154: MUNICIPALIDAD DISTRITAL DE CUSCA | E154: 334.13933 | F154: 4245.61082 | G154: 5001.83558 | H154: 4667.69625 | I154: 6.680334142 | J154: Cumple | L154: 6785.79717 | M154: 2029.51378 | N154: 4756.28339 | O154: Cumple
A155: 147 | B155: 020905 | C155: ANCASH | D155: MUNICIPALIDAD DISTRITAL DE LA PAMPA | E155: 759.53701 | F155: 1550.118427 | G155: 1450.59045 | H155: 790.5814175 | I155: 48.99864401 | J155: Cumple | L155: 2648.54796 | M155: 1451.35671 | N155: 1197.19125 | O155: Cumple
A156: 148 | B156: 020906 | C156: ANCASH | D156: MUNICIPALIDAD DISTRITAL DE YANAC | E156: 29.09868 | F156: 1311.013633 | G156: 934.8524 | H156: 1281.914953 | I156: 2.219555867 | J156: Cumple | L156: 1556.62281 | M156: 944.51165 | N156: 612.11116 | O156: Cumple
A157: 149 | B157: 020907 | C157: ANCASH | D157: MUNICIPALIDAD DISTRITAL DE YUPAN | E157: 81.49669 | F157: 1123.403193 | G157: 702.05972 | H157: 1041.906503 | I157: 7.254447072 | J157: Cumple | L157: 1754.54645 | M157: 1130.85862 | N157: 623.68783 | O157: Cumple
A158: 150 | B158: 021001 | C158: ANCASH | D158: MUNICIPALIDAD PROVINCIAL DE HUARI | E158: 6674.66417 | F158: 61111.32961 | G158: 92776.30643 | H158: 86101.64226 | I158: 7.1943629 | J158: Cumple | L158: 95400.93433 | M158: 18985.52238 | N158: 76415.41195 | O158: Cumple
A159: 151 | B159: 021002 | C159: ANCASH | D159: MUNICIPALIDAD DISTRITAL DE ANRA | E159: 763.65451 | F159: 11248.05517 | G159: 20298.18837 | H159: 19534.53386 | I159: 3.762180625 | J159: Cumple | L159: 18819.67404 | M159: 3406.844 | N159: 15412.83004 | O159: Cumple
A160: 152 | B160: 021003 | C160: ANCASH | D160: MUNICIPALIDAD DISTRITAL DE CAJAY | E160: 549.73436 | F160: 25088.99 | G160: 49767.56807 | H160: 49217.83371 | I160: 1.104603623 | J160: Cumple | L160: 45817.18051 | M160: 4543.2728 | N160: 41273.90771 | O160: Cumple
A161: 153 | B161: 021004 | C161: ANCASH | D161: MUNICIPALIDAD DISTRITAL DE CHAVIN DE HUANTAR | E161: 23813.39159 | F161: 76199.70092 | G161: 146800.2136 | H161: 122986.822 | I161: 16.2216328 | J161: Cumple | L161: 136538.3273 | M161: 27761.93511 | N161: 108776.3921 | O161: Cumple
A162: 154 | B162: 021005 | C162: ANCASH | D162: MUNICIPALIDAD DISTRITAL DE HUACACHI | E162: 1340.57526 | F162: 19043.88025 | G162: 36018.85873 | H162: 34678.28347 | I162: 3.721870451 | J162: Cumple | L162: 33303.15123 | M162: 4173.8976 | N162: 29129.25363 | O162: Cumple
A163: 155 | B163: 021006 | C163: ANCASH | D163: MUNICIPALIDAD DISTRITAL DE HUACCHIS | E163: 206.52015 | F163: 8747.85194 | G163: 12843.10559 | H163: 12636.58544 | I163: 1.608023453 | J163: Cumple | L163: 11976.5176 | M163: 1971.53032 | N163: 10004.98728 | O163: Cumple
A164: 156 | B164: 021007 | C164: ANCASH | D164: MUNICIPALIDAD DISTRITAL DE HUACHIS | E164: 3309.66758 | F164: 27076.68512 | G164: 47909.36923 | H164: 44599.70165 | I164: 6.908184418 | J164: Cumple | L164: 43068.57027 | M164: 6328.0498 | N164: 36740.52047 | O164: Cumple
A165: 157 | B165: 021008 | C165: ANCASH | D165: MUNICIPALIDAD DISTRITAL DE HUANTAR | E165: 2380.72205 | F165: 19321.47095 | G165: 33526.74947 | H165: 31146.02742 | I165: 7.100962926 | J165: Cumple | L165: 31316.01196 | M165: 4383.67265 | N165: 26932.33931 | O165: Cumple
A166: 158 | B166: 021009 | C166: ANCASH | D166: MUNICIPALIDAD DISTRITAL DE MASIN | E166: 1120.71543 | F166: 9842.372552 | G166: 15620.84337 | H166: 14500.12794 | I166: 7.17448734 | J166: Cumple | L166: 14491.24798 | M166: 3208.3045 | N166: 11282.94348 | O166: Cumple
A167: 159 | B167: 021010 | C167: ANCASH | D167: MUNICIPALIDAD DISTRITAL DE PAUCAS | E167: 442.7209 | F167: 11439.00024 | G167: 17831.13667 | H167: 17388.41577 | I167: 2.482852934 | J167: Cumple | L167: 16330.21934 | M167: 1579.81629 | N167: 14750.40305 | O167: Cumple
A168: 160 | B168: 021011 | C168: ANCASH | D168: MUNICIPALIDAD DISTRITAL DE PONTO | E168: 4895.72165 | F168: 28530.23716 | G168: 53570.64007 | H168: 48674.91842 | I168: 9.138814925 | J168: Cumple | L168: 49664.16572 | M168: 8083.6254 | N168: 41580.54032 | O168: Cumple
A169: 161 | B169: 021012 | C169: ANCASH | D169: MUNICIPALIDAD DISTRITAL DE RAHUAPAMPA | E169: 1109.48217 | F169: 5351.727332 | G169: 8970.61721 | H169: 7861.13504 | I169: 12.36795801 | J169: Cumple | L169: 9148.12742 | M169: 1396.91598 | N169: 7751.21144 | O169: Cumple
A170: 162 | B170: 021013 | C170: ANCASH | D170: MUNICIPALIDAD DISTRITAL DE RAPAYAN | E170: 59.25335 | F170: 11199.05547 | G170: 18831.61213 | H170: 18772.35878 | I170: 0.3146483136 | J170: Cumple | L170: 17530.93357 | M170: 2750.17401 | N170: 14780.75956 | O170: Cumple
A171: 163 | B171: 021014 | C171: ANCASH | D171: MUNICIPALIDAD DISTRITAL DE SAN MARCOS | E171: 52861.93044 | F171: 342854.485 | G171: 684274.5234 | H171: 631412.593 | I171: 7.725251874 | J171: Cumple | L171: 620653.2013 | M171: 139125.7407 | N171: 481527.4606 | O171: Cumple
A172: 164 | B172: 021015 | C172: ANCASH | D172: MUNICIPALIDAD DISTRITAL DE SAN PEDRO DE CHANA | E172: 6357.54826 | F172: 17585.78266 | G172: 28211.17258 | H172: 21853.62432 | I172: 22.53556899 | J172: Cumple | L172: 27122.89805 | M172: 3115.27183 | N172: 24007.62622 | O172: Cumple
A173: 165 | B173: 021016 | C173: ANCASH | D173: MUNICIPALIDAD DISTRITAL DE UCO | E173: 926.30889 | F173: 9093.253475 | G173: 14442.83414 | H173: 13516.52525 | I173: 6.413622707 | J173: Cumple | L173: 13747.28363 | M173: 1816.61863 | N173: 11930.665 | O173: Cumple
A174: 166 | B174: 021101 | C174: ANCASH | D174: MUNICIPALIDAD PROVINCIAL DE HUARMEY | E174: 8225.06894 | F174: 38407.82827 | G174: 39841.44024 | H174: 31616.3713 | I174: 20.64450705 | J174: Cumple | L174: 53359.95971 | M174: 16484.02862 | N174: 36875.93109 | O174: Cumple
A175: 167 | B175: 021102 | C175: ANCASH | D175: MUNICIPALIDAD DISTRITAL DE COCHAPETI | E175: 861.14286 | F175: 1771.617422 | G175: 2109.53956 | H175: 1248.3967 | I175: 40.82136578 | J175: Cumple | L175: 2624.12125 | M175: 845.66988 | N175: 1778.45137 | O175: Cumple
A176: 168 | B176: 021103 | C176: ANCASH | D176: MUNICIPALIDAD DISTRITAL DE CULEBRAS | E176: 2080.97324 | F176: 4089.81307 | G176: 4898.19615 | H176: 2817.22291 | I176: 42.48448156 | J176: Cumple | L176: 6124.30995 | M176: 2292.27564 | N176: 3832.03431 | O176: Cumple
A177: 169 | B177: 021104 | C177: ANCASH | D177: MUNICIPALIDAD DISTRITAL DE HUAYAN | E177: 411.88025 | F177: 1402.578115 | G177: 1067.08824 | H177: 990.697865 | I177: 29.36594016 | J177: Cumple | L177: 2029.25088 | M177: 1183.98026 | N177: 845.27062 | O177: Cumple
A178: 170 | B178: 021105 | C178: ANCASH | D178: MUNICIPALIDAD DISTRITAL DE MALVAS | E178: 60.63999 | F178: 1630.989275 | G178: 1347.55555 | H178: 1570.349285 | I178: 3.717988274 | J178: Cumple | L178: 2425.64555 | M178: 1347.35363 | N178: 1078.29192 | O178: Cumple
A179: 171 | B179: 021201 | C179: ANCASH | D179: MUNICIPALIDAD PROVINCIAL DE HUAYLAS - CARAZ | E179: 4474.1485 | F179: 31195.25351 | G179: 25302.82846 | H179: 26721.10501 | I179: 14.34240148 | J179: Cumple | L179: 38291.25788 | M179: 18537.58042 | N179: 19753.67746 | O179: Cumple
A180: 172 | B180: 021202 | C180: ANCASH | D180: MUNICIPALIDAD DISTRITAL DE HUALLANCA | E180: 159.75033 | F180: 3231.338053 | G180: 1077.28605 | H180: 3071.587722 | I180: 4.94378265 | J180: Cumple | L180: 2614.52918 | M180: 1559.4882 | N180: 1055.04098 | O180: Cumple
A181: 173 | B181: 021203 | C181: ANCASH | D181: MUNICIPALIDAD DISTRITAL DE HUATA | E181: 251.05931 | F181: 2011.50987 | G181: 2077.42904 | H181: 1826.36973 | I181: 12.08509678 | J181: Cumple | L181: 2710.84672 | M181: 1117.38122 | N181: 1593.4655 | O181: Cumple
A182: 174 | B182: 021204 | C182: ANCASH | D182: MUNICIPALIDAD DISTRITAL DE HUAYLAS | E182: 419.94231 | F182: 1668.277745 | G182: 1500.26954 | H182: 1248.335435 | I182: 25.17220596 | J182: Cumple | L182: 2584.64353 | M182: 1704.28732 | N182: 880.35621 | O182: Cumple
A183: 175 | B183: 021205 | C183: ANCASH | D183: MUNICIPALIDAD DISTRITAL DE MATO | E183: 209.4733 | F183: 2389.38901 | G183: 1732.27227 | H183: 2179.91571 | I183: 8.766814408 | J183: Cumple | L183: 2564.92013 | M183: 1281.63759 | N183: 1283.28254 | O183: Cumple
A184: 176 | B184: 021206 | C184: ANCASH | D184: MUNICIPALIDAD DISTRITAL DE PAMPAROMAS | E184: 1125.95728 | F184: 9438.385743 | G184: 10549.77748 | H184: 9423.8202 | I184: 10.67280596 | J184: Cumple | L184: 13102.42968 | M184: 4260.7177 | N184: 8841.71198 | O184: Cumple
A185: 177 | B185: 021207 | C185: ANCASH | D185: MUNICIPALIDAD DISTRITAL DE PUEBLO LIBRE | E185: 627.14935 | F185: 8694.090947 | G185: 12237.39486 | H185: 11610.24551 | I185: 5.124859965 | J185: Cumple | L185: 13572.01214 | M185: 3770.44598 | N185: 9801.56616 | O185: Cumple
A186: 178 | B186: 021208 | C186: ANCASH | D186: MUNICIPALIDAD DISTRITAL DE SANTA CRUZ | E186: 1468.00645 | F186: 6556.96235 | G186: 6579.23088 | H186: 5111.22443 | I186: 22.3127365 | J186: Cumple | L186: 8460.37099 | M186: 2341.35836 | N186: 6119.01263 | O186: Cumple
A187: 179 | B187: 021209 | C187: ANCASH | D187: MUNICIPALIDAD DISTRITAL DE SANTO TORIBIO | E187: 277.73585 | F187: 2470.378163 | G187: 1249.0286 | H187: 2192.642313 | I187: 11.24264512 | J187: Cumple | L187: 2298.87591 | M187: 1353.11003 | N187: 945.76588 | O187: Cumple
A188: 180 | B188: 021210 | C188: ANCASH | D188: MUNICIPALIDAD DISTRITAL DE YURACMARCA | E188: 813.89649 | F188: 6975.616395 | G188: 3043.36559 | H188: 6161.719905 | I188: 11.66773578 | J188: Cumple | L188: 5139.05984 | M188: 2323.95867 | N188: 2815.10117 | O188: Cumple
A189: 181 | B189: 021301 | C189: ANCASH | D189: MUNICIPALIDAD PROVINCIAL DE MARISCAL LUZURIAGA - PISCOBAMBA | E189: 4798.49578 | F189: 15091.69514 | G189: 5738.12079 | H189: 10293.19936 | I189: 31.79560504 | J189: Cumple | L189: 11635.50429 | M189: 5459.38646 | N189: 6176.11783 | O189: Cumple
A190: 182 | B190: 021302 | C190: ANCASH | D190: MUNICIPALIDAD DISTRITAL DE CASCA | E190: 742.46835 | F190: 8586.618235 | G190: 13532.38498 | H190: 12789.91663 | I190: 5.486603811 | J190: Cumple | L190: 14306.10126 | M190: 3705.10521 | N190: 10600.99605 | O190: Cumple
A191: 183 | B191: 021303 | C191: ANCASH | D191: MUNICIPALIDAD DISTRITAL DE ELEAZAR GUZMAN BARRON | E191: 188.88039 | F191: 2321.636855 | G191: 2802.74549 | H191: 2613.8651 | I191: 6.73912029 | J191: Cumple | L191: 3263.49787 | M191: 1063.86028 | N191: 2199.63759 | O191: Cumple
A192: 184 | B192: 021304 | C192: ANCASH | D192: MUNICIPALIDAD DISTRITAL DE FIDEL OLIVAS ESCUDERO | E192: 52.58806 | F192: 3616.488428 | G192: 4177.44623 | H192: 4124.85817 | I192: 1.258856658 | J192: Cumple | L192: 5286.90054 | M192: 2178.74361 | N192: 3108.15693 | O192: Cumple
A193: 185 | B193: 021305 | C193: ANCASH | D193: MUNICIPALIDAD DISTRITAL DE LLAMA | E193: 1412.19438 | F193: 2302.632105 | G193: 2948.08984 | H193: 1535.89546 | I193: 47.90201305 | J193: Cumple | L193: 3215.40382 | M193: 1037.44641 | N193: 2177.95741 | O193: Cumple
A194: 186 | B194: 021306 | C194: ANCASH | D194: MUNICIPALIDAD DISTRITAL DE LLUMPA | E194: 578.58501 | F194: 8858.88055 | G194: 11211.4713 | H194: 10632.88629 | I194: 5.16065193 | J194: Cumple | L194: 13115.69463 | M194: 3113.963 | N194: 10001.73163 | O194: Cumple
A195: 187 | B195: 021307 | C195: ANCASH | D195: MUNICIPALIDAD DISTRITAL DE LUCMA | E195: 365.7938 | F195: 4327.1767 | G195: 4429.96775 | H195: 4064.17395 | I195: 8.2572565 | J195: Cumple | L195: 5856.01424 | M195: 2563.20267 | N195: 3292.81157 | O195: Cumple
A196: 188 | B196: 021308 | C196: ANCASH | D196: MUNICIPALIDAD DISTRITAL DE MUSGA | E196: 51.33333 | F196: 2303.791655 | G196: 2910.70022 | H196: 2859.36689 | I196: 1.76360759 | J196: Cumple | L196: 3546.31678 | M196: 1370.90639 | N196: 2175.41039 | O196: Cumple
A197: 189 | B197: 021401 | C197: ANCASH | D197: MUNICIPALIDAD PROVINCIAL DE OCROS | E197: 528.50947 | F197: 9425.260722 | G197: 1845.58051 | H197: 8896.751253 | I197: 5.607372417 | J197: Cumple | L197: 5484.28081 | M197: 3251.72002 | N197: 2232.56079 | O197: Cumple
A198: 190 | B198: 021402 | C198: ANCASH | D198: MUNICIPALIDAD DISTRITAL DE ACAS | E198: 58.14215 | F198: 1613.145787 | G198: 1811.8912 | H198: 1753.74905 | I198: 3.208920602 | J198: Cumple | L198: 2297.71905 | M198: 917.60161 | N198: 1380.11744 | O198: Cumple
A199: 191 | B199: 021403 | C199: ANCASH | D199: MUNICIPALIDAD DISTRITAL DE CAJAMARQUILLA | E199: 87.18542 | F199: 1035.379395 | G199: 588.1572 | H199: 948.193975 | I199: 8.420625369 | J199: Cumple | L199: 1215.2597 | M199: 647.40932 | N199: 567.85038 | O199: Cumple
A200: 192 | B200: 021404 | C200: ANCASH | D200: MUNICIPALIDAD DISTRITAL DE CARHUAPAMPA | E200: 76.83669 | F200: 1387.441538 | G200: 527.42296 | H200: 1310.604848 | I200: 5.538012804 | J200: Cumple | L200: 1576.90686 | M200: 1063.50998 | N200: 513.39688 | O200: Cumple
A201: 193 | B201: 021405 | C201: ANCASH | D201: MUNICIPALIDAD DISTRITAL DE COCHAS | E201: 425.03389 | F201: 2507.097897 | G201: 3267.51171 | H201: 2842.47782 | I201: 13.00787657 | J201: Cumple | L201: 4283.20527 | M201: 2030.18925 | N201: 2253.01602 | O201: Cumple
A202: 194 | B202: 021406 | C202: ANCASH | D202: MUNICIPALIDAD DISTRITAL DE CONGAS | E202: 21.00794 | F202: 2359.331645 | G202: 3314.56719 | H202: 3293.55925 | I202: 0.6338064307 | J202: Cumple | L202: 4110.98734 | M202: 1371.43602 | N202: 2739.55132 | O202: Cumple
... 1702 more rows

Sheet DPTO (hidden)
A1: -------------------- | B1: CODI_DEP | C1: DESC_DEP
A2: 01:AMAZONAS | B2: 01 | C2: AMAZONAS
A3: 02:ANCASH | B3: 02 | C3: ANCASH
A4: 03:APURIMAC | B4: 03 | C4: APURIMAC
A5: 04:AREQUIPA | B5: 04 | C5: AREQUIPA
A6: 05:AYACUCHO | B6: 05 | C6: AYACUCHO
A7: 06:CAJAMARCA | B7: 06 | C7: CAJAMARCA
A8: 07:PROV CONSTIT DEL CALLAO | B8: 07 | C8: PROV CONSTIT DEL CALLAO
A9: 08:CUSCO | B9: 08 | C9: CUSCO
A10: 09:HUANCAVELICA | B10: 09 | C10: HUANCAVELICA
A11: 10:HUANUCO | B11: 10 | C11: HUANUCO
A12: 11:ICA | B12: 11 | C12: ICA
A13: 12:JUNIN | B13: 12 | C13: JUNIN
A14: 13:LA LIBERTAD | B14: 13 | C14: LA LIBERTAD
A15: 14:LAMBAYEQUE | B15: 14 | C15: LAMBAYEQUE
A16: 15:LIMA | B16: 15 | C16: LIMA
A17: 16:LORETO | B17: 16 | C17: LORETO
A18: 17:MADRE DE DIOS | B18: 17 | C18: MADRE DE DIOS
A19: 18:MOQUEGUA | B19: 18 | C19: MOQUEGUA
A20: 19:PASCO | B20: 19 | C20: PASCO
A21: 20:PIURA | B21: 20 | C21: PIURA
A22: 21:PUNO | B22: 21 | C22: PUNO
A23: 22:SAN MARTIN | B23: 22 | C23: SAN MARTIN
A24: 23:TACNA | B24: 23 | C24: TACNA
A25: 24:TUMBES | B25: 24 | C25: TUMBES
A26: 25:UCAYALI | B26: 25 | C26: UCAYALI

Sheet PROV (hidden)
A1: PROV | B1: CODI_DEP | C1: CODI_PRO | D1: DESC_PRO
A2: 0101:CHACHAPOYAS | B2: 01 | C2: 01 | D2: CHACHAPOYAS
A3: 0102:BAGUA | B3: 01 | C3: 02 | D3: BAGUA
A4: 0103:BONGARA | B4: 01 | C4: 03 | D4: BONGARA
A5: 0104:CONDORCANQUI | B5: 01 | C5: 04 | D5: CONDORCANQUI
A6: 0105:LUYA | B6: 01 | C6: 05 | D6: LUYA
A7: 0106:RODRIGUEZ DE MENDOZA | B7: 01 | C7: 06 | D7: RODRIGUEZ DE MENDOZA
A8: 0107:UCTUBAMBA | B8: 01 | C8: 07 | D8: UCTUBAMBA
A9: 0201:HUARAZ | B9: 02 | C9: 01 | D9: HUARAZ
A10: 0202:AIJA | B10: 02 | C10: 02 | D10: AIJA
A11: 0203:ANTONIO RAIMONDI | B11: 02 | C11: 03 | D11: ANTONIO RAIMONDI
A12: 0204:ASUNCION | B12: 02 | C12: 04 | D12: ASUNCION
A13: 0205:BOLOGNESI | B13: 02 | C13: 05 | D13: BOLOGNESI
A14: 0206:CARHUAZ | B14: 02 | C14: 06 | D14: CARHUAZ
A15: 0207:CARLOS FERMIN FITZCARRALD | B15: 02 | C15: 07 | D15: CARLOS FERMIN FITZCARRALD
A16: 0208:CASMA | B16: 02 | C16: 08 | D16: CASMA
A17: 0209:CORONGO | B17: 02 | C17: 09 | D17: CORONGO
A18: 0210:HUARI | B18: 02 | C18: 10 | D18: HUARI
A19: 0211:HUARMEY | B19: 02 | C19: 11 | D19: HUARMEY
A20: 0212:HUAYLAS | B20: 02 | C20: 12 | D20: HUAYLAS
A21: 0213:MARISCAL LUZURIAGA | B21: 02 | C21: 13 | D21: MARISCAL LUZURIAGA
A22: 0214:OCROS | B22: 02 | C22: 14 | D22: OCROS
A23: 0215:PALLASCA | B23: 02 | C23: 15 | D23: PALLASCA
A24: 0216:POMABAMBA | B24: 02 | C24: 16 | D24: POMABAMBA
A25: 0217:RECUAY | B25: 02 | C25: 17 | D25: RECUAY
A26: 0218:SANTA | B26: 02 | C26: 18 | D26: SANTA
A27: 0219:SIHUAS | B27: 02 | C27: 19 | D27: SIHUAS
A28: 0220:YUNGAY | B28: 02 | C28: 20 | D28: YUNGAY
A29: 0301:ABANCAY | B29: 03 | C29: 01 | D29: ABANCAY
A30: 0302:ANDAHUAYLAS | B30: 03 | C30: 02 | D30: ANDAHUAYLAS
A31: 0303:ANTABAMBA | B31: 03 | C31: 03 | D31: ANTABAMBA
A32: 0304:AYMARAES | B32: 03 | C32: 04 | D32: AYMARAES
A33: 0305:COTABAMBA | B33: 03 | C33: 05 | D33: COTABAMBA
A34: 0306:CHINCHEROS | B34: 03 | C34: 06 | D34: CHINCHEROS
A35: 0307:GRAU | B35: 03 | C35: 07 | D35: GRAU
A36: 0401:AREQUIPA | B36: 04 | C36: 01 | D36: AREQUIPA
A37: 0402:CAMANA | B37: 04 | C37: 02 | D37: CAMANA
A38: 0403:CARAVELI | B38: 04 | C38: 03 | D38: CARAVELI
A39: 0404:CASTILLA | B39: 04 | C39: 04 | D39: CASTILLA
A40: 0405:CAYLLOMA | B40: 04 | C40: 05 | D40: CAYLLOMA
A41: 0406:CONDESUYOS | B41: 04 | C41: 06 | D41: CONDESUYOS
A42: 0407:ISLAY | B42: 04 | C42: 07 | D42: ISLAY
A43: 0408:LA UNION | B43: 04 | C43: 08 | D43: LA UNION
A44: 0501:HUAMANGA | B44: 05 | C44: 01 | D44: HUAMANGA
A45: 0502:CANGALLO | B45: 05 | C45: 02 | D45: CANGALLO
A46: 0503:HUANCA SANCOS | B46: 05 | C46: 03 | D46: HUANCA SANCOS
A47: 0504:HUANTA | B47: 05 | C47: 04 | D47: HUANTA
A48: 0505:LA MAR | B48: 05 | C48: 05 | D48: LA MAR
A49: 0506:LUCANAS | B49: 05 | C49: 06 | D49: LUCANAS
A50: 0507:PARINACOCHAS | B50: 05 | C50: 07 | D50: PARINACOCHAS
A51: 0508:PAUCAR DEL SARA SARA | B51: 05 | C51: 08 | D51: PAUCAR DEL SARA SARA
A52: 0509:SUCRE | B52: 05 | C52: 09 | D52: SUCRE
A53: 0510:VICTOR FAJARDO | B53: 05 | C53: 10 | D53: VICTOR FAJARDO
A54: 0511:VILCASHUAMAN | B54: 05 | C54: 11 | D54: VILCASHUAMAN
A55: 0601:CAJAMARCA | B55: 06 | C55: 01 | D55: CAJAMARCA
A56: 0602:CAJABAMBA | B56: 06 | C56: 02 | D56: CAJABAMBA
A57: 0603:CELENDIN | B57: 06 | C57: 03 | D57: CELENDIN
A58: 0604:CHOTA | B58: 06 | C58: 04 | D58: CHOTA
A59: 0605:CONTUMAZA | B59: 06 | C59: 05 | D59: CONTUMAZA
A60: 0606:CUTERVO | B60: 06 | C60: 06 | D60: CUTERVO
A61: 0607:HUALGAYOC | B61: 06 | C61: 07 | D61: HUALGAYOC
A62: 0608:JAEN | B62: 06 | C62: 08 | D62: JAEN
A63: 0609:SAN IGNACIO | B63: 06 | C63: 09 | D63: SAN IGNACIO
A64: 0610:SAN MARCOS | B64: 06 | C64: 10 | D64: SAN MARCOS
A65: 0611:SAN MIGUEL | B65: 06 | C65: 11 | D65: SAN MIGUEL
A66: 0612:SAN PABLO | B66: 06 | C66: 12 | D66: SAN PABLO
A67: 0613:SANTA CRUZ | B67: 06 | C67: 13 | D67: SANTA CRUZ
A68: 0701:PROV. CALLAO | B68: 07 | C68: 01 | D68: PROV. CALLAO
A69: 0801:CUSCO | B69: 08 | C69: 01 | D69: CUSCO
A70: 0802:ACOMAYO | B70: 08 | C70: 02 | D70: ACOMAYO
A71: 0803:ANTA | B71: 08 | C71: 03 | D71: ANTA
A72: 0804:CALCA | B72: 08 | C72: 04 | D72: CALCA
A73: 0805:CANAS | B73: 08 | C73: 05 | D73: CANAS
A74: 0806:CANCHIS | B74: 08 | C74: 06 | D74: CANCHIS
A75: 0807:CHUMBIVILCAS | B75: 08 | C75: 07 | D75: CHUMBIVILCAS
A76: 0808:ESPINAR | B76: 08 | C76: 08 | D76: ESPINAR
A77: 0809:LA CONVENCION | B77: 08 | C77: 09 | D77: LA CONVENCION
A78: 0810:PARURO | B78: 08 | C78: 10 | D78: PARURO
A79: 0811:PAUCARTAMBO | B79: 08 | C79: 11 | D79: PAUCARTAMBO
A80: 0812:QUISPICANCHIS | B80: 08 | C80: 12 | D80: QUISPICANCHIS
A81: 0813:URUBAMBA | B81: 08 | C81: 13 | D81: URUBAMBA
A82: 0901:HUANCAVELICA | B82: 09 | C82: 01 | D82: HUANCAVELICA
A83: 0902:ACOBAMBA | B83: 09 | C83: 02 | D83: ACOBAMBA
A84: 0903:ANGARAES | B84: 09 | C84: 03 | D84: ANGARAES
A85: 0904:CASTROVIRREYNA | B85: 09 | C85: 04 | D85: CASTROVIRREYNA
A86: 0905:CHURCAMPA | B86: 09 | C86: 05 | D86: CHURCAMPA
A87: 0906:HUAYTARA | B87: 09 | C87: 06 | D87: HUAYTARA
A88: 0907:TAYACAJA | B88: 09 | C88: 07 | D88: TAYACAJA
A89: 1001:HUANUCO | B89: 10 | C89: 01 | D89: HUANUCO
A90: 1002:AMBO | B90: 10 | C90: 02 | D90: AMBO
A91: 1003:DOS DE MAYO | B91: 10 | C91: 03 | D91: DOS DE MAYO
A92: 1004:HUACAYBAMBA | B92: 10 | C92: 04 | D92: HUACAYBAMBA
A93: 1005:HUAMALIES | B93: 10 | C93: 05 | D93: HUAMALIES
A94: 1006:LEONCIO PRADO | B94: 10 | C94: 06 | D94: LEONCIO PRADO
A95: 1007:MARANON | B95: 10 | C95: 07 | D95: MARANON
A96: 1008:PACHITEA | B96: 10 | C96: 08 | D96: PACHITEA
A97: 1009:PUERTO INCA | B97: 10 | C97: 09 | D97: PUERTO INCA
A98: 1010:LAURICOCHA | B98: 10 | C98: 10 | D98: LAURICOCHA
A99: 1011:YAROWILCA | B99: 10 | C99: 11 | D99: YAROWILCA
A100: 1101:ICA | B100: 11 | C100: 01 | D100: ICA
A101: 1102:CHINCHA | B101: 11 | C101: 02 | D101: CHINCHA
A102: 1103:NAZCA | B102: 11 | C102: 03 | D102: NAZCA
A103: 1104:PALPA | B103: 11 | C103: 04 | D103: PALPA
A104: 1105:PISCO | B104: 11 | C104: 05 | D104: PISCO
A105: 1201:HUANCAYO | B105: 12 | C105: 01 | D105: HUANCAYO
A106: 1202:CONCEPCION | B106: 12 | C106: 02 | D106: CONCEPCION
A107: 1203:CHANCHAMAYO | B107: 12 | C107: 03 | D107: CHANCHAMAYO
A108: 1204:JAUJA | B108: 12 | C108: 04 | D108: JAUJA
A109: 1205:JUNIN | B109: 12 | C109: 05 | D109: JUNIN
A110: 1206:SATIPO | B110: 12 | C110: 06 | D110: SATIPO
A111: 1207:TARMA | B111: 12 | C111: 07 | D111: TARMA
A112: 1208:YAULI | B112: 12 | C112: 08 | D112: YAULI
A113: 1209:CHUPACA | B113: 12 | C113: 09 | D113: CHUPACA
A114: 1301:TRUJILLO | B114: 13 | C114: 01 | D114: TRUJILLO
A115: 1302:ASCOPE | B115: 13 | C115: 02 | D115: ASCOPE
A116: 1303:BOLIVAR | B116: 13 | C116: 03 | D116: BOLIVAR
A117: 1304:CHEPEN | B117: 13 | C117: 04 | D117: CHEPEN
A118: 1305:JULCAN | B118: 13 | C118: 05 | D118: JULCAN
A119: 1306:OTUZCO | B119: 13 | C119: 06 | D119: OTUZCO
A120: 1307:PACASMAYO | B120: 13 | C120: 07 | D120: PACASMAYO
A121: 1308:PATAZ | B121: 13 | C121: 08 | D121: PATAZ
A122: 1309:SANCHEZ CARRION | B122: 13 | C122: 09 | D122: SANCHEZ CARRION
A123: 1310:SANTIAGO DE CHUCO | B123: 13 | C123: 10 | D123: SANTIAGO DE CHUCO
A124: 1311:GRAN CHIMU | B124: 13 | C124: 11 | D124: GRAN CHIMU
A125: 1312:VIRU | B125: 13 | C125: 12 | D125: VIRU
A126: 1401:CHICLAYO | B126: 14 | C126: 01 | D126: CHICLAYO
A127: 1402:FERRENAFE | B127: 14 | C127: 02 | D127: FERRENAFE
A128: 1403:LAMBAYEQUE | B128: 14 | C128: 03 | D128: LAMBAYEQUE
A129: 1501:LIMA | B129: 15 | C129: 01 | D129: LIMA
A130: 1502:BARRANCA | B130: 15 | C130: 02 | D130: BARRANCA
A131: 1503:CAJATAMBO | B131: 15 | C131: 03 | D131: CAJATAMBO
A132: 1504:CANTA | B132: 15 | C132: 04 | D132: CANTA
A133: 1505:CAÑETE | B133: 15 | C133: 05 | D133: CAÑETE
A134: 1506:HUARAL | B134: 15 | C134: 06 | D134: HUARAL
A135: 1507:HUAROCHIRI | B135: 15 | C135: 07 | D135: HUAROCHIRI
A136: 1508:HUAURA | B136: 15 | C136: 08 | D136: HUAURA
A137: 1509:OYON | B137: 15 | C137: 09 | D137: OYON
A138: 1510:YAUYOS | B138: 15 | C138: 10 | D138: YAUYOS
A139: 1601:MAYNAS | B139: 16 | C139: 01 | D139: MAYNAS
A140: 1602:ALTO AMAZONAS | B140: 16 | C140: 02 | D140: ALTO AMAZONAS
A141: 1603:LORETO | B141: 16 | C141: 03 | D141: LORETO
A142: 1604:RAMON CASTILLA | B142: 16 | C142: 04 | D142: RAMON CASTILLA
A143: 1605:REQUENA | B143: 16 | C143: 05 | D143: REQUENA
A144: 1606:UCAYALI | B144: 16 | C144: 06 | D144: UCAYALI
A145: 1607:DATEM DEL MARAÑON | B145: 16 | C145: 07 | D145: DATEM DEL MARAÑON
A146: 1608:PUTUMAYO | B146: 16 | C146: 08 | D146: PUTUMAYO
A147: 1701:TAMBOPATA | B147: 17 | C147: 01 | D147: TAMBOPATA
A148: 1702:MANU | B148: 17 | C148: 02 | D148: MANU
A149: 1703:TAHUAMANU | B149: 17 | C149: 03 | D149: TAHUAMANU
A150: 1801:MARISCAL NIETO | B150: 18 | C150: 01 | D150: MARISCAL NIETO
A151: 1802:GENERAL SANCHEZ CERRO | B151: 18 | C151: 02 | D151: GENERAL SANCHEZ CERRO
A152: 1803:ILO | B152: 18 | C152: 03 | D152: ILO
A153: 1901:PASCO | B153: 19 | C153: 01 | D153: PASCO
A154: 1902:DANIEL A. CARRION | B154: 19 | C154: 02 | D154: DANIEL A. CARRION
A155: 1903:OXAPAMPA | B155: 19 | C155: 03 | D155: OXAPAMPA
A156: 2001:PIURA | B156: 20 | C156: 01 | D156: PIURA
A157: 2002:AYABACA | B157: 20 | C157: 02 | D157: AYABACA
A158: 2003:HUANCABAMBA | B158: 20 | C158: 03 | D158: HUANCABAMBA
A159: 2004:MORROPON | B159: 20 | C159: 04 | D159: MORROPON
A160: 2005:PAITA | B160: 20 | C160: 05 | D160: PAITA
A161: 2006:SULLANA | B161: 20 | C161: 06 | D161: SULLANA
A162: 2007:TALARA | B162: 20 | C162: 07 | D162: TALARA
A163: 2008:SECHURA | B163: 20 | C163: 08 | D163: SECHURA
A164: 2101:PUNO | B164: 21 | C164: 01 | D164: PUNO
A165: 2102:AZANGARO | B165: 21 | C165: 02 | D165: AZANGARO
A166: 2103:CARABAYA | B166: 21 | C166: 03 | D166: CARABAYA
A167: 2104:CHUCUITO | B167: 21 | C167: 04 | D167: CHUCUITO
A168: 2105:EL COLLAO | B168: 21 | C168: 05 | D168: EL COLLAO
A169: 2106:HUANCANE | B169: 21 | C169: 06 | D169: HUANCANE
A170: 2107:LAMPA | B170: 21 | C170: 07 | D170: LAMPA
A171: 2108:MELGAR | B171: 21 | C171: 08 | D171: MELGAR
A172: 2109:MOHO | B172: 21 | C172: 09 | D172: MOHO
A173: 2110:SAN ANTONIO DE PUTINA | B173: 21 | C173: 10 | D173: SAN ANTONIO DE PUTINA
A174: 2111:SAN ROMAN | B174: 21 | C174: 11 | D174: SAN ROMAN
A175: 2112:SANDIA | B175: 21 | C175: 12 | D175: SANDIA
A176: 2113:YUNGUYO | B176: 21 | C176: 13 | D176: YUNGUYO
A177: 2201:MOYOBAMBA | B177: 22 | C177: 01 | D177: MOYOBAMBA
A178: 2202:BELLAVISTA | B178: 22 | C178: 02 | D178: BELLAVISTA
A179: 2203:EL DORADO | B179: 22 | C179: 03 | D179: EL DORADO
A180: 2204:HUALLAGA | B180: 22 | C180: 04 | D180: HUALLAGA
A181: 2205:LAMAS | B181: 22 | C181: 05 | D181: LAMAS
A182: 2206:MARISCAL CACERES | B182: 22 | C182: 06 | D182: MARISCAL CACERES
A183: 2207:PICOTA | B183: 22 | C183: 07 | D183: PICOTA
A184: 2208:RIOJA | B184: 22 | C184: 08 | D184: RIOJA
A185: 2209:SAN MARTIN | B185: 22 | C185: 09 | D185: SAN MARTIN
A186: 2210:TOCACHE | B186: 22 | C186: 10 | D186: TOCACHE
A187: 2301:TACNA | B187: 23 | C187: 01 | D187: TACNA
A188: 2302:CANDARAVE | B188: 23 | C188: 02 | D188: CANDARAVE
A189: 2303:JORGE BASADRE | B189: 23 | C189: 03 | D189: JORGE BASADRE
A190: 2304:TARATA | B190: 23 | C190: 04 | D190: TARATA
A191: 2401:TUMBES | B191: 24 | C191: 01 | D191: TUMBES
A192: 2402:CONTRALMIRANTE VILLAR | B192: 24 | C192: 02 | D192: CONTRALMIRANTE VILLAR
A193: 2403:ZARUMILLA | B193: 24 | C193: 03 | D193: ZARUMILLA
A194: 2501:CORONEL PORTILLO | B194: 25 | C194: 01 | D194: CORONEL PORTILLO
A195: 2502:ATALAYA | B195: 25 | C195: 02 | D195: ATALAYA
A196: 2503:PADRE ABAD | B196: 25 | C196: 03 | D196: PADRE ABAD
A197: 2504:PURUS | B197: 25 | C197: 04 | D197: PURUS

Sheet ENTIDAD (hidden)
A1: ENTIDADES
A2: 010000 : GOBIERNO REGIONAL DE AMAZONAS
A3: 020000 : GOBIERNO REGIONAL DE ANCASH
A4: 030000 : GOBIERNO REGIONAL DE APURIMAC
A5: 040000 : GOBIERNO REGIONAL DE AREQUIPA
A6: 050000 : GOBIERNO REGIONAL DE AYACUCHO
A7: 060000 : GOBIERNO REGIONAL DE CAJAMARCA
A8: 070000 : GOBIERNO REGIONAL DEL CALLAO
A9: 080000 : GOBIERNO REGIONAL DE CUSCO
A10: 090000 : GOBIERNO REGIONAL DE HUANCAVELICA
A11: 100000 : GOBIERNO REGIONAL DE HUANUCO
A12: 110000 : GOBIERNO REGIONAL DE ICA
A13: 120000 : GOBIERNO REGIONAL DE JUNIN
A14: 130000 : GOBIERNO REGIONAL DE LA LIBERTAD
A15: 140000 : GOBIERNO REGIONAL DE LAMBAYEQUE
A16: 150000 : GOBIERNO REGIONAL DE LIMA
A17: 160000 : GOBIERNO REGIONAL DE LORETO
A18: 170000 : GOBIERNO REGIONAL DE MADRE DE DIOS
A19: 180000 : GOBIERNO REGIONAL DE MOQUEGUA
A20: 190000 : GOBIERNO REGIONAL DE PASCO
A21: 200000 : GOBIERNO REGIONAL DE PIURA
A22: 210000 : GOBIERNO REGIONAL DE PUNO
A23: 220000 : GOBIERNO REGIONAL DE SAN MARTIN
A24: 230000 : GOBIERNO REGIONAL DE TACNA
A25: 240000 : GOBIERNO REGIONAL DE TUMBES
A26: 250000 : GOBIERNO REGIONAL DE UCAYALI
A27: 260000 : REGION LIMA METROPOLITANA
A28: 010101 : MP DE CHACHAPOYAS
A29: 010102 : MD DE ASUNCION
A30: 010103 : MD DE BALSAS
A31: 010104 : MD DE CHETO
A32: 010105 : MD DE CHILIQUIN
A33: 010106 : MD DE CHUQUIBAMBA
A34: 010107 : MD DE GRANADA
A35: 010108 : MD DE HUANCAS
A36: 010109 : MD DE JALCA GRANDE
A37: 010110 : MD DE LEIMEBAMBA
A38: 010111 : MD DE LEVANTO
A39: 010112 : MD DE MAGDALENA
A40: 010113 : MD DE MARISCAL CASTILLA
A41: 010114 : MD DE MOLINOPAMPA
A42: 010115 : MD DE MONTEVIDEO
A43: 010116 : MD DE OLLEROS
A44: 010117 : MD DE QUINJALCA
A45: 010118 : MD DE SAN FRANCISCO DE DAGUAS
A46: 010119 : MD DE SAN ISIDRO DE MAYNO
A47: 010120 : MD DE SOLOCO
A48: 010121 : MD DE SONCHE
A49: 010201 : MP DE BAGUA - LA PECA
A50: 010202 : MD DE ARAMANGO
A51: 010203 : MD DE COPALLIN
A52: 010204 : MD DE EL PARCO
A53: 010205 : MD DE IMAZA
A54: 010206 : MD DE LA PECA
A55: 010301 : MP DE BONGARA - JUMBILLA
A56: 010302 : MD DE CHISQUILLA
A57: 010303 : MD DE CHURUJA
A58: 010304 : MD DE COROSHA
A59: 010305 : MD DE CUISPES
A60: 010306 : MD DE FLORIDA
A61: 010307 : MD DE JAZAN
A62: 010308 : MD DE RECTA
A63: 010309 : MD DE SAN CARLOS
A64: 010310 : MD DE SHIPASBAMBA
A65: 010311 : MD DE VALERA
A66: 010312 : MD DE YAMBRASBAMBA
A67: 010401 : MP DE CONDORCANQUI - NIEVA
A68: 010402 : MD DE EL CENEPA
A69: 010403 : MD DE RIO SANTIAGO
A70: 010501 : MP DE LUYA - LAMUD
A71: 010502 : MD DE CAMPORREDONDO
A72: 010503 : MD DE COCABAMBA
A73: 010504 : MD DE COLCAMAR
A74: 010505 : MD DE CONILA
A75: 010506 : MD DE INGUILPATA
A76: 010507 : MD DE LONGUITA
A77: 010508 : MD DE LONYA CHICO
A78: 010509 : MD DE LUYA
A79: 010510 : MD DE LUYA VIEJO
A80: 010511 : MD DE MARIA
A81: 010512 : MD DE OCALLI
A82: 010513 : MD DE OCUMAL
A83: 010514 : MD DE PIZUQUIA
A84: 010515 : MD DE PROVIDENCIA
A85: 010516 : MD DE SAN CRISTOBAL DE OLTO
A86: 010517 : MD DE SAN FRANCISCO DE YESO
A87: 010518 : MD DE SAN JERONIMO DE PACLAS
A88: 010519 : MD DE SAN JUAN DE LOPECANCHA
A89: 010520 : MD DE SANTA CATALINA
A90: 010521 : MD DE SANTO TOMAS
A91: 010522 : MD DE TINGO
A92: 010523 : MD DE TRITA
A93: 010601 : MP DE RODRIGUEZ DE MENDOZA - SAN NICOLAS
A94: 010602 : MD DE CHIRIMOTO
A95: 010603 : MD DE COCHAMAL
A96: 010604 : MD DE HUAMBO
A97: 010605 : MD DE LIMABAMBA
A98: 010606 : MD DE LONGAR
A99: 010607 : MD DE MARISCAL BENAVIDES
A100: 010608 : MD DE MILPUC
A101: 010609 : MD DE OMIA
A102: 010610 : MD DE SANTA ROSA
A103: 010611 : MD DE TOTORA
A104: 010612 : MD DE VISTA ALEGRE
A105: 010701 : MP DE UTCUBAMBA - BAGUA GRANDE
A106: 010702 : MD DE CAJARURO
A107: 010703 : MD DE CUMBA
A108: 010704 : MD DE EL MILAGRO
A109: 010705 : MD DE JAMALCA
A110: 010706 : MD DE LONYA GRANDE
A111: 010707 : MD DE YAMON
A112: 020101 : MP DE HUARAZ
A113: 020102 : MD DE COCHABAMBA
A114: 020103 : MD DE COLCABAMBA
A115: 020104 : MD DE HUANCHAY
A116: 020105 : MD DE INDEPENDENCIA
A117: 020106 : MD DE JANGAS
A118: 020107 : MD DE LA LIBERTAD
A119: 020108 : MD DE OLLEROS
A120: 020109 : MD DE PAMPAS
A121: 020110 : MD DE PARIACOTO
A122: 020111 : MD DE PIRA
A123: 020112 : MD DE TARICA
A124: 020201 : MP DE AIJA
A125: 020202 : MD DE CORIS
A126: 020203 : MD DE HUACLLAN
A127: 020204 : MD DE LA MERCED
A128: 020205 : MD DE SUCCHA
A129: 020301 : MP DE ANTONIO RAYMONDI - LLAMELLIN
A130: 020302 : MD DE ACSO
A131: 020303 : MD DE CHACCHO
A132: 020304 : MD DE CHINGAS
A133: 020305 : MD DE MIRGAS
A134: 020306 : MD DE SAN JUAN DE RONTOY
A135: 020401 : MP DE ASUNCION - CHACAS
A136: 020402 : MD DE ACOCHACA
A137: 020501 : MP DE BOLOGNESI - CHIQUIAN
A138: 020502 : MD DE ABELARDO PARDO LAZAMETA
A139: 020503 : MD DE ANTONIO RAYMONDI
A140: 020504 : MD DE AQUIA
A141: 020505 : MD DE CAJACAY
A142: 020506 : MD DE CANIS
A143: 020507 : MD DE COLQUIOC
A144: 020508 : MD DE HUALLANCA
A145: 020509 : MD DE HUASTA
A146: 020510 : MD DE HUAYLLACAYAN
A147: 020511 : MD DE LA PRIMAVERA
A148: 020512 : MD DE MANGAS
A149: 020513 : MD DE PACLLON
A150: 020514 : MD DE SAN MIGUEL DE CORPANQUI
A151: 020515 : MD DE TICLLOS
A152: 020601 : MP DE CARHUAZ
A153: 020602 : MD DE ACOPAMPA
A154: 020603 : MD DE AMASHCA
A155: 020604 : MD DE ANTA
A156: 020605 : MD DE ATAQUERO
A157: 020606 : MD DE MARCARA
A158: 020607 : MD DE PARIAHUANCA
A159: 020608 : MD DE SAN MIGUEL DE ACO
A160: 020609 : MD DE SHILLA
A161: 020610 : MD DE TINCO
A162: 020611 : MD DE YUNGAR
A163: 020701 : MP DE CARLOS FERMIN FITZCARRALD
A164: 020702 : MD DE SAN NICOLAS
A165: 020703 : MD DE YAUYA
A166: 020801 : MP DE CASMA
A167: 020802 : MD DE BUENA VISTA ALTA
A168: 020803 : MD DE COMANDANTE NOEL
A169: 020804 : MD DE YAUTAN
A170: 020901 : MP DE CORONGO
A171: 020902 : MD DE ACO
A172: 020903 : MD DE BAMBAS
A173: 020904 : MD DE CUSCA
A174: 020905 : MD DE LA PAMPA
A175: 020906 : MD DE YANAC
A176: 020907 : MD DE YUPAN
A177: 021001 : MP DE HUARI
A178: 021002 : MD DE ANRA
A179: 021003 : MD DE CAJAY
A180: 021004 : MD DE CHAVIN DE HUANTAR
A181: 021005 : MD DE HUACACHI
A182: 021006 : MD DE HUACCHIS
A183: 021007 : MD DE HUACHIS
A184: 021008 : MD DE HUANTAR
A185: 021009 : MD DE MASIN
A186: 021010 : MD DE PAUCAS
A187: 021011 : MD DE PONTO
A188: 021012 : MD DE RAHUAPAMPA
A189: 021013 : MD DE RAPAYAN
A190: 021014 : MD DE SAN MARCOS
A191: 021015 : MD DE SAN PEDRO DE CHANA
A192: 021016 : MD DE UCO
A193: 021101 : MP DE HUARMEY
A194: 021102 : MD DE COCHAPETI
A195: 021103 : MD DE CULEBRAS
A196: 021104 : MD DE HUAYAN
A197: 021105 : MD DE MALVAS
A198: 021201 : MP DE HUAYLAS - CARAZ
A199: 021202 : MD DE HUALLANCA
A200: 021203 : MD DE HUATA
... 1717 more rows

Sheet GRS (hidden)
A1: -----------------------------------------------
A2: 010000 : GOBIERNO REGIONAL DE AMAZONAS
A3: 020000 : GOBIERNO REGIONAL DE ANCASH
A4: 030000 : GOBIERNO REGIONAL DE APURIMAC
A5: 040000 : GOBIERNO REGIONAL DE AREQUIPA
A6: 050000 : GOBIERNO REGIONAL DE AYACUCHO
A7: 060000 : GOBIERNO REGIONAL DE CAJAMARCA
A8: 070000 : GOBIERNO REGIONAL DEL CALLAO
A9: 080000 : GOBIERNO REGIONAL DE CUSCO
A10: 090000 : GOBIERNO REGIONAL DE HUANCAVELICA
A11: 100000 : GOBIERNO REGIONAL DE HUANUCO
A12: 110000 : GOBIERNO REGIONAL DE ICA
A13: 120000 : GOBIERNO REGIONAL DE JUNIN
A14: 130000 : GOBIERNO REGIONAL DE LA LIBERTAD
A15: 140000 : GOBIERNO REGIONAL DE LAMBAYEQUE
A16: 150000 : GOBIERNO REGIONAL DE LIMA
A17: 160000 : GOBIERNO REGIONAL DE LORETO
A18: 170000 : GOBIERNO REGIONAL DE MADRE DE DIOS
A19: 180000 : GOBIERNO REGIONAL DE MOQUEGUA
A20: 190000 : GOBIERNO REGIONAL DE PASCO
A21: 200000 : GOBIERNO REGIONAL DE PIURA
A22: 210000 : GOBIERNO REGIONAL DE PUNO
A23: 220000 : GOBIERNO REGIONAL DE SAN MARTIN
A24: 230000 : GOBIERNO REGIONAL DE TACNA
A25: 240000 : GOBIERNO REGIONAL DE TUMBES
A26: 250000 : GOBIERNO REGIONAL DE UCAYALI
A27: 260000 : REGION LIMA METROPOLITANA

Sheet TIPOGOB (hidden)
A1: TIPOGOB
A2: Gobiernos Locales
A3: Gobiernos Regionales
A6: No Cumple
A7: Si Cumple
